{"text_format":"1","workbook":"xlsx","n_sheets":1,"sheets":["DADOS"],"not_rendered":{"charts":0,"images":2,"macros":1,"external_links":0,"defined_names":4,"comments":0,"pivot_tables":0},"unopened":[],"bounds":{"document_bytes":16777216,"sheet_cells":100000,"rows_first":2000,"rows_last":500,"rows_between":2000,"halvings":0,"cell_chars":16384,"cell_head_chars":4096},"cells_cut":0,"cells_raw":0,"read":"whole","date_system":"1900"}

{"sheet":"DADOS","index":0,"n_rows":1000,"n_cols":23,"rows_kept":1000,"cut":false,"hidden":false,"merged":[]}
["NOME","DATA DE NASC.","VINCULO","CPF","VALIDAÇÃO","MATRICULA","PIS_PASEP","VALIDAÇÃO",null,"INSS EXTERNO","VALOR BRUTO EXTERNO","INSTITUIÇÃO - INSS EXTERNO","BANCO","CODIGO","AGÊNCIA","CONTA","DÍGITO","MÊS PGTO","VALOR"]
[null,null,null,null,{"$f":"CPF(D2)","v":"INVALIDO"},null,null,{"$f":"PISPASEP(G2)","v":"INVALIDO"},null,null,null,null,null,{"$f":"INDEX(U:V,MATCH(DADOS!M2,V:V,0),1)","v":{"$error":"#N/A"}},null,null,null,null,{"$f":"S2","v":0},null,1,"Banco do Brasil S.A.","AUTONOMO"]
[null,null,null,null,{"$f":"CPF(D3)","v":"INVALIDO"},null,null,{"$f":"PISPASEP(G3)","v":"INVALIDO"},null,null,null,null,null,{"$f":"INDEX(U:V,MATCH(DADOS!M3,V:V,0),1)","v":{"$error":"#N/A"}},null,null,null,null,{"$f":"S3","v":0},null,33,"Banco Santander (Brasil) S.A.","SERVIDOR"]
[null,null,null,null,"INVALIDO",null,null,"INVALIDO",null,null,null,null,null,{"$f":"INDEX(U:V,MATCH(DADOS!M4,V:V,0),1)","v":{"$error":"#N/A"}},null,null,null,null,0,null,422,"Banco Safra S.A.","ESTAGIARIO"]
[null,null,null,null,"INVALIDO",null,null,"INVALIDO",null,null,null,null,null,{"$f":"INDEX(U:V,MATCH(DADOS!M5,V:V,0),1)","v":{"$error":"#N/A"}},null,null,null,null,0,null,96,"Banco BM&F de Serviços de Liquidação e Custódia S.A","BOLSISTA"]
[null,null,null,null,{"$f":"CPF(D6)","v":"INVALIDO"},null,null,{"$f":"PISPASEP(G6)","v":"INVALIDO"},null,null,null,null,null,{"$f":"INDEX(U:V,MATCH(DADOS!M6,V:V,0),1)","v":{"$error":"#N/A"}},null,null,null,null,0,null,104,"Caixa Econômica Federal"]
[null,null,null,null,"INVALIDO",null,null,"INVALIDO",null,null,null,null,null,{"$f":"INDEX(U:V,MATCH(DADOS!M7,V:V,0),1)","v":{"$error":"#N/A"}},null,null,null,null,0,null,208,"Banco BTG Pactual"]
[null,null,null,null,"INVALIDO",null,null,"INVALIDO",null,null,null,null,null,{"$f":"INDEX(U:V,MATCH(DADOS!M8,V:V,0),1)","v":{"$error":"#N/A"}},null,null,null,null,0,null,230,"Unicard Banco Múltiplo S.A."]
[null,null,null,null,"INVALIDO",null,null,"INVALIDO",null,null,null,null,null,{"$f":"INDEX(U:V,MATCH(DADOS!M9,V:V,0),1)","v":{"$error":"#N/A"}},null,null,null,null,0,null,237,"Banco Bradesco S.A."]
[null,null,null,null,"INVALIDO",null,null,"INVALIDO",null,null,null,null,null,{"$f":"INDEX(U:V,MATCH(DADOS!M10,V:V,0),1)","v":{"$error":"#N/A"}},null,null,null,null,0,null,260,"Banco Nubank"]
[null,null,null,null,"INVALIDO",null,null,"INVALIDO",null,null,null,null,null,{"$f":"INDEX(U:V,MATCH(DADOS!M11,V:V,0),1)","v":{"$error":"#N/A"}},null,null,null,null,0,null,308,"Banco Clear"]
[null,null,null,null,"INVALIDO",null,null,"INVALIDO",null,null,null,null,null,{"$f":"INDEX(U:V,MATCH(DADOS!M12,V:V,0),1)","v":{"$error":"#N/A"}},null,null,null,null,0,null,318,"Banco BMG S.A."]
[null,null,null,null,"INVALIDO",null,null,"INVALIDO",null,null,null,null,null,{"$f":"INDEX(U:V,MATCH(DADOS!M13,V:V,0),1)","v":{"$error":"#N/A"}},null,null,null,null,0,null,356,"Banco Itaú S.A."]
[null,null,null,null,"INVALIDO",null,null,"INVALIDO",null,null,null,null,null,{"$f":"INDEX(U:V,MATCH(DADOS!M14,V:V,0),1)","v":{"$error":"#N/A"}},null,null,null,null,0,null,488,"Banco J. P. Morgan S.A."]
[null,null,null,null,"INVALIDO",null,null,"INVALIDO",null,null,null,null,null,{"$f":"INDEX(U:V,MATCH(DADOS!M15,V:V,0),1)","v":{"$error":"#N/A"}},null,null,null,null,0,null,399,"HSBC Bank Brasil S.A. – Banco Múltiplo"]
[null,null,null,null,"INVALIDO",null,null,"INVALIDO",null,null,null,null,null,{"$f":"INDEX(U:V,MATCH(DADOS!M16,V:V,0),1)","v":{"$error":"#N/A"}},null,null,null,null,0,null,422,"Banco Safra S.A."]
[null,null,null,null,"INVALIDO",null,null,"INVALIDO",null,null,null,null,null,{"$f":"INDEX(U:V,MATCH(DADOS!M17,V:V,0),1)","v":{"$error":"#N/A"}},null,null,null,null,0,null,477,"Citibank N.A."]
[null,null,null,null,"INVALIDO",null,null,"INVALIDO",null,null,null,null,null,{"$f":"INDEX(U:V,MATCH(DADOS!M18,V:V,0),1)","v":{"$error":"#N/A"}},null,null,null,null,0,null,623,"Banco Panamericano S.A."]
[null,null,null,null,"INVALIDO",null,null,"INVALIDO",null,null,null,null,null,{"$f":"INDEX(U:V,MATCH(DADOS!M19,V:V,0),1)","v":{"$error":"#N/A"}},null,null,null,null,0,null,652,"Itaú Unibanco Holding S.A."]
[null,null,null,null,"INVALIDO",null,null,"INVALIDO",null,null,null,null,null,{"$f":"INDEX(U:V,MATCH(DADOS!M20,V:V,0),1)","v":{"$error":"#N/A"}},null,null,null,null,0,null,745,"Banco Citibank S.A."]
[null,null,null,null,"INVALIDO",null,null,"INVALIDO",null,null,null,null,null,{"$f":"INDEX(U:V,MATCH(DADOS!M21,V:V,0),1)","v":{"$error":"#N/A"}},null,null,null,null,0,null,746,"Banco Modal S.A."]
[null,null,null,null,{"$f":"CPF(D22)","v":"INVALIDO"},null,null,{"$f":"PISPASEP(G22)","v":"INVALIDO"},null,null,null,null,null,{"$f":"INDEX(U:V,MATCH(DADOS!M22,V:V,0),1)","v":{"$error":"#N/A"}},null,null,null,null,0]
[null,null,null,null,"INVALIDO",null,null,"INVALIDO",null,null,null,null,null,{"$f":"INDEX(U:V,MATCH(DADOS!M23,V:V,0),1)","v":{"$error":"#N/A"}},null,null,null,null,0]
[null,null,null,null,"INVALIDO",null,null,"INVALIDO",null,null,null,null,null,{"$f":"INDEX(U:V,MATCH(DADOS!M24,V:V,0),1)","v":{"$error":"#N/A"}},null,null,null,null,0]
[null,null,null,null,"INVALIDO",null,null,"INVALIDO",null,null,null,null,null,{"$f":"INDEX(U:V,MATCH(DADOS!M25,V:V,0),1)","v":{"$error":"#N/A"}},null,null,null,null,0]
[null,null,null,null,"INVALIDO",null,null,"INVALIDO",null,null,null,null,null,{"$f":"INDEX(U:V,MATCH(DADOS!M26,V:V,0),1)","v":{"$error":"#N/A"}},null,null,null,null,0]
[null,null,null,null,"INVALIDO",null,null,"INVALIDO",null,null,null,null,null,{"$f":"INDEX(U:V,MATCH(DADOS!M27,V:V,0),1)","v":{"$error":"#N/A"}},null,null,null,null,0]
[null,null,null,null,"INVALIDO",null,null,"INVALIDO",null,null,null,null,null,{"$f":"INDEX(U:V,MATCH(DADOS!M28,V:V,0),1)","v":{"$error":"#N/A"}},null,null,null,null,0]
[null,null,null,null,"INVALIDO",null,null,"INVALIDO",null,null,null,null,null,{"$f":"INDEX(U:V,MATCH(DADOS!M29,V:V,0),1)","v":{"$error":"#N/A"}},null,null,null,null,0]
[null,null,null,null,"INVALIDO",null,null,"INVALIDO",null,null,null,null,null,{"$f":"INDEX(U:V,MATCH(DADOS!M30,V:V,0),1)","v":{"$error":"#N/A"}},null,null,null,null,0]
[null,null,null,null,"INVALIDO",null,null,"INVALIDO",null,null,null,null,null,{"$f":"INDEX(U:V,MATCH(DADOS!M31,V:V,0),1)","v":{"$error":"#N/A"}},null,null,null,null,0]
[null,null,null,null,"INVALIDO",null,null,"INVALIDO",null,null,null,null,null,{"$f":"INDEX(U:V,MATCH(DADOS!M32,V:V,0),1)","v":{"$error":"#N/A"}},null,null,null,null,0]
[null,null,null,null,"INVALIDO",null,null,"INVALIDO",null,null,null,null,null,{"$f":"INDEX(U:V,MATCH(DADOS!M33,V:V,0),1)","v":{"$error":"#N/A"}},null,null,null,null,0]
[null,null,null,null,"INVALIDO",null,null,"INVALIDO",null,null,null,null,null,{"$f":"INDEX(U:V,MATCH(DADOS!M34,V:V,0),1)","v":{"$error":"#N/A"}},null,null,null,null,0]
[null,null,null,null,"INVALIDO",null,null,"INVALIDO",null,null,null,null,null,{"$f":"INDEX(U:V,MATCH(DADOS!M35,V:V,0),1)","v":{"$error":"#N/A"}},null,null,null,null,0]
[null,null,null,null,"INVALIDO",null,null,"INVALIDO",null,null,null,null,null,{"$f":"INDEX(U:V,MATCH(DADOS!M36,V:V,0),1)","v":{"$error":"#N/A"}},null,null,null,null,0]
[null,null,null,null,"INVALIDO",null,null,"INVALIDO",null,null,null,null,null,{"$f":"INDEX(U:V,MATCH(DADOS!M37,V:V,0),1)","v":{"$error":"#N/A"}},null,null,null,null,0]
[null,null,null,null,"INVALIDO",null,null,"INVALIDO",null,null,null,null,null,{"$f":"INDEX(U:V,MATCH(DADOS!M38,V:V,0),1)","v":{"$error":"#N/A"}},null,null,null,null,0]
[null,null,null,null,"INVALIDO",null,null,"INVALIDO",null,null,null,null,null,{"$f":"INDEX(U:V,MATCH(DADOS!M39,V:V,0),1)","v":{"$error":"#N/A"}},null,null,null,null,0]
[null,null,null,null,"INVALIDO",null,null,"INVALIDO",null,null,null,null,null,{"$f":"INDEX(U:V,MATCH(DADOS!M40,V:V,0),1)","v":{"$error":"#N/A"}},null,null,null,null,0]
[null,null,null,null,"INVALIDO",null,null,"INVALIDO",null,null,null,null,null,{"$f":"INDEX(U:V,MATCH(DADOS!M41,V:V,0),1)","v":{"$error":"#N/A"}},null,null,null,null,0]
[null,null,null,null,"INVALIDO",null,null,"INVALIDO",null,null,null,null,null,{"$f":"INDEX(U:V,MATCH(DADOS!M42,V:V,0),1)","v":{"$error":"#N/A"}},null,null,null,null,0]
[null,null,null,null,"INVALIDO",null,null,"INVALIDO",null,null,null,null,null,{"$f":"INDEX(U:V,MATCH(DADOS!M43,V:V,0),1)","v":{"$error":"#N/A"}},null,null,null,null,0]
[null,null,null,null,"INVALIDO",null,null,"INVALIDO",null,null,null,null,null,{"$f":"INDEX(U:V,MATCH(DADOS!M44,V:V,0),1)","v":{"$error":"#N/A"}},null,null,null,null,0]
[null,null,null,null,"INVALIDO",null,null,"INVALIDO",null,null,null,null,null,{"$f":"INDEX(U:V,MATCH(DADOS!M45,V:V,0),1)","v":{"$error":"#N/A"}},null,null,null,null,0]
[null,null,null,null,"INVALIDO",null,null,"INVALIDO",null,null,null,null,null,{"$f":"INDEX(U:V,MATCH(DADOS!M46,V:V,0),1)","v":{"$error":"#N/A"}},null,null,null,null,0]
[null,null,null,null,"INVALIDO",null,null,"INVALIDO",null,null,null,null,null,{"$f":"INDEX(U:V,MATCH(DADOS!M47,V:V,0),1)","v":{"$error":"#N/A"}},null,null,null,null,0]
[null,null,null,null,"INVALIDO",null,null,"INVALIDO",null,null,null,null,null,{"$f":"INDEX(U:V,MATCH(DADOS!M48,V:V,0),1)","v":{"$error":"#N/A"}},null,null,null,null,0]
[null,null,null,null,"INVALIDO",null,null,"INVALIDO",null,null,null,null,null,{"$f":"INDEX(U:V,MATCH(DADOS!M49,V:V,0),1)","v":{"$error":"#N/A"}},null,null,null,null,0]
[null,null,null,null,"INVALIDO",null,null,"INVALIDO",null,null,null,null,null,{"$f":"INDEX(U:V,MATCH(DADOS!M50,V:V,0),1)","v":{"$error":"#N/A"}},null,null,null,null,0]
[null,null,null,null,"INVALIDO",null,null,"INVALIDO",null,null,null,null,null,{"$f":"INDEX(U:V,MATCH(DADOS!M51,V:V,0),1)","v":{"$error":"#N/A"}},null,null,null,null,0]
[null,null,null,null,"INVALIDO",null,null,"INVALIDO",null,null,null,null,null,{"$f":"INDEX(U:V,MATCH(DADOS!M52,V:V,0),1)","v":{"$error":"#N/A"}},null,null,null,null,0]
[null,null,null,null,"INVALIDO",null,null,"INVALIDO",null,null,null,null,null,{"$f":"INDEX(U:V,MATCH(DADOS!M53,V:V,0),1)","v":{"$error":"#N/A"}},null,null,null,null,0]
[null,null,null,null,"INVALIDO",null,null,"INVALIDO",null,null,null,null,null,{"$f":"INDEX(U:V,MATCH(DADOS!M54,V:V,0),1)","v":{"$error":"#N/A"}},null,null,null,null,0]
[null,null,null,null,"INVALIDO",null,null,"INVALIDO",null,null,null,null,null,{"$f":"INDEX(U:V,MATCH(DADOS!M55,V:V,0),1)","v":{"$error":"#N/A"}},null,null,null,null,0]
[null,null,null,null,"INVALIDO",null,null,"INVALIDO",null,null,null,null,null,{"$f":"INDEX(U:V,MATCH(DADOS!M56,V:V,0),1)","v":{"$error":"#N/A"}},null,null,null,null,0]
[null,null,null,null,"INVALIDO",null,null,"INVALIDO",null,null,null,null,null,{"$f":"INDEX(U:V,MATCH(DADOS!M57,V:V,0),1)","v":{"$error":"#N/A"}},null,null,null,null,0]
[null,null,null,null,"INVALIDO",null,null,"INVALIDO",null,null,null,null,null,{"$f":"INDEX(U:V,MATCH(DADOS!M58,V:V,0),1)","v":{"$error":"#N/A"}},null,null,null,null,0]
[null,null,null,null,"INVALIDO",null,null,"INVALIDO",null,null,null,null,null,{"$f":"INDEX(U:V,MATCH(DADOS!M59,V:V,0),1)","v":{"$error":"#N/A"}},null,null,null,null,0]
[null,null,null,null,"INVALIDO",null,null,"INVALIDO",null,null,null,null,null,{"$f":"INDEX(U:V,MATCH(DADOS!M60,V:V,0),1)","v":{"$error":"#N/A"}},null,null,null,null,0]
[null,null,null,null,"INVALIDO",null,null,"INVALIDO",null,null,null,null,null,{"$f":"INDEX(U:V,MATCH(DADOS!M61,V:V,0),1)","v":{"$error":"#N/A"}},null,null,null,null,0]
[null,null,null,null,"INVALIDO",null,null,"INVALIDO",null,null,null,null,null,{"$f":"INDEX(U:V,MATCH(DADOS!M62,V:V,0),1)","v":{"$error":"#N/A"}},null,null,null,null,0]
[null,null,null,null,"INVALIDO",null,null,"INVALIDO",null,null,null,null,null,{"$f":"INDEX(U:V,MATCH(DADOS!M63,V:V,0),1)","v":{"$error":"#N/A"}},null,null,null,null,0]
[null,null,null,null,"INVALIDO",null,null,"INVALIDO",null,null,null,null,null,{"$f":"INDEX(U:V,MATCH(DADOS!M64,V:V,0),1)","v":{"$error":"#N/A"}},null,null,null,null,0]
[null,null,null,null,"INVALIDO",null,null,"INVALIDO",null,null,null,null,null,{"$f":"INDEX(U:V,MATCH(DADOS!M65,V:V,0),1)","v":{"$error":"#N/A"}},null,null,null,null,0]
[null,null,null,null,"INVALIDO",null,null,"INVALIDO",null,null,null,null,null,{"$f":"INDEX(U:V,MATCH(DADOS!M66,V:V,0),1)","v":{"$error":"#N/A"}},null,null,null,null,0]
[null,null,null,null,"INVALIDO",null,null,"INVALIDO",null,null,null,null,null,{"$f":"INDEX(U:V,MATCH(DADOS!M67,V:V,0),1)","v":{"$error":"#N/A"}},null,null,null,null,{"$f":"S67","v":0}]
[null,null,null,null,"INVALIDO",null,null,"INVALIDO",null,null,null,null,null,{"$f":"INDEX(U:V,MATCH(DADOS!M68,V:V,0),1)","v":{"$error":"#N/A"}},null,null,null,null,0]
[null,null,null,null,"INVALIDO",null,null,"INVALIDO",null,null,null,null,null,{"$f":"INDEX(U:V,MATCH(DADOS!M69,V:V,0),1)","v":{"$error":"#N/A"}},null,null,null,null,0]
[null,null,null,null,"INVALIDO",null,null,"INVALIDO",null,null,null,null,null,{"$f":"INDEX(U:V,MATCH(DADOS!M70,V:V,0),1)","v":{"$error":"#N/A"}},null,null,null,null,0]
[null,null,null,null,"INVALIDO",null,null,"INVALIDO",null,null,null,null,null,{"$f":"INDEX(U:V,MATCH(DADOS!M71,V:V,0),1)","v":{"$error":"#N/A"}},null,null,null,null,0]
[null,null,null,null,"INVALIDO",null,null,"INVALIDO",null,null,null,null,null,{"$f":"INDEX(U:V,MATCH(DADOS!M72,V:V,0),1)","v":{"$error":"#N/A"}},null,null,null,null,0]
[null,null,null,null,"INVALIDO",null,null,"INVALIDO",null,null,null,null,null,{"$f":"INDEX(U:V,MATCH(DADOS!M73,V:V,0),1)","v":{"$error":"#N/A"}},null,null,null,null,0]
[null,null,null,null,"INVALIDO",null,null,"INVALIDO",null,null,null,null,null,{"$f":"INDEX(U:V,MATCH(DADOS!M74,V:V,0),1)","v":{"$error":"#N/A"}},null,null,null,null,0]
[null,null,null,null,"INVALIDO",null,null,"INVALIDO",null,null,null,null,null,{"$f":"INDEX(U:V,MATCH(DADOS!M75,V:V,0),1)","v":{"$error":"#N/A"}},null,null,null,null,0]
[null,null,null,null,"INVALIDO",null,null,"INVALIDO",null,null,null,null,null,{"$f":"INDEX(U:V,MATCH(DADOS!M76,V:V,0),1)","v":{"$error":"#N/A"}},null,null,null,null,0]
[null,null,null,null,"INVALIDO",null,null,"INVALIDO",null,null,null,null,null,{"$f":"INDEX(U:V,MATCH(DADOS!M77,V:V,0),1)","v":{"$error":"#N/A"}},null,null,null,null,0]
[null,null,null,null,"INVALIDO",null,null,"INVALIDO",null,null,null,null,null,{"$f":"INDEX(U:V,MATCH(DADOS!M78,V:V,0),1)","v":{"$error":"#N/A"}},null,null,null,null,0]
[null,null,null,null,"INVALIDO",null,null,"INVALIDO",null,null,null,null,null,{"$f":"INDEX(U:V,MATCH(DADOS!M79,V:V,0),1)","v":{"$error":"#N/A"}},null,null,null,null,0]
[null,null,null,null,"INVALIDO",null,null,"INVALIDO",null,null,null,null,null,{"$f":"INDEX(U:V,MATCH(DADOS!M80,V:V,0),1)","v":{"$error":"#N/A"}},null,null,null,null,0]
[null,null,null,null,"INVALIDO",null,null,"INVALIDO",null,null,null,null,null,{"$f":"INDEX(U:V,MATCH(DADOS!M81,V:V,0),1)","v":{"$error":"#N/A"}},null,null,null,null,0]
[null,null,null,null,"INVALIDO",null,null,"INVALIDO",null,null,null,null,null,{"$f":"INDEX(U:V,MATCH(DADOS!M82,V:V,0),1)","v":{"$error":"#N/A"}},null,null,null,null,0]
[null,null,null,null,"INVALIDO",null,null,"INVALIDO",null,null,null,null,null,{"$f":"INDEX(U:V,MATCH(DADOS!M83,V:V,0),1)","v":{"$error":"#N/A"}},null,null,null,null,0]
[null,null,null,null,"INVALIDO",null,null,"INVALIDO",null,null,null,null,null,{"$f":"INDEX(U:V,MATCH(DADOS!M84,V:V,0),1)","v":{"$error":"#N/A"}},null,null,null,null,0]
[null,null,null,null,"INVALIDO",null,null,"INVALIDO",null,null,null,null,null,{"$f":"INDEX(U:V,MATCH(DADOS!M85,V:V,0),1)","v":{"$error":"#N/A"}},null,null,null,null,0]
[null,null,null,null,{"$f":"CPF(D86)","v":"INVALIDO"},null,null,{"$f":"PISPASEP(G86)","v":"INVALIDO"},null,null,null,null,null,{"$f":"INDEX(U:V,MATCH(DADOS!M86,V:V,0),1)","v":{"$error":"#N/A"}},null,null,null,null,0]
[null,null,null,null,"INVALIDO",null,null,"INVALIDO",null,null,null,null,null,{"$f":"INDEX(U:V,MATCH(DADOS!M87,V:V,0),1)","v":{"$error":"#N/A"}},null,null,null,null,0]
[null,null,null,null,"INVALIDO",null,null,"INVALIDO",null,null,null,null,null,{"$f":"INDEX(U:V,MATCH(DADOS!M88,V:V,0),1)","v":{"$error":"#N/A"}},null,null,null,null,0]
[null,null,null,null,"INVALIDO",null,null,"INVALIDO",null,null,null,null,null,{"$f":"INDEX(U:V,MATCH(DADOS!M89,V:V,0),1)","v":{"$error":"#N/A"}},null,null,null,null,0]
[null,null,null,null,"INVALIDO",null,null,"INVALIDO",null,null,null,null,null,{"$f":"INDEX(U:V,MATCH(DADOS!M90,V:V,0),1)","v":{"$error":"#N/A"}},null,null,null,null,0]
[null,null,null,null,"INVALIDO",null,null,"INVALIDO",null,null,null,null,null,{"$f":"INDEX(U:V,MATCH(DADOS!M91,V:V,0),1)","v":{"$error":"#N/A"}},null,null,null,null,0]
[null,null,null,null,"INVALIDO",null,null,"INVALIDO",null,null,null,null,null,{"$f":"INDEX(U:V,MATCH(DADOS!M92,V:V,0),1)","v":{"$error":"#N/A"}},null,null,null,null,0]
[null,null,null,null,"INVALIDO",null,null,"INVALIDO",null,null,null,null,null,{"$f":"INDEX(U:V,MATCH(DADOS!M93,V:V,0),1)","v":{"$error":"#N/A"}},null,null,null,null,0]
[null,null,null,null,"INVALIDO",null,null,"INVALIDO",null,null,null,null,null,{"$f":"INDEX(U:V,MATCH(DADOS!M94,V:V,0),1)","v":{"$error":"#N/A"}},null,null,null,null,0]
[null,null,null,null,"INVALIDO",null,null,"INVALIDO",null,null,null,null,null,{"$f":"INDEX(U:V,MATCH(DADOS!M95,V:V,0),1)","v":{"$error":"#N/A"}},null,null,null,null,0]
[null,null,null,null,"INVALIDO",null,null,"INVALIDO",null,null,null,null,null,{"$f":"INDEX(U:V,MATCH(DADOS!M96,V:V,0),1)","v":{"$error":"#N/A"}},null,null,null,null,0]
[null,null,null,null,"INVALIDO",null,null,"INVALIDO",null,null,null,null,null,{"$f":"INDEX(U:V,MATCH(DADOS!M97,V:V,0),1)","v":{"$error":"#N/A"}},null,null,null,null,0]
[null,null,null,null,"INVALIDO",null,null,"INVALIDO",null,null,null,null,null,{"$f":"INDEX(U:V,MATCH(DADOS!M98,V:V,0),1)","v":{"$error":"#N/A"}},null,null,null,null,0]
[null,null,null,null,"INVALIDO",null,null,"INVALIDO",null,null,null,null,null,{"$f":"INDEX(U:V,MATCH(DADOS!M99,V:V,0),1)","v":{"$error":"#N/A"}},null,null,null,null,0]
[null,null,null,null,"INVALIDO",null,null,"INVALIDO",null,null,null,null,null,{"$f":"INDEX(U:V,MATCH(DADOS!M100,V:V,0),1)","v":{"$error":"#N/A"}},null,null,null,null,0]
[null,null,null,null,"INVALIDO",null,null,"INVALIDO",null,null,null,null,null,{"$f":"INDEX(U:V,MATCH(DADOS!M101,V:V,0),1)","v":{"$error":"#N/A"}},null,null,null,null,0]
[null,null,null,null,"INVALIDO",null,null,"INVALIDO",null,null,null,null,null,{"$f":"INDEX(U:V,MATCH(DADOS!M102,V:V,0),1)","v":{"$error":"#N/A"}},null,null,null,null,0]
[null,null,null,null,"INVALIDO",null,null,"INVALIDO",null,null,null,null,null,{"$f":"INDEX(U:V,MATCH(DADOS!M103,V:V,0),1)","v":{"$error":"#N/A"}},null,null,null,null,0]
[null,null,null,null,"INVALIDO",null,null,"INVALIDO",null,null,null,null,null,{"$f":"INDEX(U:V,MATCH(DADOS!M104,V:V,0),1)","v":{"$error":"#N/A"}},null,null,null,null,0]
[null,null,null,null,"INVALIDO",null,null,"INVALIDO",null,null,null,null,null,{"$f":"INDEX(U:V,MATCH(DADOS!M105,V:V,0),1)","v":{"$error":"#N/A"}},null,null,null,null,0]
[null,null,null,null,"INVALIDO",null,null,"INVALIDO",null,null,null,null,null,{"$f":"INDEX(U:V,MATCH(DADOS!M106,V:V,0),1)","v":{"$error":"#N/A"}},null,null,null,null,0]
[null,null,null,null,"INVALIDO",null,null,"INVALIDO",null,null,null,null,null,{"$f":"INDEX(U:V,MATCH(DADOS!M107,V:V,0),1)","v":{"$error":"#N/A"}},null,null,null,null,0]
[null,null,null,null,"INVALIDO",null,null,"INVALIDO",null,null,null,null,null,{"$f":"INDEX(U:V,MATCH(DADOS!M108,V:V,0),1)","v":{"$error":"#N/A"}},null,null,null,null,0]
[null,null,null,null,"INVALIDO",null,null,"INVALIDO",null,null,null,null,null,{"$f":"INDEX(U:V,MATCH(DADOS!M109,V:V,0),1)","v":{"$error":"#N/A"}},null,null,null,null,0]
[null,null,null,null,"INVALIDO",null,null,"INVALIDO",null,null,null,null,null,{"$f":"INDEX(U:V,MATCH(DADOS!M110,V:V,0),1)","v":{"$error":"#N/A"}},null,null,null,null,0]
[null,null,null,null,"INVALIDO",null,null,"INVALIDO",null,null,null,null,null,{"$f":"INDEX(U:V,MATCH(DADOS!M111,V:V,0),1)","v":{"$error":"#N/A"}},null,null,null,null,0]
[null,null,null,null,"INVALIDO",null,null,"INVALIDO",null,null,null,null,null,{"$f":"INDEX(U:V,MATCH(DADOS!M112,V:V,0),1)","v":{"$error":"#N/A"}},null,null,null,null,0]
[null,null,null,null,"INVALIDO",null,null,"INVALIDO",null,null,null,null,null,{"$f":"INDEX(U:V,MATCH(DADOS!M113,V:V,0),1)","v":{"$error":"#N/A"}},null,null,null,null,0]
[null,null,null,null,"INVALIDO",null,null,"INVALIDO",null,null,null,null,null,{"$f":"INDEX(U:V,MATCH(DADOS!M114,V:V,0),1)","v":{"$error":"#N/A"}},null,null,null,null,0]
[null,null,null,null,"INVALIDO",null,null,"INVALIDO",null,null,null,null,null,{"$f":"INDEX(U:V,MATCH(DADOS!M115,V:V,0),1)","v":{"$error":"#N/A"}},null,null,null,null,0]
[null,null,null,null,"INVALIDO",null,null,"INVALIDO",null,null,null,null,null,{"$f":"INDEX(U:V,MATCH(DADOS!M116,V:V,0),1)","v":{"$error":"#N/A"}},null,null,null,null,0]
[null,null,null,null,"INVALIDO",null,null,"INVALIDO",null,null,null,null,null,{"$f":"INDEX(U:V,MATCH(DADOS!M117,V:V,0),1)","v":{"$error":"#N/A"}},null,null,null,null,0]
[null,null,null,null,"INVALIDO",null,null,"INVALIDO",null,null,null,null,null,{"$f":"INDEX(U:V,MATCH(DADOS!M118,V:V,0),1)","v":{"$error":"#N/A"}},null,null,null,null,0]
[null,null,null,null,"INVALIDO",null,null,"INVALIDO",null,null,null,null,null,{"$f":"INDEX(U:V,MATCH(DADOS!M119,V:V,0),1)","v":{"$error":"#N/A"}},null,null,null,null,0]
[null,null,null,null,"INVALIDO",null,null,"INVALIDO",null,null,null,null,null,{"$f":"INDEX(U:V,MATCH(DADOS!M120,V:V,0),1)","v":{"$error":"#N/A"}},null,null,null,null,0]
[null,null,null,null,"INVALIDO",null,null,"INVALIDO",null,null,null,null,null,{"$f":"INDEX(U:V,MATCH(DADOS!M121,V:V,0),1)","v":{"$error":"#N/A"}},null,null,null,null,0]
[null,null,null,null,"INVALIDO",null,null,"INVALIDO",null,null,null,null,null,{"$f":"INDEX(U:V,MATCH(DADOS!M122,V:V,0),1)","v":{"$error":"#N/A"}},null,null,null,null,0]
[null,null,null,null,"INVALIDO",null,null,"INVALIDO",null,null,null,null,null,{"$f":"INDEX(U:V,MATCH(DADOS!M123,V:V,0),1)","v":{"$error":"#N/A"}},null,null,null,null,0]
[null,null,null,null,"INVALIDO",null,null,"INVALIDO",null,null,null,null,null,{"$f":"INDEX(U:V,MATCH(DADOS!M124,V:V,0),1)","v":{"$error":"#N/A"}},null,null,null,null,0]
[null,null,null,null,"INVALIDO",null,null,"INVALIDO",null,null,null,null,null,{"$f":"INDEX(U:V,MATCH(DADOS!M125,V:V,0),1)","v":{"$error":"#N/A"}},null,null,null,null,0]
[null,null,null,null,"INVALIDO",null,null,"INVALIDO",null,null,null,null,null,{"$f":"INDEX(U:V,MATCH(DADOS!M126,V:V,0),1)","v":{"$error":"#N/A"}},null,null,null,null,0]
[null,null,null,null,"INVALIDO",null,null,"INVALIDO",null,null,null,null,null,{"$f":"INDEX(U:V,MATCH(DADOS!M127,V:V,0),1)","v":{"$error":"#N/A"}},null,null,null,null,0]
[null,null,null,null,"INVALIDO",null,null,"INVALIDO",null,null,null,null,null,{"$f":"INDEX(U:V,MATCH(DADOS!M128,V:V,0),1)","v":{"$error":"#N/A"}},null,null,null,null,0]
[null,null,null,null,"INVALIDO",null,null,"INVALIDO",null,null,null,null,null,{"$f":"INDEX(U:V,MATCH(DADOS!M129,V:V,0),1)","v":{"$error":"#N/A"}},null,null,null,null,0]
[null,null,null,null,"INVALIDO",null,null,"INVALIDO",null,null,null,null,null,{"$f":"INDEX(U:V,MATCH(DADOS!M130,V:V,0),1)","v":{"$error":"#N/A"}},null,null,null,null,0]
[null,null,null,null,"INVALIDO",null,null,"INVALIDO",null,null,null,null,null,{"$f":"INDEX(U:V,MATCH(DADOS!M131,V:V,0),1)","v":{"$error":"#N/A"}},null,null,null,null,{"$f":"S131","v":0}]
[null,null,null,null,"INVALIDO",null,null,"INVALIDO",null,null,null,null,null,{"$f":"INDEX(U:V,MATCH(DADOS!M132,V:V,0),1)","v":{"$error":"#N/A"}},null,null,null,null,0]
[null,null,null,null,"INVALIDO",null,null,"INVALIDO",null,null,null,null,null,{"$f":"INDEX(U:V,MATCH(DADOS!M133,V:V,0),1)","v":{"$error":"#N/A"}},null,null,null,null,0]
[null,null,null,null,"INVALIDO",null,null,"INVALIDO",null,null,null,null,null,{"$f":"INDEX(U:V,MATCH(DADOS!M134,V:V,0),1)","v":{"$error":"#N/A"}},null,null,null,null,0]
[null,null,null,null,"INVALIDO",null,null,"INVALIDO",null,null,null,null,null,{"$f":"INDEX(U:V,MATCH(DADOS!M135,V:V,0),1)","v":{"$error":"#N/A"}},null,null,null,null,0]
[null,null,null,null,"INVALIDO",null,null,"INVALIDO",null,null,null,null,null,{"$f":"INDEX(U:V,MATCH(DADOS!M136,V:V,0),1)","v":{"$error":"#N/A"}},null,null,null,null,0]
[null,null,null,null,"INVALIDO",null,null,"INVALIDO",null,null,null,null,null,{"$f":"INDEX(U:V,MATCH(DADOS!M137,V:V,0),1)","v":{"$error":"#N/A"}},null,null,null,null,0]
[null,null,null,null,"INVALIDO",null,null,"INVALIDO",null,null,null,null,null,{"$f":"INDEX(U:V,MATCH(DADOS!M138,V:V,0),1)","v":{"$error":"#N/A"}},null,null,null,null,0]
[null,null,null,null,"INVALIDO",null,null,"INVALIDO",null,null,null,null,null,{"$f":"INDEX(U:V,MATCH(DADOS!M139,V:V,0),1)","v":{"$error":"#N/A"}},null,null,null,null,0]
[null,null,null,null,"INVALIDO",null,null,"INVALIDO",null,null,null,null,null,{"$f":"INDEX(U:V,MATCH(DADOS!M140,V:V,0),1)","v":{"$error":"#N/A"}},null,null,null,null,0]
[null,null,null,null,"INVALIDO",null,null,"INVALIDO",null,null,null,null,null,{"$f":"INDEX(U:V,MATCH(DADOS!M141,V:V,0),1)","v":{"$error":"#N/A"}},null,null,null,null,0]
[null,null,null,null,"INVALIDO",null,null,"INVALIDO",null,null,null,null,null,{"$f":"INDEX(U:V,MATCH(DADOS!M142,V:V,0),1)","v":{"$error":"#N/A"}},null,null,null,null,0]
[null,null,null,null,"INVALIDO",null,null,"INVALIDO",null,null,null,null,null,{"$f":"INDEX(U:V,MATCH(DADOS!M143,V:V,0),1)","v":{"$error":"#N/A"}},null,null,null,null,0]
[null,null,null,null,"INVALIDO",null,null,"INVALIDO",null,null,null,null,null,{"$f":"INDEX(U:V,MATCH(DADOS!M144,V:V,0),1)","v":{"$error":"#N/A"}},null,null,null,null,0]
[null,null,null,null,"INVALIDO",null,null,"INVALIDO",null,null,null,null,null,{"$f":"INDEX(U:V,MATCH(DADOS!M145,V:V,0),1)","v":{"$error":"#N/A"}},null,null,null,null,0]
[null,null,null,null,"INVALIDO",null,null,"INVALIDO",null,null,null,null,null,{"$f":"INDEX(U:V,MATCH(DADOS!M146,V:V,0),1)","v":{"$error":"#N/A"}},null,null,null,null,0]
[null,null,null,null,"INVALIDO",null,null,"INVALIDO",null,null,null,null,null,{"$f":"INDEX(U:V,MATCH(DADOS!M147,V:V,0),1)","v":{"$error":"#N/A"}},null,null,null,null,0]
[null,null,null,null,"INVALIDO",null,null,"INVALIDO",null,null,null,null,null,{"$f":"INDEX(U:V,MATCH(DADOS!M148,V:V,0),1)","v":{"$error":"#N/A"}},null,null,null,null,0]
[null,null,null,null,"INVALIDO",null,null,"INVALIDO",null,null,null,null,null,{"$f":"INDEX(U:V,MATCH(DADOS!M149,V:V,0),1)","v":{"$error":"#N/A"}},null,null,null,null,0]
[null,null,null,null,{"$f":"CPF(D150)","v":"INVALIDO"},null,null,{"$f":"PISPASEP(G150)","v":"INVALIDO"},null,null,null,null,null,{"$f":"INDEX(U:V,MATCH(DADOS!M150,V:V,0),1)","v":{"$error":"#N/A"}},null,null,null,null,0]
[null,null,null,null,"INVALIDO",null,null,"INVALIDO",null,null,null,null,null,{"$f":"INDEX(U:V,MATCH(DADOS!M151,V:V,0),1)","v":{"$error":"#N/A"}},null,null,null,null,0]
[null,null,null,null,"INVALIDO",null,null,"INVALIDO",null,null,null,null,null,{"$f":"INDEX(U:V,MATCH(DADOS!M152,V:V,0),1)","v":{"$error":"#N/A"}},null,null,null,null,0]
[null,null,null,null,"INVALIDO",null,null,"INVALIDO",null,null,null,null,null,{"$f":"INDEX(U:V,MATCH(DADOS!M153,V:V,0),1)","v":{"$error":"#N/A"}},null,null,null,null,0]
[null,null,null,null,"INVALIDO",null,null,"INVALIDO",null,null,null,null,null,{"$f":"INDEX(U:V,MATCH(DADOS!M154,V:V,0),1)","v":{"$error":"#N/A"}},null,null,null,null,0]
[null,null,null,null,"INVALIDO",null,null,"INVALIDO",null,null,null,null,null,{"$f":"INDEX(U:V,MATCH(DADOS!M155,V:V,0),1)","v":{"$error":"#N/A"}},null,null,null,null,0]
[null,null,null,null,"INVALIDO",null,null,"INVALIDO",null,null,null,null,null,{"$f":"INDEX(U:V,MATCH(DADOS!M156,V:V,0),1)","v":{"$error":"#N/A"}},null,null,null,null,0]
[null,null,null,null,"INVALIDO",null,null,"INVALIDO",null,null,null,null,null,{"$f":"INDEX(U:V,MATCH(DADOS!M157,V:V,0),1)","v":{"$error":"#N/A"}},null,null,null,null,0]
[null,null,null,null,"INVALIDO",null,null,"INVALIDO",null,null,null,null,null,{"$f":"INDEX(U:V,MATCH(DADOS!M158,V:V,0),1)","v":{"$error":"#N/A"}},null,null,null,null,0]
[null,null,null,null,"INVALIDO",null,null,"INVALIDO",null,null,null,null,null,{"$f":"INDEX(U:V,MATCH(DADOS!M159,V:V,0),1)","v":{"$error":"#N/A"}},null,null,null,null,0]
[null,null,null,null,"INVALIDO",null,null,"INVALIDO",null,null,null,null,null,{"$f":"INDEX(U:V,MATCH(DADOS!M160,V:V,0),1)","v":{"$error":"#N/A"}},null,null,null,null,0]
[null,null,null,null,"INVALIDO",null,null,"INVALIDO",null,null,null,null,null,{"$f":"INDEX(U:V,MATCH(DADOS!M161,V:V,0),1)","v":{"$error":"#N/A"}},null,null,null,null,0]
[null,null,null,null,"INVALIDO",null,null,"INVALIDO",null,null,null,null,null,{"$f":"INDEX(U:V,MATCH(DADOS!M162,V:V,0),1)","v":{"$error":"#N/A"}},null,null,null,null,0]
[null,null,null,null,"INVALIDO",null,null,"INVALIDO",null,null,null,null,null,{"$f":"INDEX(U:V,MATCH(DADOS!M163,V:V,0),1)","v":{"$error":"#N/A"}},null,null,null,null,0]
[null,null,null,null,"INVALIDO",null,null,"INVALIDO",null,null,null,null,null,{"$f":"INDEX(U:V,MATCH(DADOS!M164,V:V,0),1)","v":{"$error":"#N/A"}},null,null,null,null,0]
[null,null,null,null,"INVALIDO",null,null,"INVALIDO",null,null,null,null,null,{"$f":"INDEX(U:V,MATCH(DADOS!M165,V:V,0),1)","v":{"$error":"#N/A"}},null,null,null,null,0]
[null,null,null,null,"INVALIDO",null,null,"INVALIDO",null,null,null,null,null,{"$f":"INDEX(U:V,MATCH(DADOS!M166,V:V,0),1)","v":{"$error":"#N/A"}},null,null,null,null,0]
[null,null,null,null,"INVALIDO",null,null,"INVALIDO",null,null,null,null,null,{"$f":"INDEX(U:V,MATCH(DADOS!M167,V:V,0),1)","v":{"$error":"#N/A"}},null,null,null,null,0]
[null,null,null,null,"INVALIDO",null,null,"INVALIDO",null,null,null,null,null,{"$f":"INDEX(U:V,MATCH(DADOS!M168,V:V,0),1)","v":{"$error":"#N/A"}},null,null,null,null,0]
[null,null,null,null,"INVALIDO",null,null,"INVALIDO",null,null,null,null,null,{"$f":"INDEX(U:V,MATCH(DADOS!M169,V:V,0),1)","v":{"$error":"#N/A"}},null,null,null,null,0]
[null,null,null,null,"INVALIDO",null,null,"INVALIDO",null,null,null,null,null,{"$f":"INDEX(U:V,MATCH(DADOS!M170,V:V,0),1)","v":{"$error":"#N/A"}},null,null,null,null,0]
[null,null,null,null,"INVALIDO",null,null,"INVALIDO",null,null,null,null,null,{"$f":"INDEX(U:V,MATCH(DADOS!M171,V:V,0),1)","v":{"$error":"#N/A"}},null,null,null,null,0]
[null,null,null,null,"INVALIDO",null,null,"INVALIDO",null,null,null,null,null,{"$f":"INDEX(U:V,MATCH(DADOS!M172,V:V,0),1)","v":{"$error":"#N/A"}},null,null,null,null,0]
[null,null,null,null,"INVALIDO",null,null,"INVALIDO",null,null,null,null,null,{"$f":"INDEX(U:V,MATCH(DADOS!M173,V:V,0),1)","v":{"$error":"#N/A"}},null,null,null,null,0]
[null,null,null,null,"INVALIDO",null,null,"INVALIDO",null,null,null,null,null,{"$f":"INDEX(U:V,MATCH(DADOS!M174,V:V,0),1)","v":{"$error":"#N/A"}},null,null,null,null,0]
[null,null,null,null,"INVALIDO",null,null,"INVALIDO",null,null,null,null,null,{"$f":"INDEX(U:V,MATCH(DADOS!M175,V:V,0),1)","v":{"$error":"#N/A"}},null,null,null,null,0]
[null,null,null,null,"INVALIDO",null,null,"INVALIDO",null,null,null,null,null,{"$f":"INDEX(U:V,MATCH(DADOS!M176,V:V,0),1)","v":{"$error":"#N/A"}},null,null,null,null,0]
[null,null,null,null,"INVALIDO",null,null,"INVALIDO",null,null,null,null,null,{"$f":"INDEX(U:V,MATCH(DADOS!M177,V:V,0),1)","v":{"$error":"#N/A"}},null,null,null,null,0]
[null,null,null,null,"INVALIDO",null,null,"INVALIDO",null,null,null,null,null,{"$f":"INDEX(U:V,MATCH(DADOS!M178,V:V,0),1)","v":{"$error":"#N/A"}},null,null,null,null,0]
[null,null,null,null,"INVALIDO",null,null,"INVALIDO",null,null,null,null,null,{"$f":"INDEX(U:V,MATCH(DADOS!M179,V:V,0),1)","v":{"$error":"#N/A"}},null,null,null,null,0]
[null,null,null,null,"INVALIDO",null,null,"INVALIDO",null,null,null,null,null,{"$f":"INDEX(U:V,MATCH(DADOS!M180,V:V,0),1)","v":{"$error":"#N/A"}},null,null,null,null,0]
[null,null,null,null,"INVALIDO",null,null,"INVALIDO",null,null,null,null,null,{"$f":"INDEX(U:V,MATCH(DADOS!M181,V:V,0),1)","v":{"$error":"#N/A"}},null,null,null,null,0]
[null,null,null,null,"INVALIDO",null,null,"INVALIDO",null,null,null,null,null,{"$f":"INDEX(U:V,MATCH(DADOS!M182,V:V,0),1)","v":{"$error":"#N/A"}},null,null,null,null,0]
[null,null,null,null,"INVALIDO",null,null,"INVALIDO",null,null,null,null,null,{"$f":"INDEX(U:V,MATCH(DADOS!M183,V:V,0),1)","v":{"$error":"#N/A"}},null,null,null,null,0]
[null,null,null,null,"INVALIDO",null,null,"INVALIDO",null,null,null,null,null,{"$f":"INDEX(U:V,MATCH(DADOS!M184,V:V,0),1)","v":{"$error":"#N/A"}},null,null,null,null,0]
[null,null,null,null,"INVALIDO",null,null,"INVALIDO",null,null,null,null,null,{"$f":"INDEX(U:V,MATCH(DADOS!M185,V:V,0),1)","v":{"$error":"#N/A"}},null,null,null,null,0]
[null,null,null,null,"INVALIDO",null,null,"INVALIDO",null,null,null,null,null,{"$f":"INDEX(U:V,MATCH(DADOS!M186,V:V,0),1)","v":{"$error":"#N/A"}},null,null,null,null,0]
[null,null,null,null,"INVALIDO",null,null,"INVALIDO",null,null,null,null,null,{"$f":"INDEX(U:V,MATCH(DADOS!M187,V:V,0),1)","v":{"$error":"#N/A"}},null,null,null,null,0]
[null,null,null,null,"INVALIDO",null,null,"INVALIDO",null,null,null,null,null,{"$f":"INDEX(U:V,MATCH(DADOS!M188,V:V,0),1)","v":{"$error":"#N/A"}},null,null,null,null,0]
[null,null,null,null,"INVALIDO",null,null,"INVALIDO",null,null,null,null,null,{"$f":"INDEX(U:V,MATCH(DADOS!M189,V:V,0),1)","v":{"$error":"#N/A"}},null,null,null,null,0]
[null,null,null,null,"INVALIDO",null,null,"INVALIDO",null,null,null,null,null,{"$f":"INDEX(U:V,MATCH(DADOS!M190,V:V,0),1)","v":{"$error":"#N/A"}},null,null,null,null,0]
[null,null,null,null,"INVALIDO",null,null,"INVALIDO",null,null,null,null,null,{"$f":"INDEX(U:V,MATCH(DADOS!M191,V:V,0),1)","v":{"$error":"#N/A"}},null,null,null,null,0]
[null,null,null,null,"INVALIDO",null,null,"INVALIDO",null,null,null,null,null,{"$f":"INDEX(U:V,MATCH(DADOS!M192,V:V,0),1)","v":{"$error":"#N/A"}},null,null,null,null,0]
[null,null,null,null,"INVALIDO",null,null,"INVALIDO",null,null,null,null,null,{"$f":"INDEX(U:V,MATCH(DADOS!M193,V:V,0),1)","v":{"$error":"#N/A"}},null,null,null,null,0]
[null,null,null,null,"INVALIDO",null,null,"INVALIDO",null,null,null,null,null,{"$f":"INDEX(U:V,MATCH(DADOS!M194,V:V,0),1)","v":{"$error":"#N/A"}},null,null,null,null,0]
[null,null,null,null,"INVALIDO",null,null,"INVALIDO",null,null,null,null,null,{"$f":"INDEX(U:V,MATCH(DADOS!M195,V:V,0),1)","v":{"$error":"#N/A"}},null,null,null,null,{"$f":"S195","v":0}]
[null,null,null,null,"INVALIDO",null,null,"INVALIDO",null,null,null,null,null,{"$f":"INDEX(U:V,MATCH(DADOS!M196,V:V,0),1)","v":{"$error":"#N/A"}},null,null,null,null,0]
[null,null,null,null,"INVALIDO",null,null,"INVALIDO",null,null,null,null,null,{"$f":"INDEX(U:V,MATCH(DADOS!M197,V:V,0),1)","v":{"$error":"#N/A"}},null,null,null,null,0]
[null,null,null,null,"INVALIDO",null,null,"INVALIDO",null,null,null,null,null,{"$f":"INDEX(U:V,MATCH(DADOS!M198,V:V,0),1)","v":{"$error":"#N/A"}},null,null,null,null,0]
[null,null,null,null,"INVALIDO",null,null,"INVALIDO",null,null,null,null,null,{"$f":"INDEX(U:V,MATCH(DADOS!M199,V:V,0),1)","v":{"$error":"#N/A"}},null,null,null,null,0]
[null,null,null,null,"INVALIDO",null,null,"INVALIDO",null,null,null,null,null,{"$f":"INDEX(U:V,MATCH(DADOS!M200,V:V,0),1)","v":{"$error":"#N/A"}},null,null,null,null,0]
[null,null,null,null,"INVALIDO",null,null,"INVALIDO",null,null,null,null,null,{"$f":"INDEX(U:V,MATCH(DADOS!M201,V:V,0),1)","v":{"$error":"#N/A"}},null,null,null,null,0]
[null,null,null,null,"INVALIDO",null,null,"INVALIDO",null,null,null,null,null,{"$f":"INDEX(U:V,MATCH(DADOS!M202,V:V,0),1)","v":{"$error":"#N/A"}},null,null,null,null,0]
[null,null,null,null,"INVALIDO",null,null,"INVALIDO",null,null,null,null,null,{"$f":"INDEX(U:V,MATCH(DADOS!M203,V:V,0),1)","v":{"$error":"#N/A"}},null,null,null,null,0]
[null,null,null,null,"INVALIDO",null,null,"INVALIDO",null,null,null,null,null,{"$f":"INDEX(U:V,MATCH(DADOS!M204,V:V,0),1)","v":{"$error":"#N/A"}},null,null,null,null,0]
[null,null,null,null,"INVALIDO",null,null,"INVALIDO",null,null,null,null,null,{"$f":"INDEX(U:V,MATCH(DADOS!M205,V:V,0),1)","v":{"$error":"#N/A"}},null,null,null,null,0]
[null,null,null,null,"INVALIDO",null,null,"INVALIDO",null,null,null,null,null,{"$f":"INDEX(U:V,MATCH(DADOS!M206,V:V,0),1)","v":{"$error":"#N/A"}},null,null,null,null,0]
[null,null,null,null,"INVALIDO",null,null,"INVALIDO",null,null,null,null,null,{"$f":"INDEX(U:V,MATCH(DADOS!M207,V:V,0),1)","v":{"$error":"#N/A"}},null,null,null,null,0]
[null,null,null,null,"INVALIDO",null,null,"INVALIDO",null,null,null,null,null,{"$f":"INDEX(U:V,MATCH(DADOS!M208,V:V,0),1)","v":{"$error":"#N/A"}},null,null,null,null,0]
[null,null,null,null,"INVALIDO",null,null,"INVALIDO",null,null,null,null,null,{"$f":"INDEX(U:V,MATCH(DADOS!M209,V:V,0),1)","v":{"$error":"#N/A"}},null,null,null,null,0]
[null,null,null,null,"INVALIDO",null,null,"INVALIDO",null,null,null,null,null,{"$f":"INDEX(U:V,MATCH(DADOS!M210,V:V,0),1)","v":{"$error":"#N/A"}},null,null,null,null,0]
[null,null,null,null,"INVALIDO",null,null,"INVALIDO",null,null,null,null,null,{"$f":"INDEX(U:V,MATCH(DADOS!M211,V:V,0),1)","v":{"$error":"#N/A"}},null,null,null,null,0]
[null,null,null,null,"INVALIDO",null,null,"INVALIDO",null,null,null,null,null,{"$f":"INDEX(U:V,MATCH(DADOS!M212,V:V,0),1)","v":{"$error":"#N/A"}},null,null,null,null,0]
[null,null,null,null,"INVALIDO",null,null,"INVALIDO",null,null,null,null,null,{"$f":"INDEX(U:V,MATCH(DADOS!M213,V:V,0),1)","v":{"$error":"#N/A"}},null,null,null,null,0]
[null,null,null,null,{"$f":"CPF(D214)","v":"INVALIDO"},null,null,{"$f":"PISPASEP(G214)","v":"INVALIDO"},null,null,null,null,null,{"$f":"INDEX(U:V,MATCH(DADOS!M214,V:V,0),1)","v":{"$error":"#N/A"}},null,null,null,null,0]
[null,null,null,null,"INVALIDO",null,null,"INVALIDO",null,null,null,null,null,{"$f":"INDEX(U:V,MATCH(DADOS!M215,V:V,0),1)","v":{"$error":"#N/A"}},null,null,null,null,0]
[null,null,null,null,"INVALIDO",null,null,"INVALIDO",null,null,null,null,null,{"$f":"INDEX(U:V,MATCH(DADOS!M216,V:V,0),1)","v":{"$error":"#N/A"}},null,null,null,null,0]
[null,null,null,null,"INVALIDO",null,null,"INVALIDO",null,null,null,null,null,{"$f":"INDEX(U:V,MATCH(DADOS!M217,V:V,0),1)","v":{"$error":"#N/A"}},null,null,null,null,0]
[null,null,null,null,"INVALIDO",null,null,"INVALIDO",null,null,null,null,null,{"$f":"INDEX(U:V,MATCH(DADOS!M218,V:V,0),1)","v":{"$error":"#N/A"}},null,null,null,null,0]
[null,null,null,null,"INVALIDO",null,null,"INVALIDO",null,null,null,null,null,{"$f":"INDEX(U:V,MATCH(DADOS!M219,V:V,0),1)","v":{"$error":"#N/A"}},null,null,null,null,0]
[null,null,null,null,"INVALIDO",null,null,"INVALIDO",null,null,null,null,null,{"$f":"INDEX(U:V,MATCH(DADOS!M220,V:V,0),1)","v":{"$error":"#N/A"}},null,null,null,null,0]
[null,null,null,null,"INVALIDO",null,null,"INVALIDO",null,null,null,null,null,{"$f":"INDEX(U:V,MATCH(DADOS!M221,V:V,0),1)","v":{"$error":"#N/A"}},null,null,null,null,0]
[null,null,null,null,"INVALIDO",null,null,"INVALIDO",null,null,null,null,null,{"$f":"INDEX(U:V,MATCH(DADOS!M222,V:V,0),1)","v":{"$error":"#N/A"}},null,null,null,null,0]
[null,null,null,null,"INVALIDO",null,null,"INVALIDO",null,null,null,null,null,{"$f":"INDEX(U:V,MATCH(DADOS!M223,V:V,0),1)","v":{"$error":"#N/A"}},null,null,null,null,0]
[null,null,null,null,"INVALIDO",null,null,"INVALIDO",null,null,null,null,null,{"$f":"INDEX(U:V,MATCH(DADOS!M224,V:V,0),1)","v":{"$error":"#N/A"}},null,null,null,null,0]
[null,null,null,null,"INVALIDO",null,null,"INVALIDO",null,null,null,null,null,{"$f":"INDEX(U:V,MATCH(DADOS!M225,V:V,0),1)","v":{"$error":"#N/A"}},null,null,null,null,0]
[null,null,null,null,"INVALIDO",null,null,"INVALIDO",null,null,null,null,null,{"$f":"INDEX(U:V,MATCH(DADOS!M226,V:V,0),1)","v":{"$error":"#N/A"}},null,null,null,null,0]
[null,null,null,null,"INVALIDO",null,null,"INVALIDO",null,null,null,null,null,{"$f":"INDEX(U:V,MATCH(DADOS!M227,V:V,0),1)","v":{"$error":"#N/A"}},null,null,null,null,0]
[null,null,null,null,"INVALIDO",null,null,"INVALIDO",null,null,null,null,null,{"$f":"INDEX(U:V,MATCH(DADOS!M228,V:V,0),1)","v":{"$error":"#N/A"}},null,null,null,null,0]
[null,null,null,null,"INVALIDO",null,null,"INVALIDO",null,null,null,null,null,{"$f":"INDEX(U:V,MATCH(DADOS!M229,V:V,0),1)","v":{"$error":"#N/A"}},null,null,null,null,0]
[null,null,null,null,"INVALIDO",null,null,"INVALIDO",null,null,null,null,null,{"$f":"INDEX(U:V,MATCH(DADOS!M230,V:V,0),1)","v":{"$error":"#N/A"}},null,null,null,null,0]
[null,null,null,null,"INVALIDO",null,null,"INVALIDO",null,null,null,null,null,{"$f":"INDEX(U:V,MATCH(DADOS!M231,V:V,0),1)","v":{"$error":"#N/A"}},null,null,null,null,0]
[null,null,null,null,"INVALIDO",null,null,"INVALIDO",null,null,null,null,null,{"$f":"INDEX(U:V,MATCH(DADOS!M232,V:V,0),1)","v":{"$error":"#N/A"}},null,null,null,null,0]
[null,null,null,null,"INVALIDO",null,null,"INVALIDO",null,null,null,null,null,{"$f":"INDEX(U:V,MATCH(DADOS!M233,V:V,0),1)","v":{"$error":"#N/A"}},null,null,null,null,0]
[null,null,null,null,"INVALIDO",null,null,"INVALIDO",null,null,null,null,null,{"$f":"INDEX(U:V,MATCH(DADOS!M234,V:V,0),1)","v":{"$error":"#N/A"}},null,null,null,null,0]
[null,null,null,null,"INVALIDO",null,null,"INVALIDO",null,null,null,null,null,{"$f":"INDEX(U:V,MATCH(DADOS!M235,V:V,0),1)","v":{"$error":"#N/A"}},null,null,null,null,0]
[null,null,null,null,"INVALIDO",null,null,"INVALIDO",null,null,null,null,null,{"$f":"INDEX(U:V,MATCH(DADOS!M236,V:V,0),1)","v":{"$error":"#N/A"}},null,null,null,null,0]
[null,null,null,null,"INVALIDO",null,null,"INVALIDO",null,null,null,null,null,{"$f":"INDEX(U:V,MATCH(DADOS!M237,V:V,0),1)","v":{"$error":"#N/A"}},null,null,null,null,0]
[null,null,null,null,"INVALIDO",null,null,"INVALIDO",null,null,null,null,null,{"$f":"INDEX(U:V,MATCH(DADOS!M238,V:V,0),1)","v":{"$error":"#N/A"}},null,null,null,null,0]
[null,null,null,null,"INVALIDO",null,null,"INVALIDO",null,null,null,null,null,{"$f":"INDEX(U:V,MATCH(DADOS!M239,V:V,0),1)","v":{"$error":"#N/A"}},null,null,null,null,0]
[null,null,null,null,"INVALIDO",null,null,"INVALIDO",null,null,null,null,null,{"$f":"INDEX(U:V,MATCH(DADOS!M240,V:V,0),1)","v":{"$error":"#N/A"}},null,null,null,null,0]
[null,null,null,null,"INVALIDO",null,null,"INVALIDO",null,null,null,null,null,{"$f":"INDEX(U:V,MATCH(DADOS!M241,V:V,0),1)","v":{"$error":"#N/A"}},null,null,null,null,0]
[null,null,null,null,"INVALIDO",null,null,"INVALIDO",null,null,null,null,null,{"$f":"INDEX(U:V,MATCH(DADOS!M242,V:V,0),1)","v":{"$error":"#N/A"}},null,null,null,null,0]
[null,null,null,null,"INVALIDO",null,null,"INVALIDO",null,null,null,null,null,{"$f":"INDEX(U:V,MATCH(DADOS!M243,V:V,0),1)","v":{"$error":"#N/A"}},null,null,null,null,0]
[null,null,null,null,"INVALIDO",null,null,"INVALIDO",null,null,null,null,null,{"$f":"INDEX(U:V,MATCH(DADOS!M244,V:V,0),1)","v":{"$error":"#N/A"}},null,null,null,null,0]
[null,null,null,null,"INVALIDO",null,null,"INVALIDO",null,null,null,null,null,{"$f":"INDEX(U:V,MATCH(DADOS!M245,V:V,0),1)","v":{"$error":"#N/A"}},null,null,null,null,0]
[null,null,null,null,"INVALIDO",null,null,"INVALIDO",null,null,null,null,null,{"$f":"INDEX(U:V,MATCH(DADOS!M246,V:V,0),1)","v":{"$error":"#N/A"}},null,null,null,null,0]
[null,null,null,null,"INVALIDO",null,null,"INVALIDO",null,null,null,null,null,{"$f":"INDEX(U:V,MATCH(DADOS!M247,V:V,0),1)","v":{"$error":"#N/A"}},null,null,null,null,0]
[null,null,null,null,"INVALIDO",null,null,"INVALIDO",null,null,null,null,null,{"$f":"INDEX(U:V,MATCH(DADOS!M248,V:V,0),1)","v":{"$error":"#N/A"}},null,null,null,null,0]
[null,null,null,null,"INVALIDO",null,null,"INVALIDO",null,null,null,null,null,{"$f":"INDEX(U:V,MATCH(DADOS!M249,V:V,0),1)","v":{"$error":"#N/A"}},null,null,null,null,0]
[null,null,null,null,"INVALIDO",null,null,"INVALIDO",null,null,null,null,null,{"$f":"INDEX(U:V,MATCH(DADOS!M250,V:V,0),1)","v":{"$error":"#N/A"}},null,null,null,null,0]
[null,null,null,null,"INVALIDO",null,null,"INVALIDO",null,null,null,null,null,{"$f":"INDEX(U:V,MATCH(DADOS!M251,V:V,0),1)","v":{"$error":"#N/A"}},null,null,null,null,0]
[null,null,null,null,"INVALIDO",null,null,"INVALIDO",null,null,null,null,null,{"$f":"INDEX(U:V,MATCH(DADOS!M252,V:V,0),1)","v":{"$error":"#N/A"}},null,null,null,null,0]
[null,null,null,null,"INVALIDO",null,null,"INVALIDO",null,null,null,null,null,{"$f":"INDEX(U:V,MATCH(DADOS!M253,V:V,0),1)","v":{"$error":"#N/A"}},null,null,null,null,0]
[null,null,null,null,"INVALIDO",null,null,"INVALIDO",null,null,null,null,null,{"$f":"INDEX(U:V,MATCH(DADOS!M254,V:V,0),1)","v":{"$error":"#N/A"}},null,null,null,null,0]
[null,null,null,null,"INVALIDO",null,null,"INVALIDO",null,null,null,null,null,{"$f":"INDEX(U:V,MATCH(DADOS!M255,V:V,0),1)","v":{"$error":"#N/A"}},null,null,null,null,0]
[null,null,null,null,"INVALIDO",null,null,"INVALIDO",null,null,null,null,null,{"$f":"INDEX(U:V,MATCH(DADOS!M256,V:V,0),1)","v":{"$error":"#N/A"}},null,null,null,null,0]
[null,null,null,null,"INVALIDO",null,null,"INVALIDO",null,null,null,null,null,{"$f":"INDEX(U:V,MATCH(DADOS!M257,V:V,0),1)","v":{"$error":"#N/A"}},null,null,null,null,0]
[null,null,null,null,"INVALIDO",null,null,"INVALIDO",null,null,null,null,null,{"$f":"INDEX(U:V,MATCH(DADOS!M258,V:V,0),1)","v":{"$error":"#N/A"}},null,null,null,null,0]
[null,null,null,null,"INVALIDO",null,null,"INVALIDO",null,null,null,null,null,{"$f":"INDEX(U:V,MATCH(DADOS!M259,V:V,0),1)","v":{"$error":"#N/A"}},null,null,null,null,{"$f":"S259","v":0}]
[null,null,null,null,"INVALIDO",null,null,"INVALIDO",null,null,null,null,null,{"$f":"INDEX(U:V,MATCH(DADOS!M260,V:V,0),1)","v":{"$error":"#N/A"}},null,null,null,null,0]
[null,null,null,null,"INVALIDO",null,null,"INVALIDO",null,null,null,null,null,{"$f":"INDEX(U:V,MATCH(DADOS!M261,V:V,0),1)","v":{"$error":"#N/A"}},null,null,null,null,0]
[null,null,null,null,"INVALIDO",null,null,"INVALIDO",null,null,null,null,null,{"$f":"INDEX(U:V,MATCH(DADOS!M262,V:V,0),1)","v":{"$error":"#N/A"}},null,null,null,null,0]
[null,null,null,null,"INVALIDO",null,null,"INVALIDO",null,null,null,null,null,{"$f":"INDEX(U:V,MATCH(DADOS!M263,V:V,0),1)","v":{"$error":"#N/A"}},null,null,null,null,0]
[null,null,null,null,"INVALIDO",null,null,"INVALIDO",null,null,null,null,null,{"$f":"INDEX(U:V,MATCH(DADOS!M264,V:V,0),1)","v":{"$error":"#N/A"}},null,null,null,null,0]
[null,null,null,null,"INVALIDO",null,null,"INVALIDO",null,null,null,null,null,{"$f":"INDEX(U:V,MATCH(DADOS!M265,V:V,0),1)","v":{"$error":"#N/A"}},null,null,null,null,0]
[null,null,null,null,"INVALIDO",null,null,"INVALIDO",null,null,null,null,null,{"$f":"INDEX(U:V,MATCH(DADOS!M266,V:V,0),1)","v":{"$error":"#N/A"}},null,null,null,null,0]
[null,null,null,null,"INVALIDO",null,null,"INVALIDO",null,null,null,null,null,{"$f":"INDEX(U:V,MATCH(DADOS!M267,V:V,0),1)","v":{"$error":"#N/A"}},null,null,null,null,0]
[null,null,null,null,"INVALIDO",null,null,"INVALIDO",null,null,null,null,null,{"$f":"INDEX(U:V,MATCH(DADOS!M268,V:V,0),1)","v":{"$error":"#N/A"}},null,null,null,null,0]
[null,null,null,null,"INVALIDO",null,null,"INVALIDO",null,null,null,null,null,{"$f":"INDEX(U:V,MATCH(DADOS!M269,V:V,0),1)","v":{"$error":"#N/A"}},null,null,null,null,0]
[null,null,null,null,"INVALIDO",null,null,"INVALIDO",null,null,null,null,null,{"$f":"INDEX(U:V,MATCH(DADOS!M270,V:V,0),1)","v":{"$error":"#N/A"}},null,null,null,null,0]
[null,null,null,null,"INVALIDO",null,null,"INVALIDO",null,null,null,null,null,{"$f":"INDEX(U:V,MATCH(DADOS!M271,V:V,0),1)","v":{"$error":"#N/A"}},null,null,null,null,0]
[null,null,null,null,"INVALIDO",null,null,"INVALIDO",null,null,null,null,null,{"$f":"INDEX(U:V,MATCH(DADOS!M272,V:V,0),1)","v":{"$error":"#N/A"}},null,null,null,null,0]
[null,null,null,null,"INVALIDO",null,null,"INVALIDO",null,null,null,null,null,{"$f":"INDEX(U:V,MATCH(DADOS!M273,V:V,0),1)","v":{"$error":"#N/A"}},null,null,null,null,0]
[null,null,null,null,"INVALIDO",null,null,"INVALIDO",null,null,null,null,null,{"$f":"INDEX(U:V,MATCH(DADOS!M274,V:V,0),1)","v":{"$error":"#N/A"}},null,null,null,null,0]
[null,null,null,null,"INVALIDO",null,null,"INVALIDO",null,null,null,null,null,{"$f":"INDEX(U:V,MATCH(DADOS!M275,V:V,0),1)","v":{"$error":"#N/A"}},null,null,null,null,0]
[null,null,null,null,"INVALIDO",null,null,"INVALIDO",null,null,null,null,null,{"$f":"INDEX(U:V,MATCH(DADOS!M276,V:V,0),1)","v":{"$error":"#N/A"}},null,null,null,null,0]
[null,null,null,null,"INVALIDO",null,null,"INVALIDO",null,null,null,null,null,{"$f":"INDEX(U:V,MATCH(DADOS!M277,V:V,0),1)","v":{"$error":"#N/A"}},null,null,null,null,0]
[null,null,null,null,{"$f":"CPF(D278)","v":"INVALIDO"},null,null,{"$f":"PISPASEP(G278)","v":"INVALIDO"},null,null,null,null,null,{"$f":"INDEX(U:V,MATCH(DADOS!M278,V:V,0),1)","v":{"$error":"#N/A"}},null,null,null,null,0]
[null,null,null,null,"INVALIDO",null,null,"INVALIDO",null,null,null,null,null,{"$f":"INDEX(U:V,MATCH(DADOS!M279,V:V,0),1)","v":{"$error":"#N/A"}},null,null,null,null,0]
[null,null,null,null,"INVALIDO",null,null,"INVALIDO",null,null,null,null,null,{"$f":"INDEX(U:V,MATCH(DADOS!M280,V:V,0),1)","v":{"$error":"#N/A"}},null,null,null,null,0]
[null,null,null,null,"INVALIDO",null,null,"INVALIDO",null,null,null,null,null,{"$f":"INDEX(U:V,MATCH(DADOS!M281,V:V,0),1)","v":{"$error":"#N/A"}},null,null,null,null,0]
[null,null,null,null,"INVALIDO",null,null,"INVALIDO",null,null,null,null,null,{"$f":"INDEX(U:V,MATCH(DADOS!M282,V:V,0),1)","v":{"$error":"#N/A"}},null,null,null,null,0]
[null,null,null,null,"INVALIDO",null,null,"INVALIDO",null,null,null,null,null,{"$f":"INDEX(U:V,MATCH(DADOS!M283,V:V,0),1)","v":{"$error":"#N/A"}},null,null,null,null,0]
[null,null,null,null,"INVALIDO",null,null,"INVALIDO",null,null,null,null,null,{"$f":"INDEX(U:V,MATCH(DADOS!M284,V:V,0),1)","v":{"$error":"#N/A"}},null,null,null,null,0]
[null,null,null,null,"INVALIDO",null,null,"INVALIDO",null,null,null,null,null,{"$f":"INDEX(U:V,MATCH(DADOS!M285,V:V,0),1)","v":{"$error":"#N/A"}},null,null,null,null,0]
[null,null,null,null,"INVALIDO",null,null,"INVALIDO",null,null,null,null,null,{"$f":"INDEX(U:V,MATCH(DADOS!M286,V:V,0),1)","v":{"$error":"#N/A"}},null,null,null,null,0]
[null,null,null,null,"INVALIDO",null,null,"INVALIDO",null,null,null,null,null,{"$f":"INDEX(U:V,MATCH(DADOS!M287,V:V,0),1)","v":{"$error":"#N/A"}},null,null,null,null,0]
[null,null,null,null,"INVALIDO",null,null,"INVALIDO",null,null,null,null,null,{"$f":"INDEX(U:V,MATCH(DADOS!M288,V:V,0),1)","v":{"$error":"#N/A"}},null,null,null,null,0]
[null,null,null,null,"INVALIDO",null,null,"INVALIDO",null,null,null,null,null,{"$f":"INDEX(U:V,MATCH(DADOS!M289,V:V,0),1)","v":{"$error":"#N/A"}},null,null,null,null,0]
[null,null,null,null,"INVALIDO",null,null,"INVALIDO",null,null,null,null,null,{"$f":"INDEX(U:V,MATCH(DADOS!M290,V:V,0),1)","v":{"$error":"#N/A"}},null,null,null,null,0]
[null,null,null,null,"INVALIDO",null,null,"INVALIDO",null,null,null,null,null,{"$f":"INDEX(U:V,MATCH(DADOS!M291,V:V,0),1)","v":{"$error":"#N/A"}},null,null,null,null,0]
[null,null,null,null,"INVALIDO",null,null,"INVALIDO",null,null,null,null,null,{"$f":"INDEX(U:V,MATCH(DADOS!M292,V:V,0),1)","v":{"$error":"#N/A"}},null,null,null,null,0]
[null,null,null,null,"INVALIDO",null,null,"INVALIDO",null,null,null,null,null,{"$f":"INDEX(U:V,MATCH(DADOS!M293,V:V,0),1)","v":{"$error":"#N/A"}},null,null,null,null,0]
[null,null,null,null,"INVALIDO",null,null,"INVALIDO",null,null,null,null,null,{"$f":"INDEX(U:V,MATCH(DADOS!M294,V:V,0),1)","v":{"$error":"#N/A"}},null,null,null,null,0]
[null,null,null,null,"INVALIDO",null,null,"INVALIDO",null,null,null,null,null,{"$f":"INDEX(U:V,MATCH(DADOS!M295,V:V,0),1)","v":{"$error":"#N/A"}},null,null,null,null,0]
[null,null,null,null,"INVALIDO",null,null,"INVALIDO",null,null,null,null,null,{"$f":"INDEX(U:V,MATCH(DADOS!M296,V:V,0),1)","v":{"$error":"#N/A"}},null,null,null,null,0]
[null,null,null,null,"INVALIDO",null,null,"INVALIDO",null,null,null,null,null,{"$f":"INDEX(U:V,MATCH(DADOS!M297,V:V,0),1)","v":{"$error":"#N/A"}},null,null,null,null,0]
[null,null,null,null,"INVALIDO",null,null,"INVALIDO",null,null,null,null,null,{"$f":"INDEX(U:V,MATCH(DADOS!M298,V:V,0),1)","v":{"$error":"#N/A"}},null,null,null,null,0]
[null,null,null,null,"INVALIDO",null,null,"INVALIDO",null,null,null,null,null,{"$f":"INDEX(U:V,MATCH(DADOS!M299,V:V,0),1)","v":{"$error":"#N/A"}},null,null,null,null,0]
[null,null,null,null,"INVALIDO",null,null,"INVALIDO",null,null,null,null,null,{"$f":"INDEX(U:V,MATCH(DADOS!M300,V:V,0),1)","v":{"$error":"#N/A"}},null,null,null,null,0]
[null,null,null,null,"INVALIDO",null,null,"INVALIDO",null,null,null,null,null,{"$f":"INDEX(U:V,MATCH(DADOS!M301,V:V,0),1)","v":{"$error":"#N/A"}},null,null,null,null,0]
[null,null,null,null,"INVALIDO",null,null,"INVALIDO",null,null,null,null,null,{"$f":"INDEX(U:V,MATCH(DADOS!M302,V:V,0),1)","v":{"$error":"#N/A"}},null,null,null,null,0]
[null,null,null,null,"INVALIDO",null,null,"INVALIDO",null,null,null,null,null,{"$f":"INDEX(U:V,MATCH(DADOS!M303,V:V,0),1)","v":{"$error":"#N/A"}},null,null,null,null,0]
[null,null,null,null,"INVALIDO",null,null,"INVALIDO",null,null,null,null,null,{"$f":"INDEX(U:V,MATCH(DADOS!M304,V:V,0),1)","v":{"$error":"#N/A"}},null,null,null,null,0]
[null,null,null,null,"INVALIDO",null,null,"INVALIDO",null,null,null,null,null,{"$f":"INDEX(U:V,MATCH(DADOS!M305,V:V,0),1)","v":{"$error":"#N/A"}},null,null,null,null,0]
[null,null,null,null,"INVALIDO",null,null,"INVALIDO",null,null,null,null,null,{"$f":"INDEX(U:V,MATCH(DADOS!M306,V:V,0),1)","v":{"$error":"#N/A"}},null,null,null,null,0]
[null,null,null,null,"INVALIDO",null,null,"INVALIDO",null,null,null,null,null,{"$f":"INDEX(U:V,MATCH(DADOS!M307,V:V,0),1)","v":{"$error":"#N/A"}},null,null,null,null,0]
[null,null,null,null,"INVALIDO",null,null,"INVALIDO",null,null,null,null,null,{"$f":"INDEX(U:V,MATCH(DADOS!M308,V:V,0),1)","v":{"$error":"#N/A"}},null,null,null,null,0]
[null,null,null,null,"INVALIDO",null,null,"INVALIDO",null,null,null,null,null,{"$f":"INDEX(U:V,MATCH(DADOS!M309,V:V,0),1)","v":{"$error":"#N/A"}},null,null,null,null,0]
[null,null,null,null,"INVALIDO",null,null,"INVALIDO",null,null,null,null,null,{"$f":"INDEX(U:V,MATCH(DADOS!M310,V:V,0),1)","v":{"$error":"#N/A"}},null,null,null,null,0]
[null,null,null,null,"INVALIDO",null,null,"INVALIDO",null,null,null,null,null,{"$f":"INDEX(U:V,MATCH(DADOS!M311,V:V,0),1)","v":{"$error":"#N/A"}},null,null,null,null,0]
[null,null,null,null,"INVALIDO",null,null,"INVALIDO",null,null,null,null,null,{"$f":"INDEX(U:V,MATCH(DADOS!M312,V:V,0),1)","v":{"$error":"#N/A"}},null,null,null,null,0]
[null,null,null,null,"INVALIDO",null,null,"INVALIDO",null,null,null,null,null,{"$f":"INDEX(U:V,MATCH(DADOS!M313,V:V,0),1)","v":{"$error":"#N/A"}},null,null,null,null,0]
[null,null,null,null,"INVALIDO",null,null,"INVALIDO",null,null,null,null,null,{"$f":"INDEX(U:V,MATCH(DADOS!M314,V:V,0),1)","v":{"$error":"#N/A"}},null,null,null,null,0]
[null,null,null,null,"INVALIDO",null,null,"INVALIDO",null,null,null,null,null,{"$f":"INDEX(U:V,MATCH(DADOS!M315,V:V,0),1)","v":{"$error":"#N/A"}},null,null,null,null,0]
[null,null,null,null,"INVALIDO",null,null,"INVALIDO",null,null,null,null,null,{"$f":"INDEX(U:V,MATCH(DADOS!M316,V:V,0),1)","v":{"$error":"#N/A"}},null,null,null,null,0]
[null,null,null,null,"INVALIDO",null,null,"INVALIDO",null,null,null,null,null,{"$f":"INDEX(U:V,MATCH(DADOS!M317,V:V,0),1)","v":{"$error":"#N/A"}},null,null,null,null,0]
[null,null,null,null,"INVALIDO",null,null,"INVALIDO",null,null,null,null,null,{"$f":"INDEX(U:V,MATCH(DADOS!M318,V:V,0),1)","v":{"$error":"#N/A"}},null,null,null,null,0]
[null,null,null,null,"INVALIDO",null,null,"INVALIDO",null,null,null,null,null,{"$f":"INDEX(U:V,MATCH(DADOS!M319,V:V,0),1)","v":{"$error":"#N/A"}},null,null,null,null,0]
[null,null,null,null,"INVALIDO",null,null,"INVALIDO",null,null,null,null,null,{"$f":"INDEX(U:V,MATCH(DADOS!M320,V:V,0),1)","v":{"$error":"#N/A"}},null,null,null,null,0]
[null,null,null,null,"INVALIDO",null,null,"INVALIDO",null,null,null,null,null,{"$f":"INDEX(U:V,MATCH(DADOS!M321,V:V,0),1)","v":{"$error":"#N/A"}},null,null,null,null,0]
[null,null,null,null,"INVALIDO",null,null,"INVALIDO",null,null,null,null,null,{"$f":"INDEX(U:V,MATCH(DADOS!M322,V:V,0),1)","v":{"$error":"#N/A"}},null,null,null,null,0]
[null,null,null,null,"INVALIDO",null,null,"INVALIDO",null,null,null,null,null,{"$f":"INDEX(U:V,MATCH(DADOS!M323,V:V,0),1)","v":{"$error":"#N/A"}},null,null,null,null,{"$f":"S323","v":0}]
[null,null,null,null,"INVALIDO",null,null,"INVALIDO",null,null,null,null,null,{"$f":"INDEX(U:V,MATCH(DADOS!M324,V:V,0),1)","v":{"$error":"#N/A"}},null,null,null,null,0]
[null,null,null,null,"INVALIDO",null,null,"INVALIDO",null,null,null,null,null,{"$f":"INDEX(U:V,MATCH(DADOS!M325,V:V,0),1)","v":{"$error":"#N/A"}},null,null,null,null,0]
[null,null,null,null,"INVALIDO",null,null,"INVALIDO",null,null,null,null,null,{"$f":"INDEX(U:V,MATCH(DADOS!M326,V:V,0),1)","v":{"$error":"#N/A"}},null,null,null,null,0]
[null,null,null,null,"INVALIDO",null,null,"INVALIDO",null,null,null,null,null,{"$f":"INDEX(U:V,MATCH(DADOS!M327,V:V,0),1)","v":{"$error":"#N/A"}},null,null,null,null,0]
[null,null,null,null,"INVALIDO",null,null,"INVALIDO",null,null,null,null,null,{"$f":"INDEX(U:V,MATCH(DADOS!M328,V:V,0),1)","v":{"$error":"#N/A"}},null,null,null,null,0]
[null,null,null,null,"INVALIDO",null,null,"INVALIDO",null,null,null,null,null,{"$f":"INDEX(U:V,MATCH(DADOS!M329,V:V,0),1)","v":{"$error":"#N/A"}},null,null,null,null,0]
[null,null,null,null,"INVALIDO",null,null,"INVALIDO",null,null,null,null,null,{"$f":"INDEX(U:V,MATCH(DADOS!M330,V:V,0),1)","v":{"$error":"#N/A"}},null,null,null,null,0]
[null,null,null,null,"INVALIDO",null,null,"INVALIDO",null,null,null,null,null,{"$f":"INDEX(U:V,MATCH(DADOS!M331,V:V,0),1)","v":{"$error":"#N/A"}},null,null,null,null,0]
[null,null,null,null,"INVALIDO",null,null,"INVALIDO",null,null,null,null,null,{"$f":"INDEX(U:V,MATCH(DADOS!M332,V:V,0),1)","v":{"$error":"#N/A"}},null,null,null,null,0]
[null,null,null,null,"INVALIDO",null,null,"INVALIDO",null,null,null,null,null,{"$f":"INDEX(U:V,MATCH(DADOS!M333,V:V,0),1)","v":{"$error":"#N/A"}},null,null,null,null,0]
[null,null,null,null,"INVALIDO",null,null,"INVALIDO",null,null,null,null,null,{"$f":"INDEX(U:V,MATCH(DADOS!M334,V:V,0),1)","v":{"$error":"#N/A"}},null,null,null,null,0]
[null,null,null,null,"INVALIDO",null,null,"INVALIDO",null,null,null,null,null,{"$f":"INDEX(U:V,MATCH(DADOS!M335,V:V,0),1)","v":{"$error":"#N/A"}},null,null,null,null,0]
[null,null,null,null,"INVALIDO",null,null,"INVALIDO",null,null,null,null,null,{"$f":"INDEX(U:V,MATCH(DADOS!M336,V:V,0),1)","v":{"$error":"#N/A"}},null,null,null,null,0]
[null,null,null,null,"INVALIDO",null,null,"INVALIDO",null,null,null,null,null,{"$f":"INDEX(U:V,MATCH(DADOS!M337,V:V,0),1)","v":{"$error":"#N/A"}},null,null,null,null,0]
[null,null,null,null,"INVALIDO",null,null,"INVALIDO",null,null,null,null,null,{"$f":"INDEX(U:V,MATCH(DADOS!M338,V:V,0),1)","v":{"$error":"#N/A"}},null,null,null,null,0]
[null,null,null,null,"INVALIDO",null,null,"INVALIDO",null,null,null,null,null,{"$f":"INDEX(U:V,MATCH(DADOS!M339,V:V,0),1)","v":{"$error":"#N/A"}},null,null,null,null,0]
[null,null,null,null,"INVALIDO",null,null,"INVALIDO",null,null,null,null,null,{"$f":"INDEX(U:V,MATCH(DADOS!M340,V:V,0),1)","v":{"$error":"#N/A"}},null,null,null,null,0]
[null,null,null,null,"INVALIDO",null,null,"INVALIDO",null,null,null,null,null,{"$f":"INDEX(U:V,MATCH(DADOS!M341,V:V,0),1)","v":{"$error":"#N/A"}},null,null,null,null,0]
[null,null,null,null,{"$f":"CPF(D342)","v":"INVALIDO"},null,null,{"$f":"PISPASEP(G342)","v":"INVALIDO"},null,null,null,null,null,{"$f":"INDEX(U:V,MATCH(DADOS!M342,V:V,0),1)","v":{"$error":"#N/A"}},null,null,null,null,0]
[null,null,null,null,"INVALIDO",null,null,"INVALIDO",null,null,null,null,null,{"$f":"INDEX(U:V,MATCH(DADOS!M343,V:V,0),1)","v":{"$error":"#N/A"}},null,null,null,null,0]
[null,null,null,null,"INVALIDO",null,null,"INVALIDO",null,null,null,null,null,{"$f":"INDEX(U:V,MATCH(DADOS!M344,V:V,0),1)","v":{"$error":"#N/A"}},null,null,null,null,0]
[null,null,null,null,"INVALIDO",null,null,"INVALIDO",null,null,null,null,null,{"$f":"INDEX(U:V,MATCH(DADOS!M345,V:V,0),1)","v":{"$error":"#N/A"}},null,null,null,null,0]
[null,null,null,null,"INVALIDO",null,null,"INVALIDO",null,null,null,null,null,{"$f":"INDEX(U:V,MATCH(DADOS!M346,V:V,0),1)","v":{"$error":"#N/A"}},null,null,null,null,0]
[null,null,null,null,"INVALIDO",null,null,"INVALIDO",null,null,null,null,null,{"$f":"INDEX(U:V,MATCH(DADOS!M347,V:V,0),1)","v":{"$error":"#N/A"}},null,null,null,null,0]
[null,null,null,null,"INVALIDO",null,null,"INVALIDO",null,null,null,null,null,{"$f":"INDEX(U:V,MATCH(DADOS!M348,V:V,0),1)","v":{"$error":"#N/A"}},null,null,null,null,0]
[null,null,null,null,"INVALIDO",null,null,"INVALIDO",null,null,null,null,null,{"$f":"INDEX(U:V,MATCH(DADOS!M349,V:V,0),1)","v":{"$error":"#N/A"}},null,null,null,null,0]
[null,null,null,null,"INVALIDO",null,null,"INVALIDO",null,null,null,null,null,{"$f":"INDEX(U:V,MATCH(DADOS!M350,V:V,0),1)","v":{"$error":"#N/A"}},null,null,null,null,0]
[null,null,null,null,"INVALIDO",null,null,"INVALIDO",null,null,null,null,null,{"$f":"INDEX(U:V,MATCH(DADOS!M351,V:V,0),1)","v":{"$error":"#N/A"}},null,null,null,null,0]
[null,null,null,null,"INVALIDO",null,null,"INVALIDO",null,null,null,null,null,{"$f":"INDEX(U:V,MATCH(DADOS!M352,V:V,0),1)","v":{"$error":"#N/A"}},null,null,null,null,0]
[null,null,null,null,"INVALIDO",null,null,"INVALIDO",null,null,null,null,null,{"$f":"INDEX(U:V,MATCH(DADOS!M353,V:V,0),1)","v":{"$error":"#N/A"}},null,null,null,null,0]
[null,null,null,null,"INVALIDO",null,null,"INVALIDO",null,null,null,null,null,{"$f":"INDEX(U:V,MATCH(DADOS!M354,V:V,0),1)","v":{"$error":"#N/A"}},null,null,null,null,0]
[null,null,null,null,"INVALIDO",null,null,"INVALIDO",null,null,null,null,null,{"$f":"INDEX(U:V,MATCH(DADOS!M355,V:V,0),1)","v":{"$error":"#N/A"}},null,null,null,null,0]
[null,null,null,null,"INVALIDO",null,null,"INVALIDO",null,null,null,null,null,{"$f":"INDEX(U:V,MATCH(DADOS!M356,V:V,0),1)","v":{"$error":"#N/A"}},null,null,null,null,0]
[null,null,null,null,"INVALIDO",null,null,"INVALIDO",null,null,null,null,null,{"$f":"INDEX(U:V,MATCH(DADOS!M357,V:V,0),1)","v":{"$error":"#N/A"}},null,null,null,null,0]
[null,null,null,null,"INVALIDO",null,null,"INVALIDO",null,null,null,null,null,{"$f":"INDEX(U:V,MATCH(DADOS!M358,V:V,0),1)","v":{"$error":"#N/A"}},null,null,null,null,0]
[null,null,null,null,"INVALIDO",null,null,"INVALIDO",null,null,null,null,null,{"$f":"INDEX(U:V,MATCH(DADOS!M359,V:V,0),1)","v":{"$error":"#N/A"}},null,null,null,null,0]
[null,null,null,null,"INVALIDO",null,null,"INVALIDO",null,null,null,null,null,{"$f":"INDEX(U:V,MATCH(DADOS!M360,V:V,0),1)","v":{"$error":"#N/A"}},null,null,null,null,0]
[null,null,null,null,"INVALIDO",null,null,"INVALIDO",null,null,null,null,null,{"$f":"INDEX(U:V,MATCH(DADOS!M361,V:V,0),1)","v":{"$error":"#N/A"}},null,null,null,null,0]
[null,null,null,null,"INVALIDO",null,null,"INVALIDO",null,null,null,null,null,{"$f":"INDEX(U:V,MATCH(DADOS!M362,V:V,0),1)","v":{"$error":"#N/A"}},null,null,null,null,0]
[null,null,null,null,"INVALIDO",null,null,"INVALIDO",null,null,null,null,null,{"$f":"INDEX(U:V,MATCH(DADOS!M363,V:V,0),1)","v":{"$error":"#N/A"}},null,null,null,null,0]
[null,null,null,null,"INVALIDO",null,null,"INVALIDO",null,null,null,null,null,{"$f":"INDEX(U:V,MATCH(DADOS!M364,V:V,0),1)","v":{"$error":"#N/A"}},null,null,null,null,0]
[null,null,null,null,"INVALIDO",null,null,"INVALIDO",null,null,null,null,null,{"$f":"INDEX(U:V,MATCH(DADOS!M365,V:V,0),1)","v":{"$error":"#N/A"}},null,null,null,null,0]
[null,null,null,null,"INVALIDO",null,null,"INVALIDO",null,null,null,null,null,{"$f":"INDEX(U:V,MATCH(DADOS!M366,V:V,0),1)","v":{"$error":"#N/A"}},null,null,null,null,0]
[null,null,null,null,"INVALIDO",null,null,"INVALIDO",null,null,null,null,null,{"$f":"INDEX(U:V,MATCH(DADOS!M367,V:V,0),1)","v":{"$error":"#N/A"}},null,null,null,null,0]
[null,null,null,null,"INVALIDO",null,null,"INVALIDO",null,null,null,null,null,{"$f":"INDEX(U:V,MATCH(DADOS!M368,V:V,0),1)","v":{"$error":"#N/A"}},null,null,null,null,0]
[null,null,null,null,"INVALIDO",null,null,"INVALIDO",null,null,null,null,null,{"$f":"INDEX(U:V,MATCH(DADOS!M369,V:V,0),1)","v":{"$error":"#N/A"}},null,null,null,null,0]
[null,null,null,null,"INVALIDO",null,null,"INVALIDO",null,null,null,null,null,{"$f":"INDEX(U:V,MATCH(DADOS!M370,V:V,0),1)","v":{"$error":"#N/A"}},null,null,null,null,0]
[null,null,null,null,"INVALIDO",null,null,"INVALIDO",null,null,null,null,null,{"$f":"INDEX(U:V,MATCH(DADOS!M371,V:V,0),1)","v":{"$error":"#N/A"}},null,null,null,null,0]
[null,null,null,null,"INVALIDO",null,null,"INVALIDO",null,null,null,null,null,{"$f":"INDEX(U:V,MATCH(DADOS!M372,V:V,0),1)","v":{"$error":"#N/A"}},null,null,null,null,0]
[null,null,null,null,"INVALIDO",null,null,"INVALIDO",null,null,null,null,null,{"$f":"INDEX(U:V,MATCH(DADOS!M373,V:V,0),1)","v":{"$error":"#N/A"}},null,null,null,null,0]
[null,null,null,null,"INVALIDO",null,null,"INVALIDO",null,null,null,null,null,{"$f":"INDEX(U:V,MATCH(DADOS!M374,V:V,0),1)","v":{"$error":"#N/A"}},null,null,null,null,0]
[null,null,null,null,"INVALIDO",null,null,"INVALIDO",null,null,null,null,null,{"$f":"INDEX(U:V,MATCH(DADOS!M375,V:V,0),1)","v":{"$error":"#N/A"}},null,null,null,null,0]
[null,null,null,null,"INVALIDO",null,null,"INVALIDO",null,null,null,null,null,{"$f":"INDEX(U:V,MATCH(DADOS!M376,V:V,0),1)","v":{"$error":"#N/A"}},null,null,null,null,0]
[null,null,null,null,"INVALIDO",null,null,"INVALIDO",null,null,null,null,null,{"$f":"INDEX(U:V,MATCH(DADOS!M377,V:V,0),1)","v":{"$error":"#N/A"}},null,null,null,null,0]
[null,null,null,null,"INVALIDO",null,null,"INVALIDO",null,null,null,null,null,{"$f":"INDEX(U:V,MATCH(DADOS!M378,V:V,0),1)","v":{"$error":"#N/A"}},null,null,null,null,0]
[null,null,null,null,"INVALIDO",null,null,"INVALIDO",null,null,null,null,null,{"$f":"INDEX(U:V,MATCH(DADOS!M379,V:V,0),1)","v":{"$error":"#N/A"}},null,null,null,null,0]
[null,null,null,null,"INVALIDO",null,null,"INVALIDO",null,null,null,null,null,{"$f":"INDEX(U:V,MATCH(DADOS!M380,V:V,0),1)","v":{"$error":"#N/A"}},null,null,null,null,0]
[null,null,null,null,"INVALIDO",null,null,"INVALIDO",null,null,null,null,null,{"$f":"INDEX(U:V,MATCH(DADOS!M381,V:V,0),1)","v":{"$error":"#N/A"}},null,null,null,null,0]
[null,null,null,null,"INVALIDO",null,null,"INVALIDO",null,null,null,null,null,{"$f":"INDEX(U:V,MATCH(DADOS!M382,V:V,0),1)","v":{"$error":"#N/A"}},null,null,null,null,0]
[null,null,null,null,"INVALIDO",null,null,"INVALIDO",null,null,null,null,null,{"$f":"INDEX(U:V,MATCH(DADOS!M383,V:V,0),1)","v":{"$error":"#N/A"}},null,null,null,null,0]
[null,null,null,null,"INVALIDO",null,null,"INVALIDO",null,null,null,null,null,{"$f":"INDEX(U:V,MATCH(DADOS!M384,V:V,0),1)","v":{"$error":"#N/A"}},null,null,null,null,0]
[null,null,null,null,"INVALIDO",null,null,"INVALIDO",null,null,null,null,null,{"$f":"INDEX(U:V,MATCH(DADOS!M385,V:V,0),1)","v":{"$error":"#N/A"}},null,null,null,null,0]
[null,null,null,null,"INVALIDO",null,null,"INVALIDO",null,null,null,null,null,{"$f":"INDEX(U:V,MATCH(DADOS!M386,V:V,0),1)","v":{"$error":"#N/A"}},null,null,null,null,0]
[null,null,null,null,"INVALIDO",null,null,"INVALIDO",null,null,null,null,null,{"$f":"INDEX(U:V,MATCH(DADOS!M387,V:V,0),1)","v":{"$error":"#N/A"}},null,null,null,null,{"$f":"S387","v":0}]
[null,null,null,null,"INVALIDO",null,null,"INVALIDO",null,null,null,null,null,{"$f":"INDEX(U:V,MATCH(DADOS!M388,V:V,0),1)","v":{"$error":"#N/A"}},null,null,null,null,0]
[null,null,null,null,"INVALIDO",null,null,"INVALIDO",null,null,null,null,null,{"$f":"INDEX(U:V,MATCH(DADOS!M389,V:V,0),1)","v":{"$error":"#N/A"}},null,null,null,null,0]
[null,null,null,null,"INVALIDO",null,null,"INVALIDO",null,null,null,null,null,{"$f":"INDEX(U:V,MATCH(DADOS!M390,V:V,0),1)","v":{"$error":"#N/A"}},null,null,null,null,0]
[null,null,null,null,"INVALIDO",null,null,"INVALIDO",null,null,null,null,null,{"$f":"INDEX(U:V,MATCH(DADOS!M391,V:V,0),1)","v":{"$error":"#N/A"}},null,null,null,null,0]
[null,null,null,null,"INVALIDO",null,null,"INVALIDO",null,null,null,null,null,{"$f":"INDEX(U:V,MATCH(DADOS!M392,V:V,0),1)","v":{"$error":"#N/A"}},null,null,null,null,0]
[null,null,null,null,"INVALIDO",null,null,"INVALIDO",null,null,null,null,null,{"$f":"INDEX(U:V,MATCH(DADOS!M393,V:V,0),1)","v":{"$error":"#N/A"}},null,null,null,null,0]
[null,null,null,null,"INVALIDO",null,null,"INVALIDO",null,null,null,null,null,{"$f":"INDEX(U:V,MATCH(DADOS!M394,V:V,0),1)","v":{"$error":"#N/A"}},null,null,null,null,0]
[null,null,null,null,"INVALIDO",null,null,"INVALIDO",null,null,null,null,null,{"$f":"INDEX(U:V,MATCH(DADOS!M395,V:V,0),1)","v":{"$error":"#N/A"}},null,null,null,null,0]
[null,null,null,null,"INVALIDO",null,null,"INVALIDO",null,null,null,null,null,{"$f":"INDEX(U:V,MATCH(DADOS!M396,V:V,0),1)","v":{"$error":"#N/A"}},null,null,null,null,0]
[null,null,null,null,"INVALIDO",null,null,"INVALIDO",null,null,null,null,null,{"$f":"INDEX(U:V,MATCH(DADOS!M397,V:V,0),1)","v":{"$error":"#N/A"}},null,null,null,null,0]
[null,null,null,null,"INVALIDO",null,null,"INVALIDO",null,null,null,null,null,{"$f":"INDEX(U:V,MATCH(DADOS!M398,V:V,0),1)","v":{"$error":"#N/A"}},null,null,null,null,0]
[null,null,null,null,"INVALIDO",null,null,"INVALIDO",null,null,null,null,null,{"$f":"INDEX(U:V,MATCH(DADOS!M399,V:V,0),1)","v":{"$error":"#N/A"}},null,null,null,null,0]
[null,null,null,null,"INVALIDO",null,null,"INVALIDO",null,null,null,null,null,{"$f":"INDEX(U:V,MATCH(DADOS!M400,V:V,0),1)","v":{"$error":"#N/A"}},null,null,null,null,0]
[null,null,null,null,"INVALIDO",null,null,"INVALIDO",null,null,null,null,null,{"$f":"INDEX(U:V,MATCH(DADOS!M401,V:V,0),1)","v":{"$error":"#N/A"}},null,null,null,null,0]
[null,null,null,null,"INVALIDO",null,null,"INVALIDO",null,null,null,null,null,{"$f":"INDEX(U:V,MATCH(DADOS!M402,V:V,0),1)","v":{"$error":"#N/A"}},null,null,null,null,0]
[null,null,null,null,"INVALIDO",null,null,"INVALIDO",null,null,null,null,null,{"$f":"INDEX(U:V,MATCH(DADOS!M403,V:V,0),1)","v":{"$error":"#N/A"}},null,null,null,null,0]
[null,null,null,null,"INVALIDO",null,null,"INVALIDO",null,null,null,null,null,{"$f":"INDEX(U:V,MATCH(DADOS!M404,V:V,0),1)","v":{"$error":"#N/A"}},null,null,null,null,0]
[null,null,null,null,"INVALIDO",null,null,"INVALIDO",null,null,null,null,null,{"$f":"INDEX(U:V,MATCH(DADOS!M405,V:V,0),1)","v":{"$error":"#N/A"}},null,null,null,null,0]
[null,null,null,null,{"$f":"CPF(D406)","v":"INVALIDO"},null,null,{"$f":"PISPASEP(G406)","v":"INVALIDO"},null,null,null,null,null,{"$f":"INDEX(U:V,MATCH(DADOS!M406,V:V,0),1)","v":{"$error":"#N/A"}},null,null,null,null,0]
[null,null,null,null,"INVALIDO",null,null,"INVALIDO",null,null,null,null,null,{"$f":"INDEX(U:V,MATCH(DADOS!M407,V:V,0),1)","v":{"$error":"#N/A"}},null,null,null,null,0]
[null,null,null,null,"INVALIDO",null,null,"INVALIDO",null,null,null,null,null,{"$f":"INDEX(U:V,MATCH(DADOS!M408,V:V,0),1)","v":{"$error":"#N/A"}},null,null,null,null,0]
[null,null,null,null,"INVALIDO",null,null,"INVALIDO",null,null,null,null,null,{"$f":"INDEX(U:V,MATCH(DADOS!M409,V:V,0),1)","v":{"$error":"#N/A"}},null,null,null,null,0]
[null,null,null,null,"INVALIDO",null,null,"INVALIDO",null,null,null,null,null,{"$f":"INDEX(U:V,MATCH(DADOS!M410,V:V,0),1)","v":{"$error":"#N/A"}},null,null,null,null,0]
[null,null,null,null,"INVALIDO",null,null,"INVALIDO",null,null,null,null,null,{"$f":"INDEX(U:V,MATCH(DADOS!M411,V:V,0),1)","v":{"$error":"#N/A"}},null,null,null,null,0]
[null,null,null,null,"INVALIDO",null,null,"INVALIDO",null,null,null,null,null,{"$f":"INDEX(U:V,MATCH(DADOS!M412,V:V,0),1)","v":{"$error":"#N/A"}},null,null,null,null,0]
[null,null,null,null,"INVALIDO",null,null,"INVALIDO",null,null,null,null,null,{"$f":"INDEX(U:V,MATCH(DADOS!M413,V:V,0),1)","v":{"$error":"#N/A"}},null,null,null,null,0]
[null,null,null,null,"INVALIDO",null,null,"INVALIDO",null,null,null,null,null,{"$f":"INDEX(U:V,MATCH(DADOS!M414,V:V,0),1)","v":{"$error":"#N/A"}},null,null,null,null,0]
[null,null,null,null,"INVALIDO",null,null,"INVALIDO",null,null,null,null,null,{"$f":"INDEX(U:V,MATCH(DADOS!M415,V:V,0),1)","v":{"$error":"#N/A"}},null,null,null,null,0]
[null,null,null,null,"INVALIDO",null,null,"INVALIDO",null,null,null,null,null,{"$f":"INDEX(U:V,MATCH(DADOS!M416,V:V,0),1)","v":{"$error":"#N/A"}},null,null,null,null,0]
[null,null,null,null,"INVALIDO",null,null,"INVALIDO",null,null,null,null,null,{"$f":"INDEX(U:V,MATCH(DADOS!M417,V:V,0),1)","v":{"$error":"#N/A"}},null,null,null,null,0]
[null,null,null,null,"INVALIDO",null,null,"INVALIDO",null,null,null,null,null,{"$f":"INDEX(U:V,MATCH(DADOS!M418,V:V,0),1)","v":{"$error":"#N/A"}},null,null,null,null,0]
[null,null,null,null,"INVALIDO",null,null,"INVALIDO",null,null,null,null,null,{"$f":"INDEX(U:V,MATCH(DADOS!M419,V:V,0),1)","v":{"$error":"#N/A"}},null,null,null,null,0]
[null,null,null,null,"INVALIDO",null,null,"INVALIDO",null,null,null,null,null,{"$f":"INDEX(U:V,MATCH(DADOS!M420,V:V,0),1)","v":{"$error":"#N/A"}},null,null,null,null,0]
[null,null,null,null,"INVALIDO",null,null,"INVALIDO",null,null,null,null,null,{"$f":"INDEX(U:V,MATCH(DADOS!M421,V:V,0),1)","v":{"$error":"#N/A"}},null,null,null,null,0]
[null,null,null,null,"INVALIDO",null,null,"INVALIDO",null,null,null,null,null,{"$f":"INDEX(U:V,MATCH(DADOS!M422,V:V,0),1)","v":{"$error":"#N/A"}},null,null,null,null,0]
[null,null,null,null,"INVALIDO",null,null,"INVALIDO",null,null,null,null,null,{"$f":"INDEX(U:V,MATCH(DADOS!M423,V:V,0),1)","v":{"$error":"#N/A"}},null,null,null,null,0]
[null,null,null,null,"INVALIDO",null,null,"INVALIDO",null,null,null,null,null,{"$f":"INDEX(U:V,MATCH(DADOS!M424,V:V,0),1)","v":{"$error":"#N/A"}},null,null,null,null,0]
[null,null,null,null,"INVALIDO",null,null,"INVALIDO",null,null,null,null,null,{"$f":"INDEX(U:V,MATCH(DADOS!M425,V:V,0),1)","v":{"$error":"#N/A"}},null,null,null,null,0]
[null,null,null,null,"INVALIDO",null,null,"INVALIDO",null,null,null,null,null,{"$f":"INDEX(U:V,MATCH(DADOS!M426,V:V,0),1)","v":{"$error":"#N/A"}},null,null,null,null,0]
[null,null,null,null,"INVALIDO",null,null,"INVALIDO",null,null,null,null,null,{"$f":"INDEX(U:V,MATCH(DADOS!M427,V:V,0),1)","v":{"$error":"#N/A"}},null,null,null,null,0]
[null,null,null,null,"INVALIDO",null,null,"INVALIDO",null,null,null,null,null,{"$f":"INDEX(U:V,MATCH(DADOS!M428,V:V,0),1)","v":{"$error":"#N/A"}},null,null,null,null,0]
[null,null,null,null,"INVALIDO",null,null,"INVALIDO",null,null,null,null,null,{"$f":"INDEX(U:V,MATCH(DADOS!M429,V:V,0),1)","v":{"$error":"#N/A"}},null,null,null,null,0]
[null,null,null,null,"INVALIDO",null,null,"INVALIDO",null,null,null,null,null,{"$f":"INDEX(U:V,MATCH(DADOS!M430,V:V,0),1)","v":{"$error":"#N/A"}},null,null,null,null,0]
[null,null,null,null,"INVALIDO",null,null,"INVALIDO",null,null,null,null,null,{"$f":"INDEX(U:V,MATCH(DADOS!M431,V:V,0),1)","v":{"$error":"#N/A"}},null,null,null,null,0]
[null,null,null,null,"INVALIDO",null,null,"INVALIDO",null,null,null,null,null,{"$f":"INDEX(U:V,MATCH(DADOS!M432,V:V,0),1)","v":{"$error":"#N/A"}},null,null,null,null,0]
[null,null,null,null,"INVALIDO",null,null,"INVALIDO",null,null,null,null,null,{"$f":"INDEX(U:V,MATCH(DADOS!M433,V:V,0),1)","v":{"$error":"#N/A"}},null,null,null,null,0]
[null,null,null,null,"INVALIDO",null,null,"INVALIDO",null,null,null,null,null,{"$f":"INDEX(U:V,MATCH(DADOS!M434,V:V,0),1)","v":{"$error":"#N/A"}},null,null,null,null,0]
[null,null,null,null,"INVALIDO",null,null,"INVALIDO",null,null,null,null,null,{"$f":"INDEX(U:V,MATCH(DADOS!M435,V:V,0),1)","v":{"$error":"#N/A"}},null,null,null,null,0]
[null,null,null,null,"INVALIDO",null,null,"INVALIDO",null,null,null,null,null,{"$f":"INDEX(U:V,MATCH(DADOS!M436,V:V,0),1)","v":{"$error":"#N/A"}},null,null,null,null,0]
[null,null,null,null,"INVALIDO",null,null,"INVALIDO",null,null,null,null,null,{"$f":"INDEX(U:V,MATCH(DADOS!M437,V:V,0),1)","v":{"$error":"#N/A"}},null,null,null,null,0]
[null,null,null,null,"INVALIDO",null,null,"INVALIDO",null,null,null,null,null,{"$f":"INDEX(U:V,MATCH(DADOS!M438,V:V,0),1)","v":{"$error":"#N/A"}},null,null,null,null,0]
[null,null,null,null,"INVALIDO",null,null,"INVALIDO",null,null,null,null,null,{"$f":"INDEX(U:V,MATCH(DADOS!M439,V:V,0),1)","v":{"$error":"#N/A"}},null,null,null,null,0]
[null,null,null,null,"INVALIDO",null,null,"INVALIDO",null,null,null,null,null,{"$f":"INDEX(U:V,MATCH(DADOS!M440,V:V,0),1)","v":{"$error":"#N/A"}},null,null,null,null,0]
[null,null,null,null,"INVALIDO",null,null,"INVALIDO",null,null,null,null,null,{"$f":"INDEX(U:V,MATCH(DADOS!M441,V:V,0),1)","v":{"$error":"#N/A"}},null,null,null,null,0]
[null,null,null,null,"INVALIDO",null,null,"INVALIDO",null,null,null,null,null,{"$f":"INDEX(U:V,MATCH(DADOS!M442,V:V,0),1)","v":{"$error":"#N/A"}},null,null,null,null,0]
[null,null,null,null,"INVALIDO",null,null,"INVALIDO",null,null,null,null,null,{"$f":"INDEX(U:V,MATCH(DADOS!M443,V:V,0),1)","v":{"$error":"#N/A"}},null,null,null,null,0]
[null,null,null,null,"INVALIDO",null,null,"INVALIDO",null,null,null,null,null,{"$f":"INDEX(U:V,MATCH(DADOS!M444,V:V,0),1)","v":{"$error":"#N/A"}},null,null,null,null,0]
[null,null,null,null,"INVALIDO",null,null,"INVALIDO",null,null,null,null,null,{"$f":"INDEX(U:V,MATCH(DADOS!M445,V:V,0),1)","v":{"$error":"#N/A"}},null,null,null,null,0]
[null,null,null,null,"INVALIDO",null,null,"INVALIDO",null,null,null,null,null,{"$f":"INDEX(U:V,MATCH(DADOS!M446,V:V,0),1)","v":{"$error":"#N/A"}},null,null,null,null,0]
[null,null,null,null,"INVALIDO",null,null,"INVALIDO",null,null,null,null,null,{"$f":"INDEX(U:V,MATCH(DADOS!M447,V:V,0),1)","v":{"$error":"#N/A"}},null,null,null,null,0]
[null,null,null,null,"INVALIDO",null,null,"INVALIDO",null,null,null,null,null,{"$f":"INDEX(U:V,MATCH(DADOS!M448,V:V,0),1)","v":{"$error":"#N/A"}},null,null,null,null,0]
[null,null,null,null,"INVALIDO",null,null,"INVALIDO",null,null,null,null,null,{"$f":"INDEX(U:V,MATCH(DADOS!M449,V:V,0),1)","v":{"$error":"#N/A"}},null,null,null,null,0]
[null,null,null,null,"INVALIDO",null,null,"INVALIDO",null,null,null,null,null,{"$f":"INDEX(U:V,MATCH(DADOS!M450,V:V,0),1)","v":{"$error":"#N/A"}},null,null,null,null,0]
[null,null,null,null,"INVALIDO",null,null,"INVALIDO",null,null,null,null,null,{"$f":"INDEX(U:V,MATCH(DADOS!M451,V:V,0),1)","v":{"$error":"#N/A"}},null,null,null,null,{"$f":"S451","v":0}]
[null,null,null,null,"INVALIDO",null,null,"INVALIDO",null,null,null,null,null,{"$f":"INDEX(U:V,MATCH(DADOS!M452,V:V,0),1)","v":{"$error":"#N/A"}},null,null,null,null,0]
[null,null,null,null,"INVALIDO",null,null,"INVALIDO",null,null,null,null,null,{"$f":"INDEX(U:V,MATCH(DADOS!M453,V:V,0),1)","v":{"$error":"#N/A"}},null,null,null,null,0]
[null,null,null,null,"INVALIDO",null,null,"INVALIDO",null,null,null,null,null,{"$f":"INDEX(U:V,MATCH(DADOS!M454,V:V,0),1)","v":{"$error":"#N/A"}},null,null,null,null,0]
[null,null,null,null,"INVALIDO",null,null,"INVALIDO",null,null,null,null,null,{"$f":"INDEX(U:V,MATCH(DADOS!M455,V:V,0),1)","v":{"$error":"#N/A"}},null,null,null,null,0]
[null,null,null,null,"INVALIDO",null,null,"INVALIDO",null,null,null,null,null,{"$f":"INDEX(U:V,MATCH(DADOS!M456,V:V,0),1)","v":{"$error":"#N/A"}},null,null,null,null,0]
[null,null,null,null,"INVALIDO",null,null,"INVALIDO",null,null,null,null,null,{"$f":"INDEX(U:V,MATCH(DADOS!M457,V:V,0),1)","v":{"$error":"#N/A"}},null,null,null,null,0]
[null,null,null,null,"INVALIDO",null,null,"INVALIDO",null,null,null,null,null,{"$f":"INDEX(U:V,MATCH(DADOS!M458,V:V,0),1)","v":{"$error":"#N/A"}},null,null,null,null,0]
[null,null,null,null,"INVALIDO",null,null,"INVALIDO",null,null,null,null,null,{"$f":"INDEX(U:V,MATCH(DADOS!M459,V:V,0),1)","v":{"$error":"#N/A"}},null,null,null,null,0]
[null,null,null,null,"INVALIDO",null,null,"INVALIDO",null,null,null,null,null,{"$f":"INDEX(U:V,MATCH(DADOS!M460,V:V,0),1)","v":{"$error":"#N/A"}},null,null,null,null,0]
[null,null,null,null,"INVALIDO",null,null,"INVALIDO",null,null,null,null,null,{"$f":"INDEX(U:V,MATCH(DADOS!M461,V:V,0),1)","v":{"$error":"#N/A"}},null,null,null,null,0]
[null,null,null,null,"INVALIDO",null,null,"INVALIDO",null,null,null,null,null,{"$f":"INDEX(U:V,MATCH(DADOS!M462,V:V,0),1)","v":{"$error":"#N/A"}},null,null,null,null,0]
[null,null,null,null,"INVALIDO",null,null,"INVALIDO",null,null,null,null,null,{"$f":"INDEX(U:V,MATCH(DADOS!M463,V:V,0),1)","v":{"$error":"#N/A"}},null,null,null,null,0]
[null,null,null,null,"INVALIDO",null,null,"INVALIDO",null,null,null,null,null,{"$f":"INDEX(U:V,MATCH(DADOS!M464,V:V,0),1)","v":{"$error":"#N/A"}},null,null,null,null,0]
[null,null,null,null,"INVALIDO",null,null,"INVALIDO",null,null,null,null,null,{"$f":"INDEX(U:V,MATCH(DADOS!M465,V:V,0),1)","v":{"$error":"#N/A"}},null,null,null,null,0]
[null,null,null,null,"INVALIDO",null,null,"INVALIDO",null,null,null,null,null,{"$f":"INDEX(U:V,MATCH(DADOS!M466,V:V,0),1)","v":{"$error":"#N/A"}},null,null,null,null,0]
[null,null,null,null,"INVALIDO",null,null,"INVALIDO",null,null,null,null,null,{"$f":"INDEX(U:V,MATCH(DADOS!M467,V:V,0),1)","v":{"$error":"#N/A"}},null,null,null,null,0]
[null,null,null,null,"INVALIDO",null,null,"INVALIDO",null,null,null,null,null,{"$f":"INDEX(U:V,MATCH(DADOS!M468,V:V,0),1)","v":{"$error":"#N/A"}},null,null,null,null,0]
[null,null,null,null,"INVALIDO",null,null,"INVALIDO",null,null,null,null,null,{"$f":"INDEX(U:V,MATCH(DADOS!M469,V:V,0),1)","v":{"$error":"#N/A"}},null,null,null,null,0]
[null,null,null,null,{"$f":"CPF(D470)","v":"INVALIDO"},null,null,{"$f":"PISPASEP(G470)","v":"INVALIDO"},null,null,null,null,null,{"$f":"INDEX(U:V,MATCH(DADOS!M470,V:V,0),1)","v":{"$error":"#N/A"}},null,null,null,null,0]
[null,null,null,null,"INVALIDO",null,null,"INVALIDO",null,null,null,null,null,{"$f":"INDEX(U:V,MATCH(DADOS!M471,V:V,0),1)","v":{"$error":"#N/A"}},null,null,null,null,0]
[null,null,null,null,"INVALIDO",null,null,"INVALIDO",null,null,null,null,null,{"$f":"INDEX(U:V,MATCH(DADOS!M472,V:V,0),1)","v":{"$error":"#N/A"}},null,null,null,null,0]
[null,null,null,null,"INVALIDO",null,null,"INVALIDO",null,null,null,null,null,{"$f":"INDEX(U:V,MATCH(DADOS!M473,V:V,0),1)","v":{"$error":"#N/A"}},null,null,null,null,0]
[null,null,null,null,"INVALIDO",null,null,"INVALIDO",null,null,null,null,null,{"$f":"INDEX(U:V,MATCH(DADOS!M474,V:V,0),1)","v":{"$error":"#N/A"}},null,null,null,null,0]
[null,null,null,null,"INVALIDO",null,null,"INVALIDO",null,null,null,null,null,{"$f":"INDEX(U:V,MATCH(DADOS!M475,V:V,0),1)","v":{"$error":"#N/A"}},null,null,null,null,0]
[null,null,null,null,"INVALIDO",null,null,"INVALIDO",null,null,null,null,null,{"$f":"INDEX(U:V,MATCH(DADOS!M476,V:V,0),1)","v":{"$error":"#N/A"}},null,null,null,null,0]
[null,null,null,null,"INVALIDO",null,null,"INVALIDO",null,null,null,null,null,{"$f":"INDEX(U:V,MATCH(DADOS!M477,V:V,0),1)","v":{"$error":"#N/A"}},null,null,null,null,0]
[null,null,null,null,"INVALIDO",null,null,"INVALIDO",null,null,null,null,null,{"$f":"INDEX(U:V,MATCH(DADOS!M478,V:V,0),1)","v":{"$error":"#N/A"}},null,null,null,null,0]
[null,null,null,null,"INVALIDO",null,null,"INVALIDO",null,null,null,null,null,{"$f":"INDEX(U:V,MATCH(DADOS!M479,V:V,0),1)","v":{"$error":"#N/A"}},null,null,null,null,0]
[null,null,null,null,"INVALIDO",null,null,"INVALIDO",null,null,null,null,null,{"$f":"INDEX(U:V,MATCH(DADOS!M480,V:V,0),1)","v":{"$error":"#N/A"}},null,null,null,null,0]
[null,null,null,null,"INVALIDO",null,null,"INVALIDO",null,null,null,null,null,{"$f":"INDEX(U:V,MATCH(DADOS!M481,V:V,0),1)","v":{"$error":"#N/A"}},null,null,null,null,0]
[null,null,null,null,"INVALIDO",null,null,"INVALIDO",null,null,null,null,null,{"$f":"INDEX(U:V,MATCH(DADOS!M482,V:V,0),1)","v":{"$error":"#N/A"}},null,null,null,null,0]
[null,null,null,null,"INVALIDO",null,null,"INVALIDO",null,null,null,null,null,{"$f":"INDEX(U:V,MATCH(DADOS!M483,V:V,0),1)","v":{"$error":"#N/A"}},null,null,null,null,0]
[null,null,null,null,"INVALIDO",null,null,"INVALIDO",null,null,null,null,null,{"$f":"INDEX(U:V,MATCH(DADOS!M484,V:V,0),1)","v":{"$error":"#N/A"}},null,null,null,null,0]
[null,null,null,null,"INVALIDO",null,null,"INVALIDO",null,null,null,null,null,{"$f":"INDEX(U:V,MATCH(DADOS!M485,V:V,0),1)","v":{"$error":"#N/A"}},null,null,null,null,0]
[null,null,null,null,"INVALIDO",null,null,"INVALIDO",null,null,null,null,null,{"$f":"INDEX(U:V,MATCH(DADOS!M486,V:V,0),1)","v":{"$error":"#N/A"}},null,null,null,null,0]
[null,null,null,null,"INVALIDO",null,null,"INVALIDO",null,null,null,null,null,{"$f":"INDEX(U:V,MATCH(DADOS!M487,V:V,0),1)","v":{"$error":"#N/A"}},null,null,null,null,0]
[null,null,null,null,"INVALIDO",null,null,"INVALIDO",null,null,null,null,null,{"$f":"INDEX(U:V,MATCH(DADOS!M488,V:V,0),1)","v":{"$error":"#N/A"}},null,null,null,null,0]
[null,null,null,null,"INVALIDO",null,null,"INVALIDO",null,null,null,null,null,{"$f":"INDEX(U:V,MATCH(DADOS!M489,V:V,0),1)","v":{"$error":"#N/A"}},null,null,null,null,0]
[null,null,null,null,"INVALIDO",null,null,"INVALIDO",null,null,null,null,null,{"$f":"INDEX(U:V,MATCH(DADOS!M490,V:V,0),1)","v":{"$error":"#N/A"}},null,null,null,null,0]
[null,null,null,null,"INVALIDO",null,null,"INVALIDO",null,null,null,null,null,{"$f":"INDEX(U:V,MATCH(DADOS!M491,V:V,0),1)","v":{"$error":"#N/A"}},null,null,null,null,0]
[null,null,null,null,"INVALIDO",null,null,"INVALIDO",null,null,null,null,null,{"$f":"INDEX(U:V,MATCH(DADOS!M492,V:V,0),1)","v":{"$error":"#N/A"}},null,null,null,null,0]
[null,null,null,null,"INVALIDO",null,null,"INVALIDO",null,null,null,null,null,{"$f":"INDEX(U:V,MATCH(DADOS!M493,V:V,0),1)","v":{"$error":"#N/A"}},null,null,null,null,0]
[null,null,null,null,"INVALIDO",null,null,"INVALIDO",null,null,null,null,null,{"$f":"INDEX(U:V,MATCH(DADOS!M494,V:V,0),1)","v":{"$error":"#N/A"}},null,null,null,null,0]
[null,null,null,null,"INVALIDO",null,null,"INVALIDO",null,null,null,null,null,{"$f":"INDEX(U:V,MATCH(DADOS!M495,V:V,0),1)","v":{"$error":"#N/A"}},null,null,null,null,0]
[null,null,null,null,"INVALIDO",null,null,"INVALIDO",null,null,null,null,null,{"$f":"INDEX(U:V,MATCH(DADOS!M496,V:V,0),1)","v":{"$error":"#N/A"}},null,null,null,null,0]
[null,null,null,null,"INVALIDO",null,null,"INVALIDO",null,null,null,null,null,{"$f":"INDEX(U:V,MATCH(DADOS!M497,V:V,0),1)","v":{"$error":"#N/A"}},null,null,null,null,0]
[null,null,null,null,"INVALIDO",null,null,"INVALIDO",null,null,null,null,null,{"$f":"INDEX(U:V,MATCH(DADOS!M498,V:V,0),1)","v":{"$error":"#N/A"}},null,null,null,null,0]
[null,null,null,null,"INVALIDO",null,null,"INVALIDO",null,null,null,null,null,{"$f":"INDEX(U:V,MATCH(DADOS!M499,V:V,0),1)","v":{"$error":"#N/A"}},null,null,null,null,0]
[null,null,null,null,"INVALIDO",null,null,"INVALIDO",null,null,null,null,null,{"$f":"INDEX(U:V,MATCH(DADOS!M500,V:V,0),1)","v":{"$error":"#N/A"}},null,null,null,null,0]
[null,null,null,null,"INVALIDO",null,null,"INVALIDO",null,null,null,null,null,{"$f":"INDEX(U:V,MATCH(DADOS!M501,V:V,0),1)","v":{"$error":"#N/A"}},null,null,null,null,0]
[null,null,null,null,"INVALIDO",null,null,"INVALIDO",null,null,null,null,null,{"$f":"INDEX(U:V,MATCH(DADOS!M502,V:V,0),1)","v":{"$error":"#N/A"}},null,null,null,null,0]
[null,null,null,null,"INVALIDO",null,null,"INVALIDO",null,null,null,null,null,{"$f":"INDEX(U:V,MATCH(DADOS!M503,V:V,0),1)","v":{"$error":"#N/A"}},null,null,null,null,0]
[null,null,null,null,"INVALIDO",null,null,"INVALIDO",null,null,null,null,null,{"$f":"INDEX(U:V,MATCH(DADOS!M504,V:V,0),1)","v":{"$error":"#N/A"}},null,null,null,null,0]
[null,null,null,null,"INVALIDO",null,null,"INVALIDO",null,null,null,null,null,{"$f":"INDEX(U:V,MATCH(DADOS!M505,V:V,0),1)","v":{"$error":"#N/A"}},null,null,null,null,0]
[null,null,null,null,"INVALIDO",null,null,"INVALIDO",null,null,null,null,null,{"$f":"INDEX(U:V,MATCH(DADOS!M506,V:V,0),1)","v":{"$error":"#N/A"}},null,null,null,null,0]
[null,null,null,null,"INVALIDO",null,null,"INVALIDO",null,null,null,null,null,{"$f":"INDEX(U:V,MATCH(DADOS!M507,V:V,0),1)","v":{"$error":"#N/A"}},null,null,null,null,0]
[null,null,null,null,"INVALIDO",null,null,"INVALIDO",null,null,null,null,null,{"$f":"INDEX(U:V,MATCH(DADOS!M508,V:V,0),1)","v":{"$error":"#N/A"}},null,null,null,null,0]
[null,null,null,null,"INVALIDO",null,null,"INVALIDO",null,null,null,null,null,{"$f":"INDEX(U:V,MATCH(DADOS!M509,V:V,0),1)","v":{"$error":"#N/A"}},null,null,null,null,0]
[null,null,null,null,"INVALIDO",null,null,"INVALIDO",null,null,null,null,null,{"$f":"INDEX(U:V,MATCH(DADOS!M510,V:V,0),1)","v":{"$error":"#N/A"}},null,null,null,null,0]
[null,null,null,null,"INVALIDO",null,null,"INVALIDO",null,null,null,null,null,{"$f":"INDEX(U:V,MATCH(DADOS!M511,V:V,0),1)","v":{"$error":"#N/A"}},null,null,null,null,0]
[null,null,null,null,"INVALIDO",null,null,"INVALIDO",null,null,null,null,null,{"$f":"INDEX(U:V,MATCH(DADOS!M512,V:V,0),1)","v":{"$error":"#N/A"}},null,null,null,null,0]
[null,null,null,null,"INVALIDO",null,null,"INVALIDO",null,null,null,null,null,{"$f":"INDEX(U:V,MATCH(DADOS!M513,V:V,0),1)","v":{"$error":"#N/A"}},null,null,null,null,0]
[null,null,null,null,"INVALIDO",null,null,"INVALIDO",null,null,null,null,null,{"$f":"INDEX(U:V,MATCH(DADOS!M514,V:V,0),1)","v":{"$error":"#N/A"}},null,null,null,null,0]
[null,null,null,null,"INVALIDO",null,null,"INVALIDO",null,null,null,null,null,{"$f":"INDEX(U:V,MATCH(DADOS!M515,V:V,0),1)","v":{"$error":"#N/A"}},null,null,null,null,{"$f":"S515","v":0}]
[null,null,null,null,"INVALIDO",null,null,"INVALIDO",null,null,null,null,null,{"$f":"INDEX(U:V,MATCH(DADOS!M516,V:V,0),1)","v":{"$error":"#N/A"}},null,null,null,null,0]
[null,null,null,null,"INVALIDO",null,null,"INVALIDO",null,null,null,null,null,{"$f":"INDEX(U:V,MATCH(DADOS!M517,V:V,0),1)","v":{"$error":"#N/A"}},null,null,null,null,0]
[null,null,null,null,"INVALIDO",null,null,"INVALIDO",null,null,null,null,null,{"$f":"INDEX(U:V,MATCH(DADOS!M518,V:V,0),1)","v":{"$error":"#N/A"}},null,null,null,null,0]
[null,null,null,null,"INVALIDO",null,null,"INVALIDO",null,null,null,null,null,{"$f":"INDEX(U:V,MATCH(DADOS!M519,V:V,0),1)","v":{"$error":"#N/A"}},null,null,null,null,0]
[null,null,null,null,"INVALIDO",null,null,"INVALIDO",null,null,null,null,null,{"$f":"INDEX(U:V,MATCH(DADOS!M520,V:V,0),1)","v":{"$error":"#N/A"}},null,null,null,null,0]
[null,null,null,null,"INVALIDO",null,null,"INVALIDO",null,null,null,null,null,{"$f":"INDEX(U:V,MATCH(DADOS!M521,V:V,0),1)","v":{"$error":"#N/A"}},null,null,null,null,0]
[null,null,null,null,"INVALIDO",null,null,"INVALIDO",null,null,null,null,null,{"$f":"INDEX(U:V,MATCH(DADOS!M522,V:V,0),1)","v":{"$error":"#N/A"}},null,null,null,null,0]
[null,null,null,null,"INVALIDO",null,null,"INVALIDO",null,null,null,null,null,{"$f":"INDEX(U:V,MATCH(DADOS!M523,V:V,0),1)","v":{"$error":"#N/A"}},null,null,null,null,0]
[null,null,null,null,"INVALIDO",null,null,"INVALIDO",null,null,null,null,null,{"$f":"INDEX(U:V,MATCH(DADOS!M524,V:V,0),1)","v":{"$error":"#N/A"}},null,null,null,null,0]
[null,null,null,null,"INVALIDO",null,null,"INVALIDO",null,null,null,null,null,{"$f":"INDEX(U:V,MATCH(DADOS!M525,V:V,0),1)","v":{"$error":"#N/A"}},null,null,null,null,0]
[null,null,null,null,"INVALIDO",null,null,"INVALIDO",null,null,null,null,null,{"$f":"INDEX(U:V,MATCH(DADOS!M526,V:V,0),1)","v":{"$error":"#N/A"}},null,null,null,null,0]
[null,null,null,null,"INVALIDO",null,null,"INVALIDO",null,null,null,null,null,{"$f":"INDEX(U:V,MATCH(DADOS!M527,V:V,0),1)","v":{"$error":"#N/A"}},null,null,null,null,0]
[null,null,null,null,"INVALIDO",null,null,"INVALIDO",null,null,null,null,null,{"$f":"INDEX(U:V,MATCH(DADOS!M528,V:V,0),1)","v":{"$error":"#N/A"}},null,null,null,null,0]
[null,null,null,null,"INVALIDO",null,null,"INVALIDO",null,null,null,null,null,{"$f":"INDEX(U:V,MATCH(DADOS!M529,V:V,0),1)","v":{"$error":"#N/A"}},null,null,null,null,0]
[null,null,null,null,"INVALIDO",null,null,"INVALIDO",null,null,null,null,null,{"$f":"INDEX(U:V,MATCH(DADOS!M530,V:V,0),1)","v":{"$error":"#N/A"}},null,null,null,null,0]
[null,null,null,null,"INVALIDO",null,null,"INVALIDO",null,null,null,null,null,{"$f":"INDEX(U:V,MATCH(DADOS!M531,V:V,0),1)","v":{"$error":"#N/A"}},null,null,null,null,0]
[null,null,null,null,"INVALIDO",null,null,"INVALIDO",null,null,null,null,null,{"$f":"INDEX(U:V,MATCH(DADOS!M532,V:V,0),1)","v":{"$error":"#N/A"}},null,null,null,null,0]
[null,null,null,null,"INVALIDO",null,null,"INVALIDO",null,null,null,null,null,{"$f":"INDEX(U:V,MATCH(DADOS!M533,V:V,0),1)","v":{"$error":"#N/A"}},null,null,null,null,0]
[null,null,null,null,{"$f":"CPF(D534)","v":"INVALIDO"},null,null,{"$f":"PISPASEP(G534)","v":"INVALIDO"},null,null,null,null,null,{"$f":"INDEX(U:V,MATCH(DADOS!M534,V:V,0),1)","v":{"$error":"#N/A"}},null,null,null,null,0]
[null,null,null,null,"INVALIDO",null,null,"INVALIDO",null,null,null,null,null,{"$f":"INDEX(U:V,MATCH(DADOS!M535,V:V,0),1)","v":{"$error":"#N/A"}},null,null,null,null,0]
[null,null,null,null,"INVALIDO",null,null,"INVALIDO",null,null,null,null,null,{"$f":"INDEX(U:V,MATCH(DADOS!M536,V:V,0),1)","v":{"$error":"#N/A"}},null,null,null,null,0]
[null,null,null,null,"INVALIDO",null,null,"INVALIDO",null,null,null,null,null,{"$f":"INDEX(U:V,MATCH(DADOS!M537,V:V,0),1)","v":{"$error":"#N/A"}},null,null,null,null,0]
[null,null,null,null,"INVALIDO",null,null,"INVALIDO",null,null,null,null,null,{"$f":"INDEX(U:V,MATCH(DADOS!M538,V:V,0),1)","v":{"$error":"#N/A"}},null,null,null,null,0]
[null,null,null,null,"INVALIDO",null,null,"INVALIDO",null,null,null,null,null,{"$f":"INDEX(U:V,MATCH(DADOS!M539,V:V,0),1)","v":{"$error":"#N/A"}},null,null,null,null,0]
[null,null,null,null,"INVALIDO",null,null,"INVALIDO",null,null,null,null,null,{"$f":"INDEX(U:V,MATCH(DADOS!M540,V:V,0),1)","v":{"$error":"#N/A"}},null,null,null,null,0]
[null,null,null,null,"INVALIDO",null,null,"INVALIDO",null,null,null,null,null,{"$f":"INDEX(U:V,MATCH(DADOS!M541,V:V,0),1)","v":{"$error":"#N/A"}},null,null,null,null,0]
[null,null,null,null,"INVALIDO",null,null,"INVALIDO",null,null,null,null,null,{"$f":"INDEX(U:V,MATCH(DADOS!M542,V:V,0),1)","v":{"$error":"#N/A"}},null,null,null,null,0]
[null,null,null,null,"INVALIDO",null,null,"INVALIDO",null,null,null,null,null,{"$f":"INDEX(U:V,MATCH(DADOS!M543,V:V,0),1)","v":{"$error":"#N/A"}},null,null,null,null,0]
[null,null,null,null,"INVALIDO",null,null,"INVALIDO",null,null,null,null,null,{"$f":"INDEX(U:V,MATCH(DADOS!M544,V:V,0),1)","v":{"$error":"#N/A"}},null,null,null,null,0]
[null,null,null,null,"INVALIDO",null,null,"INVALIDO",null,null,null,null,null,{"$f":"INDEX(U:V,MATCH(DADOS!M545,V:V,0),1)","v":{"$error":"#N/A"}},null,null,null,null,0]
[null,null,null,null,"INVALIDO",null,null,"INVALIDO",null,null,null,null,null,{"$f":"INDEX(U:V,MATCH(DADOS!M546,V:V,0),1)","v":{"$error":"#N/A"}},null,null,null,null,0]
[null,null,null,null,"INVALIDO",null,null,"INVALIDO",null,null,null,null,null,{"$f":"INDEX(U:V,MATCH(DADOS!M547,V:V,0),1)","v":{"$error":"#N/A"}},null,null,null,null,0]
[null,null,null,null,"INVALIDO",null,null,"INVALIDO",null,null,null,null,null,{"$f":"INDEX(U:V,MATCH(DADOS!M548,V:V,0),1)","v":{"$error":"#N/A"}},null,null,null,null,0]
[null,null,null,null,"INVALIDO",null,null,"INVALIDO",null,null,null,null,null,{"$f":"INDEX(U:V,MATCH(DADOS!M549,V:V,0),1)","v":{"$error":"#N/A"}},null,null,null,null,0]
[null,null,null,null,"INVALIDO",null,null,"INVALIDO",null,null,null,null,null,{"$f":"INDEX(U:V,MATCH(DADOS!M550,V:V,0),1)","v":{"$error":"#N/A"}},null,null,null,null,0]
[null,null,null,null,"INVALIDO",null,null,"INVALIDO",null,null,null,null,null,{"$f":"INDEX(U:V,MATCH(DADOS!M551,V:V,0),1)","v":{"$error":"#N/A"}},null,null,null,null,0]
[null,null,null,null,"INVALIDO",null,null,"INVALIDO",null,null,null,null,null,{"$f":"INDEX(U:V,MATCH(DADOS!M552,V:V,0),1)","v":{"$error":"#N/A"}},null,null,null,null,0]
[null,null,null,null,"INVALIDO",null,null,"INVALIDO",null,null,null,null,null,{"$f":"INDEX(U:V,MATCH(DADOS!M553,V:V,0),1)","v":{"$error":"#N/A"}},null,null,null,null,0]
[null,null,null,null,"INVALIDO",null,null,"INVALIDO",null,null,null,null,null,{"$f":"INDEX(U:V,MATCH(DADOS!M554,V:V,0),1)","v":{"$error":"#N/A"}},null,null,null,null,0]
[null,null,null,null,"INVALIDO",null,null,"INVALIDO",null,null,null,null,null,{"$f":"INDEX(U:V,MATCH(DADOS!M555,V:V,0),1)","v":{"$error":"#N/A"}},null,null,null,null,0]
[null,null,null,null,"INVALIDO",null,null,"INVALIDO",null,null,null,null,null,{"$f":"INDEX(U:V,MATCH(DADOS!M556,V:V,0),1)","v":{"$error":"#N/A"}},null,null,null,null,0]
[null,null,null,null,"INVALIDO",null,null,"INVALIDO",null,null,null,null,null,{"$f":"INDEX(U:V,MATCH(DADOS!M557,V:V,0),1)","v":{"$error":"#N/A"}},null,null,null,null,0]
[null,null,null,null,"INVALIDO",null,null,"INVALIDO",null,null,null,null,null,{"$f":"INDEX(U:V,MATCH(DADOS!M558,V:V,0),1)","v":{"$error":"#N/A"}},null,null,null,null,0]
[null,null,null,null,"INVALIDO",null,null,"INVALIDO",null,null,null,null,null,{"$f":"INDEX(U:V,MATCH(DADOS!M559,V:V,0),1)","v":{"$error":"#N/A"}},null,null,null,null,0]
[null,null,null,null,"INVALIDO",null,null,"INVALIDO",null,null,null,null,null,{"$f":"INDEX(U:V,MATCH(DADOS!M560,V:V,0),1)","v":{"$error":"#N/A"}},null,null,null,null,0]
[null,null,null,null,"INVALIDO",null,null,"INVALIDO",null,null,null,null,null,{"$f":"INDEX(U:V,MATCH(DADOS!M561,V:V,0),1)","v":{"$error":"#N/A"}},null,null,null,null,0]
[null,null,null,null,"INVALIDO",null,null,"INVALIDO",null,null,null,null,null,{"$f":"INDEX(U:V,MATCH(DADOS!M562,V:V,0),1)","v":{"$error":"#N/A"}},null,null,null,null,0]
[null,null,null,null,"INVALIDO",null,null,"INVALIDO",null,null,null,null,null,{"$f":"INDEX(U:V,MATCH(DADOS!M563,V:V,0),1)","v":{"$error":"#N/A"}},null,null,null,null,0]
[null,null,null,null,"INVALIDO",null,null,"INVALIDO",null,null,null,null,null,{"$f":"INDEX(U:V,MATCH(DADOS!M564,V:V,0),1)","v":{"$error":"#N/A"}},null,null,null,null,0]
[null,null,null,null,"INVALIDO",null,null,"INVALIDO",null,null,null,null,null,{"$f":"INDEX(U:V,MATCH(DADOS!M565,V:V,0),1)","v":{"$error":"#N/A"}},null,null,null,null,0]
[null,null,null,null,"INVALIDO",null,null,"INVALIDO",null,null,null,null,null,{"$f":"INDEX(U:V,MATCH(DADOS!M566,V:V,0),1)","v":{"$error":"#N/A"}},null,null,null,null,0]
[null,null,null,null,"INVALIDO",null,null,"INVALIDO",null,null,null,null,null,{"$f":"INDEX(U:V,MATCH(DADOS!M567,V:V,0),1)","v":{"$error":"#N/A"}},null,null,null,null,0]
[null,null,null,null,"INVALIDO",null,null,"INVALIDO",null,null,null,null,null,{"$f":"INDEX(U:V,MATCH(DADOS!M568,V:V,0),1)","v":{"$error":"#N/A"}},null,null,null,null,0]
[null,null,null,null,"INVALIDO",null,null,"INVALIDO",null,null,null,null,null,{"$f":"INDEX(U:V,MATCH(DADOS!M569,V:V,0),1)","v":{"$error":"#N/A"}},null,null,null,null,0]
[null,null,null,null,"INVALIDO",null,null,"INVALIDO",null,null,null,null,null,{"$f":"INDEX(U:V,MATCH(DADOS!M570,V:V,0),1)","v":{"$error":"#N/A"}},null,null,null,null,0]
[null,null,null,null,"INVALIDO",null,null,"INVALIDO",null,null,null,null,null,{"$f":"INDEX(U:V,MATCH(DADOS!M571,V:V,0),1)","v":{"$error":"#N/A"}},null,null,null,null,0]
[null,null,null,null,"INVALIDO",null,null,"INVALIDO",null,null,null,null,null,{"$f":"INDEX(U:V,MATCH(DADOS!M572,V:V,0),1)","v":{"$error":"#N/A"}},null,null,null,null,0]
[null,null,null,null,"INVALIDO",null,null,"INVALIDO",null,null,null,null,null,{"$f":"INDEX(U:V,MATCH(DADOS!M573,V:V,0),1)","v":{"$error":"#N/A"}},null,null,null,null,0]
[null,null,null,null,"INVALIDO",null,null,"INVALIDO",null,null,null,null,null,{"$f":"INDEX(U:V,MATCH(DADOS!M574,V:V,0),1)","v":{"$error":"#N/A"}},null,null,null,null,0]
[null,null,null,null,"INVALIDO",null,null,"INVALIDO",null,null,null,null,null,{"$f":"INDEX(U:V,MATCH(DADOS!M575,V:V,0),1)","v":{"$error":"#N/A"}},null,null,null,null,0]
[null,null,null,null,"INVALIDO",null,null,"INVALIDO",null,null,null,null,null,{"$f":"INDEX(U:V,MATCH(DADOS!M576,V:V,0),1)","v":{"$error":"#N/A"}},null,null,null,null,0]
[null,null,null,null,"INVALIDO",null,null,"INVALIDO",null,null,null,null,null,{"$f":"INDEX(U:V,MATCH(DADOS!M577,V:V,0),1)","v":{"$error":"#N/A"}},null,null,null,null,0]
[null,null,null,null,"INVALIDO",null,null,"INVALIDO",null,null,null,null,null,{"$f":"INDEX(U:V,MATCH(DADOS!M578,V:V,0),1)","v":{"$error":"#N/A"}},null,null,null,null,0]
[null,null,null,null,"INVALIDO",null,null,"INVALIDO",null,null,null,null,null,{"$f":"INDEX(U:V,MATCH(DADOS!M579,V:V,0),1)","v":{"$error":"#N/A"}},null,null,null,null,{"$f":"S579","v":0}]
[null,null,null,null,"INVALIDO",null,null,"INVALIDO",null,null,null,null,null,{"$f":"INDEX(U:V,MATCH(DADOS!M580,V:V,0),1)","v":{"$error":"#N/A"}},null,null,null,null,0]
[null,null,null,null,"INVALIDO",null,null,"INVALIDO",null,null,null,null,null,{"$f":"INDEX(U:V,MATCH(DADOS!M581,V:V,0),1)","v":{"$error":"#N/A"}},null,null,null,null,0]
[null,null,null,null,"INVALIDO",null,null,"INVALIDO",null,null,null,null,null,{"$f":"INDEX(U:V,MATCH(DADOS!M582,V:V,0),1)","v":{"$error":"#N/A"}},null,null,null,null,0]
[null,null,null,null,"INVALIDO",null,null,"INVALIDO",null,null,null,null,null,{"$f":"INDEX(U:V,MATCH(DADOS!M583,V:V,0),1)","v":{"$error":"#N/A"}},null,null,null,null,0]
[null,null,null,null,"INVALIDO",null,null,"INVALIDO",null,null,null,null,null,{"$f":"INDEX(U:V,MATCH(DADOS!M584,V:V,0),1)","v":{"$error":"#N/A"}},null,null,null,null,0]
[null,null,null,null,"INVALIDO",null,null,"INVALIDO",null,null,null,null,null,{"$f":"INDEX(U:V,MATCH(DADOS!M585,V:V,0),1)","v":{"$error":"#N/A"}},null,null,null,null,0]
[null,null,null,null,"INVALIDO",null,null,"INVALIDO",null,null,null,null,null,{"$f":"INDEX(U:V,MATCH(DADOS!M586,V:V,0),1)","v":{"$error":"#N/A"}},null,null,null,null,0]
[null,null,null,null,"INVALIDO",null,null,"INVALIDO",null,null,null,null,null,{"$f":"INDEX(U:V,MATCH(DADOS!M587,V:V,0),1)","v":{"$error":"#N/A"}},null,null,null,null,0]
[null,null,null,null,"INVALIDO",null,null,"INVALIDO",null,null,null,null,null,{"$f":"INDEX(U:V,MATCH(DADOS!M588,V:V,0),1)","v":{"$error":"#N/A"}},null,null,null,null,0]
[null,null,null,null,"INVALIDO",null,null,"INVALIDO",null,null,null,null,null,{"$f":"INDEX(U:V,MATCH(DADOS!M589,V:V,0),1)","v":{"$error":"#N/A"}},null,null,null,null,0]
[null,null,null,null,"INVALIDO",null,null,"INVALIDO",null,null,null,null,null,{"$f":"INDEX(U:V,MATCH(DADOS!M590,V:V,0),1)","v":{"$error":"#N/A"}},null,null,null,null,0]
[null,null,null,null,"INVALIDO",null,null,"INVALIDO",null,null,null,null,null,{"$f":"INDEX(U:V,MATCH(DADOS!M591,V:V,0),1)","v":{"$error":"#N/A"}},null,null,null,null,0]
[null,null,null,null,"INVALIDO",null,null,"INVALIDO",null,null,null,null,null,{"$f":"INDEX(U:V,MATCH(DADOS!M592,V:V,0),1)","v":{"$error":"#N/A"}},null,null,null,null,0]
[null,null,null,null,"INVALIDO",null,null,"INVALIDO",null,null,null,null,null,{"$f":"INDEX(U:V,MATCH(DADOS!M593,V:V,0),1)","v":{"$error":"#N/A"}},null,null,null,null,0]
[null,null,null,null,"INVALIDO",null,null,"INVALIDO",null,null,null,null,null,{"$f":"INDEX(U:V,MATCH(DADOS!M594,V:V,0),1)","v":{"$error":"#N/A"}},null,null,null,null,0]
[null,null,null,null,"INVALIDO",null,null,"INVALIDO",null,null,null,null,null,{"$f":"INDEX(U:V,MATCH(DADOS!M595,V:V,0),1)","v":{"$error":"#N/A"}},null,null,null,null,0]
[null,null,null,null,"INVALIDO",null,null,"INVALIDO",null,null,null,null,null,{"$f":"INDEX(U:V,MATCH(DADOS!M596,V:V,0),1)","v":{"$error":"#N/A"}},null,null,null,null,0]
[null,null,null,null,"INVALIDO",null,null,"INVALIDO",null,null,null,null,null,{"$f":"INDEX(U:V,MATCH(DADOS!M597,V:V,0),1)","v":{"$error":"#N/A"}},null,null,null,null,0]
[null,null,null,null,{"$f":"CPF(D598)","v":"INVALIDO"},null,null,{"$f":"PISPASEP(G598)","v":"INVALIDO"},null,null,null,null,null,{"$f":"INDEX(U:V,MATCH(DADOS!M598,V:V,0),1)","v":{"$error":"#N/A"}},null,null,null,null,0]
[null,null,null,null,"INVALIDO",null,null,"INVALIDO",null,null,null,null,null,{"$f":"INDEX(U:V,MATCH(DADOS!M599,V:V,0),1)","v":{"$error":"#N/A"}},null,null,null,null,0]
[null,null,null,null,"INVALIDO",null,null,"INVALIDO",null,null,null,null,null,{"$f":"INDEX(U:V,MATCH(DADOS!M600,V:V,0),1)","v":{"$error":"#N/A"}},null,null,null,null,0]
[null,null,null,null,"INVALIDO",null,null,"INVALIDO",null,null,null,null,null,{"$f":"INDEX(U:V,MATCH(DADOS!M601,V:V,0),1)","v":{"$error":"#N/A"}},null,null,null,null,0]
[null,null,null,null,"INVALIDO",null,null,"INVALIDO",null,null,null,null,null,{"$f":"INDEX(U:V,MATCH(DADOS!M602,V:V,0),1)","v":{"$error":"#N/A"}},null,null,null,null,0]
[null,null,null,null,"INVALIDO",null,null,"INVALIDO",null,null,null,null,null,{"$f":"INDEX(U:V,MATCH(DADOS!M603,V:V,0),1)","v":{"$error":"#N/A"}},null,null,null,null,0]
[null,null,null,null,"INVALIDO",null,null,"INVALIDO",null,null,null,null,null,{"$f":"INDEX(U:V,MATCH(DADOS!M604,V:V,0),1)","v":{"$error":"#N/A"}},null,null,null,null,0]
[null,null,null,null,"INVALIDO",null,null,"INVALIDO",null,null,null,null,null,{"$f":"INDEX(U:V,MATCH(DADOS!M605,V:V,0),1)","v":{"$error":"#N/A"}},null,null,null,null,0]
[null,null,null,null,"INVALIDO",null,null,"INVALIDO",null,null,null,null,null,{"$f":"INDEX(U:V,MATCH(DADOS!M606,V:V,0),1)","v":{"$error":"#N/A"}},null,null,null,null,0]
[null,null,null,null,"INVALIDO",null,null,"INVALIDO",null,null,null,null,null,{"$f":"INDEX(U:V,MATCH(DADOS!M607,V:V,0),1)","v":{"$error":"#N/A"}},null,null,null,null,0]
[null,null,null,null,"INVALIDO",null,null,"INVALIDO",null,null,null,null,null,{"$f":"INDEX(U:V,MATCH(DADOS!M608,V:V,0),1)","v":{"$error":"#N/A"}},null,null,null,null,0]
[null,null,null,null,"INVALIDO",null,null,"INVALIDO",null,null,null,null,null,{"$f":"INDEX(U:V,MATCH(DADOS!M609,V:V,0),1)","v":{"$error":"#N/A"}},null,null,null,null,0]
[null,null,null,null,"INVALIDO",null,null,"INVALIDO",null,null,null,null,null,{"$f":"INDEX(U:V,MATCH(DADOS!M610,V:V,0),1)","v":{"$error":"#N/A"}},null,null,null,null,0]
[null,null,null,null,"INVALIDO",null,null,"INVALIDO",null,null,null,null,null,{"$f":"INDEX(U:V,MATCH(DADOS!M611,V:V,0),1)","v":{"$error":"#N/A"}},null,null,null,null,0]
[null,null,null,null,"INVALIDO",null,null,"INVALIDO",null,null,null,null,null,{"$f":"INDEX(U:V,MATCH(DADOS!M612,V:V,0),1)","v":{"$error":"#N/A"}},null,null,null,null,0]
[null,null,null,null,"INVALIDO",null,null,"INVALIDO",null,null,null,null,null,{"$f":"INDEX(U:V,MATCH(DADOS!M613,V:V,0),1)","v":{"$error":"#N/A"}},null,null,null,null,0]
[null,null,null,null,"INVALIDO",null,null,"INVALIDO",null,null,null,null,null,{"$f":"INDEX(U:V,MATCH(DADOS!M614,V:V,0),1)","v":{"$error":"#N/A"}},null,null,null,null,0]
[null,null,null,null,"INVALIDO",null,null,"INVALIDO",null,null,null,null,null,{"$f":"INDEX(U:V,MATCH(DADOS!M615,V:V,0),1)","v":{"$error":"#N/A"}},null,null,null,null,0]
[null,null,null,null,"INVALIDO",null,null,"INVALIDO",null,null,null,null,null,{"$f":"INDEX(U:V,MATCH(DADOS!M616,V:V,0),1)","v":{"$error":"#N/A"}},null,null,null,null,0]
[null,null,null,null,"INVALIDO",null,null,"INVALIDO",null,null,null,null,null,{"$f":"INDEX(U:V,MATCH(DADOS!M617,V:V,0),1)","v":{"$error":"#N/A"}},null,null,null,null,0]
[null,null,null,null,"INVALIDO",null,null,"INVALIDO",null,null,null,null,null,{"$f":"INDEX(U:V,MATCH(DADOS!M618,V:V,0),1)","v":{"$error":"#N/A"}},null,null,null,null,0]
[null,null,null,null,"INVALIDO",null,null,"INVALIDO",null,null,null,null,null,{"$f":"INDEX(U:V,MATCH(DADOS!M619,V:V,0),1)","v":{"$error":"#N/A"}},null,null,null,null,0]
[null,null,null,null,"INVALIDO",null,null,"INVALIDO",null,null,null,null,null,{"$f":"INDEX(U:V,MATCH(DADOS!M620,V:V,0),1)","v":{"$error":"#N/A"}},null,null,null,null,0]
[null,null,null,null,"INVALIDO",null,null,"INVALIDO",null,null,null,null,null,{"$f":"INDEX(U:V,MATCH(DADOS!M621,V:V,0),1)","v":{"$error":"#N/A"}},null,null,null,null,0]
[null,null,null,null,"INVALIDO",null,null,"INVALIDO",null,null,null,null,null,{"$f":"INDEX(U:V,MATCH(DADOS!M622,V:V,0),1)","v":{"$error":"#N/A"}},null,null,null,null,0]
[null,null,null,null,"INVALIDO",null,null,"INVALIDO",null,null,null,null,null,{"$f":"INDEX(U:V,MATCH(DADOS!M623,V:V,0),1)","v":{"$error":"#N/A"}},null,null,null,null,0]
[null,null,null,null,"INVALIDO",null,null,"INVALIDO",null,null,null,null,null,{"$f":"INDEX(U:V,MATCH(DADOS!M624,V:V,0),1)","v":{"$error":"#N/A"}},null,null,null,null,0]
[null,null,null,null,"INVALIDO",null,null,"INVALIDO",null,null,null,null,null,{"$f":"INDEX(U:V,MATCH(DADOS!M625,V:V,0),1)","v":{"$error":"#N/A"}},null,null,null,null,0]
[null,null,null,null,"INVALIDO",null,null,"INVALIDO",null,null,null,null,null,{"$f":"INDEX(U:V,MATCH(DADOS!M626,V:V,0),1)","v":{"$error":"#N/A"}},null,null,null,null,0]
[null,null,null,null,"INVALIDO",null,null,"INVALIDO",null,null,null,null,null,{"$f":"INDEX(U:V,MATCH(DADOS!M627,V:V,0),1)","v":{"$error":"#N/A"}},null,null,null,null,0]
[null,null,null,null,"INVALIDO",null,null,"INVALIDO",null,null,null,null,null,{"$f":"INDEX(U:V,MATCH(DADOS!M628,V:V,0),1)","v":{"$error":"#N/A"}},null,null,null,null,0]
[null,null,null,null,"INVALIDO",null,null,"INVALIDO",null,null,null,null,null,{"$f":"INDEX(U:V,MATCH(DADOS!M629,V:V,0),1)","v":{"$error":"#N/A"}},null,null,null,null,0]
[null,null,null,null,"INVALIDO",null,null,"INVALIDO",null,null,null,null,null,{"$f":"INDEX(U:V,MATCH(DADOS!M630,V:V,0),1)","v":{"$error":"#N/A"}},null,null,null,null,0]
[null,null,null,null,"INVALIDO",null,null,"INVALIDO",null,null,null,null,null,{"$f":"INDEX(U:V,MATCH(DADOS!M631,V:V,0),1)","v":{"$error":"#N/A"}},null,null,null,null,0]
[null,null,null,null,"INVALIDO",null,null,"INVALIDO",null,null,null,null,null,{"$f":"INDEX(U:V,MATCH(DADOS!M632,V:V,0),1)","v":{"$error":"#N/A"}},null,null,null,null,0]
[null,null,null,null,"INVALIDO",null,null,"INVALIDO",null,null,null,null,null,{"$f":"INDEX(U:V,MATCH(DADOS!M633,V:V,0),1)","v":{"$error":"#N/A"}},null,null,null,null,0]
[null,null,null,null,"INVALIDO",null,null,"INVALIDO",null,null,null,null,null,{"$f":"INDEX(U:V,MATCH(DADOS!M634,V:V,0),1)","v":{"$error":"#N/A"}},null,null,null,null,0]
[null,null,null,null,"INVALIDO",null,null,"INVALIDO",null,null,null,null,null,{"$f":"INDEX(U:V,MATCH(DADOS!M635,V:V,0),1)","v":{"$error":"#N/A"}},null,null,null,null,0]
[null,null,null,null,"INVALIDO",null,null,"INVALIDO",null,null,null,null,null,{"$f":"INDEX(U:V,MATCH(DADOS!M636,V:V,0),1)","v":{"$error":"#N/A"}},null,null,null,null,0]
[null,null,null,null,"INVALIDO",null,null,"INVALIDO",null,null,null,null,null,{"$f":"INDEX(U:V,MATCH(DADOS!M637,V:V,0),1)","v":{"$error":"#N/A"}},null,null,null,null,0]
[null,null,null,null,"INVALIDO",null,null,"INVALIDO",null,null,null,null,null,{"$f":"INDEX(U:V,MATCH(DADOS!M638,V:V,0),1)","v":{"$error":"#N/A"}},null,null,null,null,0]
[null,null,null,null,"INVALIDO",null,null,"INVALIDO",null,null,null,null,null,{"$f":"INDEX(U:V,MATCH(DADOS!M639,V:V,0),1)","v":{"$error":"#N/A"}},null,null,null,null,0]
[null,null,null,null,"INVALIDO",null,null,"INVALIDO",null,null,null,null,null,{"$f":"INDEX(U:V,MATCH(DADOS!M640,V:V,0),1)","v":{"$error":"#N/A"}},null,null,null,null,0]
[null,null,null,null,"INVALIDO",null,null,"INVALIDO",null,null,null,null,null,{"$f":"INDEX(U:V,MATCH(DADOS!M641,V:V,0),1)","v":{"$error":"#N/A"}},null,null,null,null,0]
[null,null,null,null,"INVALIDO",null,null,"INVALIDO",null,null,null,null,null,{"$f":"INDEX(U:V,MATCH(DADOS!M642,V:V,0),1)","v":{"$error":"#N/A"}},null,null,null,null,0]
[null,null,null,null,"INVALIDO",null,null,"INVALIDO",null,null,null,null,null,{"$f":"INDEX(U:V,MATCH(DADOS!M643,V:V,0),1)","v":{"$error":"#N/A"}},null,null,null,null,{"$f":"S643","v":0}]
[null,null,null,null,"INVALIDO",null,null,"INVALIDO",null,null,null,null,null,{"$f":"INDEX(U:V,MATCH(DADOS!M644,V:V,0),1)","v":{"$error":"#N/A"}},null,null,null,null,0]
[null,null,null,null,"INVALIDO",null,null,"INVALIDO",null,null,null,null,null,{"$f":"INDEX(U:V,MATCH(DADOS!M645,V:V,0),1)","v":{"$error":"#N/A"}},null,null,null,null,0]
[null,null,null,null,"INVALIDO",null,null,"INVALIDO",null,null,null,null,null,{"$f":"INDEX(U:V,MATCH(DADOS!M646,V:V,0),1)","v":{"$error":"#N/A"}},null,null,null,null,0]
[null,null,null,null,"INVALIDO",null,null,"INVALIDO",null,null,null,null,null,{"$f":"INDEX(U:V,MATCH(DADOS!M647,V:V,0),1)","v":{"$error":"#N/A"}},null,null,null,null,0]
[null,null,null,null,"INVALIDO",null,null,"INVALIDO",null,null,null,null,null,{"$f":"INDEX(U:V,MATCH(DADOS!M648,V:V,0),1)","v":{"$error":"#N/A"}},null,null,null,null,0]
[null,null,null,null,"INVALIDO",null,null,"INVALIDO",null,null,null,null,null,{"$f":"INDEX(U:V,MATCH(DADOS!M649,V:V,0),1)","v":{"$error":"#N/A"}},null,null,null,null,0]
[null,null,null,null,"INVALIDO",null,null,"INVALIDO",null,null,null,null,null,{"$f":"INDEX(U:V,MATCH(DADOS!M650,V:V,0),1)","v":{"$error":"#N/A"}},null,null,null,null,0]
[null,null,null,null,"INVALIDO",null,null,"INVALIDO",null,null,null,null,null,{"$f":"INDEX(U:V,MATCH(DADOS!M651,V:V,0),1)","v":{"$error":"#N/A"}},null,null,null,null,0]
[null,null,null,null,"INVALIDO",null,null,"INVALIDO",null,null,null,null,null,{"$f":"INDEX(U:V,MATCH(DADOS!M652,V:V,0),1)","v":{"$error":"#N/A"}},null,null,null,null,0]
[null,null,null,null,"INVALIDO",null,null,"INVALIDO",null,null,null,null,null,{"$f":"INDEX(U:V,MATCH(DADOS!M653,V:V,0),1)","v":{"$error":"#N/A"}},null,null,null,null,0]
[null,null,null,null,"INVALIDO",null,null,"INVALIDO",null,null,null,null,null,{"$f":"INDEX(U:V,MATCH(DADOS!M654,V:V,0),1)","v":{"$error":"#N/A"}},null,null,null,null,0]
[null,null,null,null,"INVALIDO",null,null,"INVALIDO",null,null,null,null,null,{"$f":"INDEX(U:V,MATCH(DADOS!M655,V:V,0),1)","v":{"$error":"#N/A"}},null,null,null,null,0]
[null,null,null,null,"INVALIDO",null,null,"INVALIDO",null,null,null,null,null,{"$f":"INDEX(U:V,MATCH(DADOS!M656,V:V,0),1)","v":{"$error":"#N/A"}},null,null,null,null,0]
[null,null,null,null,"INVALIDO",null,null,"INVALIDO",null,null,null,null,null,{"$f":"INDEX(U:V,MATCH(DADOS!M657,V:V,0),1)","v":{"$error":"#N/A"}},null,null,null,null,0]
[null,null,null,null,"INVALIDO",null,null,"INVALIDO",null,null,null,null,null,{"$f":"INDEX(U:V,MATCH(DADOS!M658,V:V,0),1)","v":{"$error":"#N/A"}},null,null,null,null,0]
[null,null,null,null,"INVALIDO",null,null,"INVALIDO",null,null,null,null,null,{"$f":"INDEX(U:V,MATCH(DADOS!M659,V:V,0),1)","v":{"$error":"#N/A"}},null,null,null,null,0]
[null,null,null,null,"INVALIDO",null,null,"INVALIDO",null,null,null,null,null,{"$f":"INDEX(U:V,MATCH(DADOS!M660,V:V,0),1)","v":{"$error":"#N/A"}},null,null,null,null,0]
[null,null,null,null,"INVALIDO",null,null,"INVALIDO",null,null,null,null,null,{"$f":"INDEX(U:V,MATCH(DADOS!M661,V:V,0),1)","v":{"$error":"#N/A"}},null,null,null,null,0]
[null,null,null,null,{"$f":"CPF(D662)","v":"INVALIDO"},null,null,{"$f":"PISPASEP(G662)","v":"INVALIDO"},null,null,null,null,null,{"$f":"INDEX(U:V,MATCH(DADOS!M662,V:V,0),1)","v":{"$error":"#N/A"}},null,null,null,null,0]
[null,null,null,null,"INVALIDO",null,null,"INVALIDO",null,null,null,null,null,{"$f":"INDEX(U:V,MATCH(DADOS!M663,V:V,0),1)","v":{"$error":"#N/A"}},null,null,null,null,0]
[null,null,null,null,"INVALIDO",null,null,"INVALIDO",null,null,null,null,null,{"$f":"INDEX(U:V,MATCH(DADOS!M664,V:V,0),1)","v":{"$error":"#N/A"}},null,null,null,null,0]
[null,null,null,null,"INVALIDO",null,null,"INVALIDO",null,null,null,null,null,{"$f":"INDEX(U:V,MATCH(DADOS!M665,V:V,0),1)","v":{"$error":"#N/A"}},null,null,null,null,0]
[null,null,null,null,"INVALIDO",null,null,"INVALIDO",null,null,null,null,null,{"$f":"INDEX(U:V,MATCH(DADOS!M666,V:V,0),1)","v":{"$error":"#N/A"}},null,null,null,null,0]
[null,null,null,null,"INVALIDO",null,null,"INVALIDO",null,null,null,null,null,{"$f":"INDEX(U:V,MATCH(DADOS!M667,V:V,0),1)","v":{"$error":"#N/A"}},null,null,null,null,0]
[null,null,null,null,"INVALIDO",null,null,"INVALIDO",null,null,null,null,null,{"$f":"INDEX(U:V,MATCH(DADOS!M668,V:V,0),1)","v":{"$error":"#N/A"}},null,null,null,null,0]
[null,null,null,null,"INVALIDO",null,null,"INVALIDO",null,null,null,null,null,{"$f":"INDEX(U:V,MATCH(DADOS!M669,V:V,0),1)","v":{"$error":"#N/A"}},null,null,null,null,0]
[null,null,null,null,"INVALIDO",null,null,"INVALIDO",null,null,null,null,null,{"$f":"INDEX(U:V,MATCH(DADOS!M670,V:V,0),1)","v":{"$error":"#N/A"}},null,null,null,null,0]
[null,null,null,null,"INVALIDO",null,null,"INVALIDO",null,null,null,null,null,{"$f":"INDEX(U:V,MATCH(DADOS!M671,V:V,0),1)","v":{"$error":"#N/A"}},null,null,null,null,0]
[null,null,null,null,"INVALIDO",null,null,"INVALIDO",null,null,null,null,null,{"$f":"INDEX(U:V,MATCH(DADOS!M672,V:V,0),1)","v":{"$error":"#N/A"}},null,null,null,null,0]
[null,null,null,null,"INVALIDO",null,null,"INVALIDO",null,null,null,null,null,{"$f":"INDEX(U:V,MATCH(DADOS!M673,V:V,0),1)","v":{"$error":"#N/A"}},null,null,null,null,0]
[null,null,null,null,"INVALIDO",null,null,"INVALIDO",null,null,null,null,null,{"$f":"INDEX(U:V,MATCH(DADOS!M674,V:V,0),1)","v":{"$error":"#N/A"}},null,null,null,null,0]
[null,null,null,null,"INVALIDO",null,null,"INVALIDO",null,null,null,null,null,{"$f":"INDEX(U:V,MATCH(DADOS!M675,V:V,0),1)","v":{"$error":"#N/A"}},null,null,null,null,0]
[null,null,null,null,"INVALIDO",null,null,"INVALIDO",null,null,null,null,null,{"$f":"INDEX(U:V,MATCH(DADOS!M676,V:V,0),1)","v":{"$error":"#N/A"}},null,null,null,null,0]
[null,null,null,null,"INVALIDO",null,null,"INVALIDO",null,null,null,null,null,{"$f":"INDEX(U:V,MATCH(DADOS!M677,V:V,0),1)","v":{"$error":"#N/A"}},null,null,null,null,0]
[null,null,null,null,"INVALIDO",null,null,"INVALIDO",null,null,null,null,null,{"$f":"INDEX(U:V,MATCH(DADOS!M678,V:V,0),1)","v":{"$error":"#N/A"}},null,null,null,null,0]
[null,null,null,null,"INVALIDO",null,null,"INVALIDO",null,null,null,null,null,{"$f":"INDEX(U:V,MATCH(DADOS!M679,V:V,0),1)","v":{"$error":"#N/A"}},null,null,null,null,0]
[null,null,null,null,"INVALIDO",null,null,"INVALIDO",null,null,null,null,null,{"$f":"INDEX(U:V,MATCH(DADOS!M680,V:V,0),1)","v":{"$error":"#N/A"}},null,null,null,null,0]
[null,null,null,null,"INVALIDO",null,null,"INVALIDO",null,null,null,null,null,{"$f":"INDEX(U:V,MATCH(DADOS!M681,V:V,0),1)","v":{"$error":"#N/A"}},null,null,null,null,0]
[null,null,null,null,"INVALIDO",null,null,"INVALIDO",null,null,null,null,null,{"$f":"INDEX(U:V,MATCH(DADOS!M682,V:V,0),1)","v":{"$error":"#N/A"}},null,null,null,null,0]
[null,null,null,null,"INVALIDO",null,null,"INVALIDO",null,null,null,null,null,{"$f":"INDEX(U:V,MATCH(DADOS!M683,V:V,0),1)","v":{"$error":"#N/A"}},null,null,null,null,0]
[null,null,null,null,"INVALIDO",null,null,"INVALIDO",null,null,null,null,null,{"$f":"INDEX(U:V,MATCH(DADOS!M684,V:V,0),1)","v":{"$error":"#N/A"}},null,null,null,null,0]
[null,null,null,null,"INVALIDO",null,null,"INVALIDO",null,null,null,null,null,{"$f":"INDEX(U:V,MATCH(DADOS!M685,V:V,0),1)","v":{"$error":"#N/A"}},null,null,null,null,0]
[null,null,null,null,"INVALIDO",null,null,"INVALIDO",null,null,null,null,null,{"$f":"INDEX(U:V,MATCH(DADOS!M686,V:V,0),1)","v":{"$error":"#N/A"}},null,null,null,null,0]
[null,null,null,null,"INVALIDO",null,null,"INVALIDO",null,null,null,null,null,{"$f":"INDEX(U:V,MATCH(DADOS!M687,V:V,0),1)","v":{"$error":"#N/A"}},null,null,null,null,0]
[null,null,null,null,"INVALIDO",null,null,"INVALIDO",null,null,null,null,null,{"$f":"INDEX(U:V,MATCH(DADOS!M688,V:V,0),1)","v":{"$error":"#N/A"}},null,null,null,null,0]
[null,null,null,null,"INVALIDO",null,null,"INVALIDO",null,null,null,null,null,{"$f":"INDEX(U:V,MATCH(DADOS!M689,V:V,0),1)","v":{"$error":"#N/A"}},null,null,null,null,0]
[null,null,null,null,"INVALIDO",null,null,"INVALIDO",null,null,null,null,null,{"$f":"INDEX(U:V,MATCH(DADOS!M690,V:V,0),1)","v":{"$error":"#N/A"}},null,null,null,null,0]
[null,null,null,null,"INVALIDO",null,null,"INVALIDO",null,null,null,null,null,{"$f":"INDEX(U:V,MATCH(DADOS!M691,V:V,0),1)","v":{"$error":"#N/A"}},null,null,null,null,0]
[null,null,null,null,"INVALIDO",null,null,"INVALIDO",null,null,null,null,null,{"$f":"INDEX(U:V,MATCH(DADOS!M692,V:V,0),1)","v":{"$error":"#N/A"}},null,null,null,null,0]
[null,null,null,null,"INVALIDO",null,null,"INVALIDO",null,null,null,null,null,{"$f":"INDEX(U:V,MATCH(DADOS!M693,V:V,0),1)","v":{"$error":"#N/A"}},null,null,null,null,0]
[null,null,null,null,"INVALIDO",null,null,"INVALIDO",null,null,null,null,null,{"$f":"INDEX(U:V,MATCH(DADOS!M694,V:V,0),1)","v":{"$error":"#N/A"}},null,null,null,null,0]
[null,null,null,null,"INVALIDO",null,null,"INVALIDO",null,null,null,null,null,{"$f":"INDEX(U:V,MATCH(DADOS!M695,V:V,0),1)","v":{"$error":"#N/A"}},null,null,null,null,0]
[null,null,null,null,"INVALIDO",null,null,"INVALIDO",null,null,null,null,null,{"$f":"INDEX(U:V,MATCH(DADOS!M696,V:V,0),1)","v":{"$error":"#N/A"}},null,null,null,null,0]
[null,null,null,null,"INVALIDO",null,null,"INVALIDO",null,null,null,null,null,{"$f":"INDEX(U:V,MATCH(DADOS!M697,V:V,0),1)","v":{"$error":"#N/A"}},null,null,null,null,0]
[null,null,null,null,"INVALIDO",null,null,"INVALIDO",null,null,null,null,null,{"$f":"INDEX(U:V,MATCH(DADOS!M698,V:V,0),1)","v":{"$error":"#N/A"}},null,null,null,null,0]
[null,null,null,null,"INVALIDO",null,null,"INVALIDO",null,null,null,null,null,{"$f":"INDEX(U:V,MATCH(DADOS!M699,V:V,0),1)","v":{"$error":"#N/A"}},null,null,null,null,0]
[null,null,null,null,"INVALIDO",null,null,"INVALIDO",null,null,null,null,null,{"$f":"INDEX(U:V,MATCH(DADOS!M700,V:V,0),1)","v":{"$error":"#N/A"}},null,null,null,null,0]
[null,null,null,null,"INVALIDO",null,null,"INVALIDO",null,null,null,null,null,{"$f":"INDEX(U:V,MATCH(DADOS!M701,V:V,0),1)","v":{"$error":"#N/A"}},null,null,null,null,0]
[null,null,null,null,"INVALIDO",null,null,"INVALIDO",null,null,null,null,null,{"$f":"INDEX(U:V,MATCH(DADOS!M702,V:V,0),1)","v":{"$error":"#N/A"}},null,null,null,null,0]
[null,null,null,null,"INVALIDO",null,null,"INVALIDO",null,null,null,null,null,{"$f":"INDEX(U:V,MATCH(DADOS!M703,V:V,0),1)","v":{"$error":"#N/A"}},null,null,null,null,0]
[null,null,null,null,"INVALIDO",null,null,"INVALIDO",null,null,null,null,null,{"$f":"INDEX(U:V,MATCH(DADOS!M704,V:V,0),1)","v":{"$error":"#N/A"}},null,null,null,null,0]
[null,null,null,null,"INVALIDO",null,null,"INVALIDO",null,null,null,null,null,{"$f":"INDEX(U:V,MATCH(DADOS!M705,V:V,0),1)","v":{"$error":"#N/A"}},null,null,null,null,0]
[null,null,null,null,"INVALIDO",null,null,"INVALIDO",null,null,null,null,null,{"$f":"INDEX(U:V,MATCH(DADOS!M706,V:V,0),1)","v":{"$error":"#N/A"}},null,null,null,null,0]
[null,null,null,null,"INVALIDO",null,null,"INVALIDO",null,null,null,null,null,{"$f":"INDEX(U:V,MATCH(DADOS!M707,V:V,0),1)","v":{"$error":"#N/A"}},null,null,null,null,{"$f":"S707","v":0}]
[null,null,null,null,"INVALIDO",null,null,"INVALIDO",null,null,null,null,null,{"$f":"INDEX(U:V,MATCH(DADOS!M708,V:V,0),1)","v":{"$error":"#N/A"}},null,null,null,null,0]
[null,null,null,null,"INVALIDO",null,null,"INVALIDO",null,null,null,null,null,{"$f":"INDEX(U:V,MATCH(DADOS!M709,V:V,0),1)","v":{"$error":"#N/A"}},null,null,null,null,0]
[null,null,null,null,"INVALIDO",null,null,"INVALIDO",null,null,null,null,null,{"$f":"INDEX(U:V,MATCH(DADOS!M710,V:V,0),1)","v":{"$error":"#N/A"}},null,null,null,null,0]
[null,null,null,null,"INVALIDO",null,null,"INVALIDO",null,null,null,null,null,{"$f":"INDEX(U:V,MATCH(DADOS!M711,V:V,0),1)","v":{"$error":"#N/A"}},null,null,null,null,0]
[null,null,null,null,"INVALIDO",null,null,"INVALIDO",null,null,null,null,null,{"$f":"INDEX(U:V,MATCH(DADOS!M712,V:V,0),1)","v":{"$error":"#N/A"}},null,null,null,null,0]
[null,null,null,null,"INVALIDO",null,null,"INVALIDO",null,null,null,null,null,{"$f":"INDEX(U:V,MATCH(DADOS!M713,V:V,0),1)","v":{"$error":"#N/A"}},null,null,null,null,0]
[null,null,null,null,"INVALIDO",null,null,"INVALIDO",null,null,null,null,null,{"$f":"INDEX(U:V,MATCH(DADOS!M714,V:V,0),1)","v":{"$error":"#N/A"}},null,null,null,null,0]
[null,null,null,null,"INVALIDO",null,null,"INVALIDO",null,null,null,null,null,{"$f":"INDEX(U:V,MATCH(DADOS!M715,V:V,0),1)","v":{"$error":"#N/A"}},null,null,null,null,0]
[null,null,null,null,"INVALIDO",null,null,"INVALIDO",null,null,null,null,null,{"$f":"INDEX(U:V,MATCH(DADOS!M716,V:V,0),1)","v":{"$error":"#N/A"}},null,null,null,null,0]
[null,null,null,null,"INVALIDO",null,null,"INVALIDO",null,null,null,null,null,{"$f":"INDEX(U:V,MATCH(DADOS!M717,V:V,0),1)","v":{"$error":"#N/A"}},null,null,null,null,0]
[null,null,null,null,"INVALIDO",null,null,"INVALIDO",null,null,null,null,null,{"$f":"INDEX(U:V,MATCH(DADOS!M718,V:V,0),1)","v":{"$error":"#N/A"}},null,null,null,null,0]
[null,null,null,null,"INVALIDO",null,null,"INVALIDO",null,null,null,null,null,{"$f":"INDEX(U:V,MATCH(DADOS!M719,V:V,0),1)","v":{"$error":"#N/A"}},null,null,null,null,0]
[null,null,null,null,"INVALIDO",null,null,"INVALIDO",null,null,null,null,null,{"$f":"INDEX(U:V,MATCH(DADOS!M720,V:V,0),1)","v":{"$error":"#N/A"}},null,null,null,null,0]
[null,null,null,null,"INVALIDO",null,null,"INVALIDO",null,null,null,null,null,{"$f":"INDEX(U:V,MATCH(DADOS!M721,V:V,0),1)","v":{"$error":"#N/A"}},null,null,null,null,0]
[null,null,null,null,"INVALIDO",null,null,"INVALIDO",null,null,null,null,null,{"$f":"INDEX(U:V,MATCH(DADOS!M722,V:V,0),1)","v":{"$error":"#N/A"}},null,null,null,null,0]
[null,null,null,null,"INVALIDO",null,null,"INVALIDO",null,null,null,null,null,{"$f":"INDEX(U:V,MATCH(DADOS!M723,V:V,0),1)","v":{"$error":"#N/A"}},null,null,null,null,0]
[null,null,null,null,"INVALIDO",null,null,"INVALIDO",null,null,null,null,null,{"$f":"INDEX(U:V,MATCH(DADOS!M724,V:V,0),1)","v":{"$error":"#N/A"}},null,null,null,null,0]
[null,null,null,null,"INVALIDO",null,null,"INVALIDO",null,null,null,null,null,{"$f":"INDEX(U:V,MATCH(DADOS!M725,V:V,0),1)","v":{"$error":"#N/A"}},null,null,null,null,0]
[null,null,null,null,{"$f":"CPF(D726)","v":"INVALIDO"},null,null,{"$f":"PISPASEP(G726)","v":"INVALIDO"},null,null,null,null,null,{"$f":"INDEX(U:V,MATCH(DADOS!M726,V:V,0),1)","v":{"$error":"#N/A"}},null,null,null,null,0]
[null,null,null,null,"INVALIDO",null,null,"INVALIDO",null,null,null,null,null,{"$f":"INDEX(U:V,MATCH(DADOS!M727,V:V,0),1)","v":{"$error":"#N/A"}},null,null,null,null,0]
[null,null,null,null,"INVALIDO",null,null,"INVALIDO",null,null,null,null,null,{"$f":"INDEX(U:V,MATCH(DADOS!M728,V:V,0),1)","v":{"$error":"#N/A"}},null,null,null,null,0]
[null,null,null,null,"INVALIDO",null,null,"INVALIDO",null,null,null,null,null,{"$f":"INDEX(U:V,MATCH(DADOS!M729,V:V,0),1)","v":{"$error":"#N/A"}},null,null,null,null,0]
[null,null,null,null,"INVALIDO",null,null,"INVALIDO",null,null,null,null,null,{"$f":"INDEX(U:V,MATCH(DADOS!M730,V:V,0),1)","v":{"$error":"#N/A"}},null,null,null,null,0]
[null,null,null,null,"INVALIDO",null,null,"INVALIDO",null,null,null,null,null,{"$f":"INDEX(U:V,MATCH(DADOS!M731,V:V,0),1)","v":{"$error":"#N/A"}},null,null,null,null,0]
[null,null,null,null,"INVALIDO",null,null,"INVALIDO",null,null,null,null,null,{"$f":"INDEX(U:V,MATCH(DADOS!M732,V:V,0),1)","v":{"$error":"#N/A"}},null,null,null,null,0]
[null,null,null,null,"INVALIDO",null,null,"INVALIDO",null,null,null,null,null,{"$f":"INDEX(U:V,MATCH(DADOS!M733,V:V,0),1)","v":{"$error":"#N/A"}},null,null,null,null,0]
[null,null,null,null,"INVALIDO",null,null,"INVALIDO",null,null,null,null,null,{"$f":"INDEX(U:V,MATCH(DADOS!M734,V:V,0),1)","v":{"$error":"#N/A"}},null,null,null,null,0]
[null,null,null,null,"INVALIDO",null,null,"INVALIDO",null,null,null,null,null,{"$f":"INDEX(U:V,MATCH(DADOS!M735,V:V,0),1)","v":{"$error":"#N/A"}},null,null,null,null,0]
[null,null,null,null,"INVALIDO",null,null,"INVALIDO",null,null,null,null,null,{"$f":"INDEX(U:V,MATCH(DADOS!M736,V:V,0),1)","v":{"$error":"#N/A"}},null,null,null,null,0]
[null,null,null,null,"INVALIDO",null,null,"INVALIDO",null,null,null,null,null,{"$f":"INDEX(U:V,MATCH(DADOS!M737,V:V,0),1)","v":{"$error":"#N/A"}},null,null,null,null,0]
[null,null,null,null,"INVALIDO",null,null,"INVALIDO",null,null,null,null,null,{"$f":"INDEX(U:V,MATCH(DADOS!M738,V:V,0),1)","v":{"$error":"#N/A"}},null,null,null,null,0]
[null,null,null,null,"INVALIDO",null,null,"INVALIDO",null,null,null,null,null,{"$f":"INDEX(U:V,MATCH(DADOS!M739,V:V,0),1)","v":{"$error":"#N/A"}},null,null,null,null,0]
[null,null,null,null,"INVALIDO",null,null,"INVALIDO",null,null,null,null,null,{"$f":"INDEX(U:V,MATCH(DADOS!M740,V:V,0),1)","v":{"$error":"#N/A"}},null,null,null,null,0]
[null,null,null,null,"INVALIDO",null,null,"INVALIDO",null,null,null,null,null,{"$f":"INDEX(U:V,MATCH(DADOS!M741,V:V,0),1)","v":{"$error":"#N/A"}},null,null,null,null,0]
[null,null,null,null,"INVALIDO",null,null,"INVALIDO",null,null,null,null,null,{"$f":"INDEX(U:V,MATCH(DADOS!M742,V:V,0),1)","v":{"$error":"#N/A"}},null,null,null,null,0]
[null,null,null,null,"INVALIDO",null,null,"INVALIDO",null,null,null,null,null,{"$f":"INDEX(U:V,MATCH(DADOS!M743,V:V,0),1)","v":{"$error":"#N/A"}},null,null,null,null,0]
[null,null,null,null,"INVALIDO",null,null,"INVALIDO",null,null,null,null,null,{"$f":"INDEX(U:V,MATCH(DADOS!M744,V:V,0),1)","v":{"$error":"#N/A"}},null,null,null,null,0]
[null,null,null,null,"INVALIDO",null,null,"INVALIDO",null,null,null,null,null,{"$f":"INDEX(U:V,MATCH(DADOS!M745,V:V,0),1)","v":{"$error":"#N/A"}},null,null,null,null,0]
[null,null,null,null,"INVALIDO",null,null,"INVALIDO",null,null,null,null,null,{"$f":"INDEX(U:V,MATCH(DADOS!M746,V:V,0),1)","v":{"$error":"#N/A"}},null,null,null,null,0]
[null,null,null,null,"INVALIDO",null,null,"INVALIDO",null,null,null,null,null,{"$f":"INDEX(U:V,MATCH(DADOS!M747,V:V,0),1)","v":{"$error":"#N/A"}},null,null,null,null,0]
[null,null,null,null,"INVALIDO",null,null,"INVALIDO",null,null,null,null,null,{"$f":"INDEX(U:V,MATCH(DADOS!M748,V:V,0),1)","v":{"$error":"#N/A"}},null,null,null,null,0]
[null,null,null,null,"INVALIDO",null,null,"INVALIDO",null,null,null,null,null,{"$f":"INDEX(U:V,MATCH(DADOS!M749,V:V,0),1)","v":{"$error":"#N/A"}},null,null,null,null,0]
[null,null,null,null,"INVALIDO",null,null,"INVALIDO",null,null,null,null,null,{"$f":"INDEX(U:V,MATCH(DADOS!M750,V:V,0),1)","v":{"$error":"#N/A"}},null,null,null,null,0]
[null,null,null,null,"INVALIDO",null,null,"INVALIDO",null,null,null,null,null,{"$f":"INDEX(U:V,MATCH(DADOS!M751,V:V,0),1)","v":{"$error":"#N/A"}},null,null,null,null,0]
[null,null,null,null,"INVALIDO",null,null,"INVALIDO",null,null,null,null,null,{"$f":"INDEX(U:V,MATCH(DADOS!M752,V:V,0),1)","v":{"$error":"#N/A"}},null,null,null,null,0]
[null,null,null,null,"INVALIDO",null,null,"INVALIDO",null,null,null,null,null,{"$f":"INDEX(U:V,MATCH(DADOS!M753,V:V,0),1)","v":{"$error":"#N/A"}},null,null,null,null,0]
[null,null,null,null,"INVALIDO",null,null,"INVALIDO",null,null,null,null,null,{"$f":"INDEX(U:V,MATCH(DADOS!M754,V:V,0),1)","v":{"$error":"#N/A"}},null,null,null,null,0]
[null,null,null,null,"INVALIDO",null,null,"INVALIDO",null,null,null,null,null,{"$f":"INDEX(U:V,MATCH(DADOS!M755,V:V,0),1)","v":{"$error":"#N/A"}},null,null,null,null,0]
[null,null,null,null,"INVALIDO",null,null,"INVALIDO",null,null,null,null,null,{"$f":"INDEX(U:V,MATCH(DADOS!M756,V:V,0),1)","v":{"$error":"#N/A"}},null,null,null,null,0]
[null,null,null,null,"INVALIDO",null,null,"INVALIDO",null,null,null,null,null,{"$f":"INDEX(U:V,MATCH(DADOS!M757,V:V,0),1)","v":{"$error":"#N/A"}},null,null,null,null,0]
[null,null,null,null,"INVALIDO",null,null,"INVALIDO",null,null,null,null,null,{"$f":"INDEX(U:V,MATCH(DADOS!M758,V:V,0),1)","v":{"$error":"#N/A"}},null,null,null,null,0]
[null,null,null,null,"INVALIDO",null,null,"INVALIDO",null,null,null,null,null,{"$f":"INDEX(U:V,MATCH(DADOS!M759,V:V,0),1)","v":{"$error":"#N/A"}},null,null,null,null,0]
[null,null,null,null,"INVALIDO",null,null,"INVALIDO",null,null,null,null,null,{"$f":"INDEX(U:V,MATCH(DADOS!M760,V:V,0),1)","v":{"$error":"#N/A"}},null,null,null,null,0]
[null,null,null,null,"INVALIDO",null,null,"INVALIDO",null,null,null,null,null,{"$f":"INDEX(U:V,MATCH(DADOS!M761,V:V,0),1)","v":{"$error":"#N/A"}},null,null,null,null,0]
[null,null,null,null,"INVALIDO",null,null,"INVALIDO",null,null,null,null,null,{"$f":"INDEX(U:V,MATCH(DADOS!M762,V:V,0),1)","v":{"$error":"#N/A"}},null,null,null,null,0]
[null,null,null,null,"INVALIDO",null,null,"INVALIDO",null,null,null,null,null,{"$f":"INDEX(U:V,MATCH(DADOS!M763,V:V,0),1)","v":{"$error":"#N/A"}},null,null,null,null,0]
[null,null,null,null,"INVALIDO",null,null,"INVALIDO",null,null,null,null,null,{"$f":"INDEX(U:V,MATCH(DADOS!M764,V:V,0),1)","v":{"$error":"#N/A"}},null,null,null,null,0]
[null,null,null,null,"INVALIDO",null,null,"INVALIDO",null,null,null,null,null,{"$f":"INDEX(U:V,MATCH(DADOS!M765,V:V,0),1)","v":{"$error":"#N/A"}},null,null,null,null,0]
[null,null,null,null,"INVALIDO",null,null,"INVALIDO",null,null,null,null,null,{"$f":"INDEX(U:V,MATCH(DADOS!M766,V:V,0),1)","v":{"$error":"#N/A"}},null,null,null,null,0]
[null,null,null,null,"INVALIDO",null,null,"INVALIDO",null,null,null,null,null,{"$f":"INDEX(U:V,MATCH(DADOS!M767,V:V,0),1)","v":{"$error":"#N/A"}},null,null,null,null,0]
[null,null,null,null,"INVALIDO",null,null,"INVALIDO",null,null,null,null,null,{"$f":"INDEX(U:V,MATCH(DADOS!M768,V:V,0),1)","v":{"$error":"#N/A"}},null,null,null,null,0]
[null,null,null,null,"INVALIDO",null,null,"INVALIDO",null,null,null,null,null,{"$f":"INDEX(U:V,MATCH(DADOS!M769,V:V,0),1)","v":{"$error":"#N/A"}},null,null,null,null,0]
[null,null,null,null,"INVALIDO",null,null,"INVALIDO",null,null,null,null,null,{"$f":"INDEX(U:V,MATCH(DADOS!M770,V:V,0),1)","v":{"$error":"#N/A"}},null,null,null,null,0]
[null,null,null,null,"INVALIDO",null,null,"INVALIDO",null,null,null,null,null,{"$f":"INDEX(U:V,MATCH(DADOS!M771,V:V,0),1)","v":{"$error":"#N/A"}},null,null,null,null,{"$f":"S771","v":0}]
[null,null,null,null,"INVALIDO",null,null,"INVALIDO",null,null,null,null,null,{"$f":"INDEX(U:V,MATCH(DADOS!M772,V:V,0),1)","v":{"$error":"#N/A"}},null,null,null,null,0]
[null,null,null,null,"INVALIDO",null,null,"INVALIDO",null,null,null,null,null,{"$f":"INDEX(U:V,MATCH(DADOS!M773,V:V,0),1)","v":{"$error":"#N/A"}},null,null,null,null,0]
[null,null,null,null,"INVALIDO",null,null,"INVALIDO",null,null,null,null,null,{"$f":"INDEX(U:V,MATCH(DADOS!M774,V:V,0),1)","v":{"$error":"#N/A"}},null,null,null,null,0]
[null,null,null,null,"INVALIDO",null,null,"INVALIDO",null,null,null,null,null,{"$f":"INDEX(U:V,MATCH(DADOS!M775,V:V,0),1)","v":{"$error":"#N/A"}},null,null,null,null,0]
[null,null,null,null,"INVALIDO",null,null,"INVALIDO",null,null,null,null,null,{"$f":"INDEX(U:V,MATCH(DADOS!M776,V:V,0),1)","v":{"$error":"#N/A"}},null,null,null,null,0]
[null,null,null,null,"INVALIDO",null,null,"INVALIDO",null,null,null,null,null,{"$f":"INDEX(U:V,MATCH(DADOS!M777,V:V,0),1)","v":{"$error":"#N/A"}},null,null,null,null,0]
[null,null,null,null,"INVALIDO",null,null,"INVALIDO",null,null,null,null,null,{"$f":"INDEX(U:V,MATCH(DADOS!M778,V:V,0),1)","v":{"$error":"#N/A"}},null,null,null,null,0]
[null,null,null,null,"INVALIDO",null,null,"INVALIDO",null,null,null,null,null,{"$f":"INDEX(U:V,MATCH(DADOS!M779,V:V,0),1)","v":{"$error":"#N/A"}},null,null,null,null,0]
[null,null,null,null,"INVALIDO",null,null,"INVALIDO",null,null,null,null,null,{"$f":"INDEX(U:V,MATCH(DADOS!M780,V:V,0),1)","v":{"$error":"#N/A"}},null,null,null,null,0]
[null,null,null,null,"INVALIDO",null,null,"INVALIDO",null,null,null,null,null,{"$f":"INDEX(U:V,MATCH(DADOS!M781,V:V,0),1)","v":{"$error":"#N/A"}},null,null,null,null,0]
[null,null,null,null,"INVALIDO",null,null,"INVALIDO",null,null,null,null,null,{"$f":"INDEX(U:V,MATCH(DADOS!M782,V:V,0),1)","v":{"$error":"#N/A"}},null,null,null,null,0]
[null,null,null,null,"INVALIDO",null,null,"INVALIDO",null,null,null,null,null,{"$f":"INDEX(U:V,MATCH(DADOS!M783,V:V,0),1)","v":{"$error":"#N/A"}},null,null,null,null,0]
[null,null,null,null,"INVALIDO",null,null,"INVALIDO",null,null,null,null,null,{"$f":"INDEX(U:V,MATCH(DADOS!M784,V:V,0),1)","v":{"$error":"#N/A"}},null,null,null,null,0]
[null,null,null,null,"INVALIDO",null,null,"INVALIDO",null,null,null,null,null,{"$f":"INDEX(U:V,MATCH(DADOS!M785,V:V,0),1)","v":{"$error":"#N/A"}},null,null,null,null,0]
[null,null,null,null,"INVALIDO",null,null,"INVALIDO",null,null,null,null,null,{"$f":"INDEX(U:V,MATCH(DADOS!M786,V:V,0),1)","v":{"$error":"#N/A"}},null,null,null,null,0]
[null,null,null,null,"INVALIDO",null,null,"INVALIDO",null,null,null,null,null,{"$f":"INDEX(U:V,MATCH(DADOS!M787,V:V,0),1)","v":{"$error":"#N/A"}},null,null,null,null,0]
[null,null,null,null,"INVALIDO",null,null,"INVALIDO",null,null,null,null,null,{"$f":"INDEX(U:V,MATCH(DADOS!M788,V:V,0),1)","v":{"$error":"#N/A"}},null,null,null,null,0]
[null,null,null,null,"INVALIDO",null,null,"INVALIDO",null,null,null,null,null,{"$f":"INDEX(U:V,MATCH(DADOS!M789,V:V,0),1)","v":{"$error":"#N/A"}},null,null,null,null,0]
[null,null,null,null,{"$f":"CPF(D790)","v":"INVALIDO"},null,null,{"$f":"PISPASEP(G790)","v":"INVALIDO"},null,null,null,null,null,{"$f":"INDEX(U:V,MATCH(DADOS!M790,V:V,0),1)","v":{"$error":"#N/A"}},null,null,null,null,0]
[null,null,null,null,"INVALIDO",null,null,"INVALIDO",null,null,null,null,null,{"$f":"INDEX(U:V,MATCH(DADOS!M791,V:V,0),1)","v":{"$error":"#N/A"}},null,null,null,null,0]
[null,null,null,null,"INVALIDO",null,null,"INVALIDO",null,null,null,null,null,{"$f":"INDEX(U:V,MATCH(DADOS!M792,V:V,0),1)","v":{"$error":"#N/A"}},null,null,null,null,0]
[null,null,null,null,"INVALIDO",null,null,"INVALIDO",null,null,null,null,null,{"$f":"INDEX(U:V,MATCH(DADOS!M793,V:V,0),1)","v":{"$error":"#N/A"}},null,null,null,null,0]
[null,null,null,null,"INVALIDO",null,null,"INVALIDO",null,null,null,null,null,{"$f":"INDEX(U:V,MATCH(DADOS!M794,V:V,0),1)","v":{"$error":"#N/A"}},null,null,null,null,0]
[null,null,null,null,"INVALIDO",null,null,"INVALIDO",null,null,null,null,null,{"$f":"INDEX(U:V,MATCH(DADOS!M795,V:V,0),1)","v":{"$error":"#N/A"}},null,null,null,null,0]
[null,null,null,null,"INVALIDO",null,null,"INVALIDO",null,null,null,null,null,{"$f":"INDEX(U:V,MATCH(DADOS!M796,V:V,0),1)","v":{"$error":"#N/A"}},null,null,null,null,0]
[null,null,null,null,"INVALIDO",null,null,"INVALIDO",null,null,null,null,null,{"$f":"INDEX(U:V,MATCH(DADOS!M797,V:V,0),1)","v":{"$error":"#N/A"}},null,null,null,null,0]
[null,null,null,null,"INVALIDO",null,null,"INVALIDO",null,null,null,null,null,{"$f":"INDEX(U:V,MATCH(DADOS!M798,V:V,0),1)","v":{"$error":"#N/A"}},null,null,null,null,0]
[null,null,null,null,"INVALIDO",null,null,"INVALIDO",null,null,null,null,null,{"$f":"INDEX(U:V,MATCH(DADOS!M799,V:V,0),1)","v":{"$error":"#N/A"}},null,null,null,null,0]
[null,null,null,null,"INVALIDO",null,null,"INVALIDO",null,null,null,null,null,{"$f":"INDEX(U:V,MATCH(DADOS!M800,V:V,0),1)","v":{"$error":"#N/A"}},null,null,null,null,0]
[null,null,null,null,"INVALIDO",null,null,"INVALIDO",null,null,null,null,null,{"$f":"INDEX(U:V,MATCH(DADOS!M801,V:V,0),1)","v":{"$error":"#N/A"}},null,null,null,null,0]
[null,null,null,null,"INVALIDO",null,null,"INVALIDO",null,null,null,null,null,{"$f":"INDEX(U:V,MATCH(DADOS!M802,V:V,0),1)","v":{"$error":"#N/A"}},null,null,null,null,0]
[null,null,null,null,"INVALIDO",null,null,"INVALIDO",null,null,null,null,null,{"$f":"INDEX(U:V,MATCH(DADOS!M803,V:V,0),1)","v":{"$error":"#N/A"}},null,null,null,null,0]
[null,null,null,null,"INVALIDO",null,null,"INVALIDO",null,null,null,null,null,{"$f":"INDEX(U:V,MATCH(DADOS!M804,V:V,0),1)","v":{"$error":"#N/A"}},null,null,null,null,0]
[null,null,null,null,"INVALIDO",null,null,"INVALIDO",null,null,null,null,null,{"$f":"INDEX(U:V,MATCH(DADOS!M805,V:V,0),1)","v":{"$error":"#N/A"}},null,null,null,null,0]
[null,null,null,null,"INVALIDO",null,null,"INVALIDO",null,null,null,null,null,{"$f":"INDEX(U:V,MATCH(DADOS!M806,V:V,0),1)","v":{"$error":"#N/A"}},null,null,null,null,0]
[null,null,null,null,"INVALIDO",null,null,"INVALIDO",null,null,null,null,null,{"$f":"INDEX(U:V,MATCH(DADOS!M807,V:V,0),1)","v":{"$error":"#N/A"}},null,null,null,null,0]
[null,null,null,null,"INVALIDO",null,null,"INVALIDO",null,null,null,null,null,{"$f":"INDEX(U:V,MATCH(DADOS!M808,V:V,0),1)","v":{"$error":"#N/A"}},null,null,null,null,0]
[null,null,null,null,"INVALIDO",null,null,"INVALIDO",null,null,null,null,null,{"$f":"INDEX(U:V,MATCH(DADOS!M809,V:V,0),1)","v":{"$error":"#N/A"}},null,null,null,null,0]
[null,null,null,null,"INVALIDO",null,null,"INVALIDO",null,null,null,null,null,{"$f":"INDEX(U:V,MATCH(DADOS!M810,V:V,0),1)","v":{"$error":"#N/A"}},null,null,null,null,0]
[null,null,null,null,"INVALIDO",null,null,"INVALIDO",null,null,null,null,null,{"$f":"INDEX(U:V,MATCH(DADOS!M811,V:V,0),1)","v":{"$error":"#N/A"}},null,null,null,null,0]
[null,null,null,null,"INVALIDO",null,null,"INVALIDO",null,null,null,null,null,{"$f":"INDEX(U:V,MATCH(DADOS!M812,V:V,0),1)","v":{"$error":"#N/A"}},null,null,null,null,0]
[null,null,null,null,"INVALIDO",null,null,"INVALIDO",null,null,null,null,null,{"$f":"INDEX(U:V,MATCH(DADOS!M813,V:V,0),1)","v":{"$error":"#N/A"}},null,null,null,null,0]
[null,null,null,null,"INVALIDO",null,null,"INVALIDO",null,null,null,null,null,{"$f":"INDEX(U:V,MATCH(DADOS!M814,V:V,0),1)","v":{"$error":"#N/A"}},null,null,null,null,0]
[null,null,null,null,"INVALIDO",null,null,"INVALIDO",null,null,null,null,null,{"$f":"INDEX(U:V,MATCH(DADOS!M815,V:V,0),1)","v":{"$error":"#N/A"}},null,null,null,null,0]
[null,null,null,null,"INVALIDO",null,null,"INVALIDO",null,null,null,null,null,{"$f":"INDEX(U:V,MATCH(DADOS!M816,V:V,0),1)","v":{"$error":"#N/A"}},null,null,null,null,0]
[null,null,null,null,"INVALIDO",null,null,"INVALIDO",null,null,null,null,null,{"$f":"INDEX(U:V,MATCH(DADOS!M817,V:V,0),1)","v":{"$error":"#N/A"}},null,null,null,null,0]
[null,null,null,null,"INVALIDO",null,null,"INVALIDO",null,null,null,null,null,{"$f":"INDEX(U:V,MATCH(DADOS!M818,V:V,0),1)","v":{"$error":"#N/A"}},null,null,null,null,0]
[null,null,null,null,"INVALIDO",null,null,"INVALIDO",null,null,null,null,null,{"$f":"INDEX(U:V,MATCH(DADOS!M819,V:V,0),1)","v":{"$error":"#N/A"}},null,null,null,null,0]
[null,null,null,null,"INVALIDO",null,null,"INVALIDO",null,null,null,null,null,{"$f":"INDEX(U:V,MATCH(DADOS!M820,V:V,0),1)","v":{"$error":"#N/A"}},null,null,null,null,0]
[null,null,null,null,"INVALIDO",null,null,"INVALIDO",null,null,null,null,null,{"$f":"INDEX(U:V,MATCH(DADOS!M821,V:V,0),1)","v":{"$error":"#N/A"}},null,null,null,null,0]
[null,null,null,null,"INVALIDO",null,null,"INVALIDO",null,null,null,null,null,{"$f":"INDEX(U:V,MATCH(DADOS!M822,V:V,0),1)","v":{"$error":"#N/A"}},null,null,null,null,0]
[null,null,null,null,"INVALIDO",null,null,"INVALIDO",null,null,null,null,null,{"$f":"INDEX(U:V,MATCH(DADOS!M823,V:V,0),1)","v":{"$error":"#N/A"}},null,null,null,null,0]
[null,null,null,null,"INVALIDO",null,null,"INVALIDO",null,null,null,null,null,{"$f":"INDEX(U:V,MATCH(DADOS!M824,V:V,0),1)","v":{"$error":"#N/A"}},null,null,null,null,0]
[null,null,null,null,"INVALIDO",null,null,"INVALIDO",null,null,null,null,null,{"$f":"INDEX(U:V,MATCH(DADOS!M825,V:V,0),1)","v":{"$error":"#N/A"}},null,null,null,null,0]
[null,null,null,null,"INVALIDO",null,null,"INVALIDO",null,null,null,null,null,{"$f":"INDEX(U:V,MATCH(DADOS!M826,V:V,0),1)","v":{"$error":"#N/A"}},null,null,null,null,0]
[null,null,null,null,"INVALIDO",null,null,"INVALIDO",null,null,null,null,null,{"$f":"INDEX(U:V,MATCH(DADOS!M827,V:V,0),1)","v":{"$error":"#N/A"}},null,null,null,null,0]
[null,null,null,null,"INVALIDO",null,null,"INVALIDO",null,null,null,null,null,{"$f":"INDEX(U:V,MATCH(DADOS!M828,V:V,0),1)","v":{"$error":"#N/A"}},null,null,null,null,0]
[null,null,null,null,"INVALIDO",null,null,"INVALIDO",null,null,null,null,null,{"$f":"INDEX(U:V,MATCH(DADOS!M829,V:V,0),1)","v":{"$error":"#N/A"}},null,null,null,null,0]
[null,null,null,null,"INVALIDO",null,null,"INVALIDO",null,null,null,null,null,{"$f":"INDEX(U:V,MATCH(DADOS!M830,V:V,0),1)","v":{"$error":"#N/A"}},null,null,null,null,0]
[null,null,null,null,"INVALIDO",null,null,"INVALIDO",null,null,null,null,null,{"$f":"INDEX(U:V,MATCH(DADOS!M831,V:V,0),1)","v":{"$error":"#N/A"}},null,null,null,null,0]
[null,null,null,null,"INVALIDO",null,null,"INVALIDO",null,null,null,null,null,{"$f":"INDEX(U:V,MATCH(DADOS!M832,V:V,0),1)","v":{"$error":"#N/A"}},null,null,null,null,0]
[null,null,null,null,"INVALIDO",null,null,"INVALIDO",null,null,null,null,null,{"$f":"INDEX(U:V,MATCH(DADOS!M833,V:V,0),1)","v":{"$error":"#N/A"}},null,null,null,null,0]
[null,null,null,null,"INVALIDO",null,null,"INVALIDO",null,null,null,null,null,{"$f":"INDEX(U:V,MATCH(DADOS!M834,V:V,0),1)","v":{"$error":"#N/A"}},null,null,null,null,0]
[null,null,null,null,"INVALIDO",null,null,"INVALIDO",null,null,null,null,null,{"$f":"INDEX(U:V,MATCH(DADOS!M835,V:V,0),1)","v":{"$error":"#N/A"}},null,null,null,null,{"$f":"S835","v":0}]
[null,null,null,null,"INVALIDO",null,null,"INVALIDO",null,null,null,null,null,{"$f":"INDEX(U:V,MATCH(DADOS!M836,V:V,0),1)","v":{"$error":"#N/A"}},null,null,null,null,0]
[null,null,null,null,"INVALIDO",null,null,"INVALIDO",null,null,null,null,null,{"$f":"INDEX(U:V,MATCH(DADOS!M837,V:V,0),1)","v":{"$error":"#N/A"}},null,null,null,null,0]
[null,null,null,null,"INVALIDO",null,null,"INVALIDO",null,null,null,null,null,{"$f":"INDEX(U:V,MATCH(DADOS!M838,V:V,0),1)","v":{"$error":"#N/A"}},null,null,null,null,0]
[null,null,null,null,"INVALIDO",null,null,"INVALIDO",null,null,null,null,null,{"$f":"INDEX(U:V,MATCH(DADOS!M839,V:V,0),1)","v":{"$error":"#N/A"}},null,null,null,null,0]
[null,null,null,null,"INVALIDO",null,null,"INVALIDO",null,null,null,null,null,{"$f":"INDEX(U:V,MATCH(DADOS!M840,V:V,0),1)","v":{"$error":"#N/A"}},null,null,null,null,0]
[null,null,null,null,"INVALIDO",null,null,"INVALIDO",null,null,null,null,null,{"$f":"INDEX(U:V,MATCH(DADOS!M841,V:V,0),1)","v":{"$error":"#N/A"}},null,null,null,null,0]
[null,null,null,null,"INVALIDO",null,null,"INVALIDO",null,null,null,null,null,{"$f":"INDEX(U:V,MATCH(DADOS!M842,V:V,0),1)","v":{"$error":"#N/A"}},null,null,null,null,0]
[null,null,null,null,"INVALIDO",null,null,"INVALIDO",null,null,null,null,null,{"$f":"INDEX(U:V,MATCH(DADOS!M843,V:V,0),1)","v":{"$error":"#N/A"}},null,null,null,null,0]
[null,null,null,null,"INVALIDO",null,null,"INVALIDO",null,null,null,null,null,{"$f":"INDEX(U:V,MATCH(DADOS!M844,V:V,0),1)","v":{"$error":"#N/A"}},null,null,null,null,0]
[null,null,null,null,"INVALIDO",null,null,"INVALIDO",null,null,null,null,null,{"$f":"INDEX(U:V,MATCH(DADOS!M845,V:V,0),1)","v":{"$error":"#N/A"}},null,null,null,null,0]
[null,null,null,null,"INVALIDO",null,null,"INVALIDO",null,null,null,null,null,{"$f":"INDEX(U:V,MATCH(DADOS!M846,V:V,0),1)","v":{"$error":"#N/A"}},null,null,null,null,0]
[null,null,null,null,"INVALIDO",null,null,"INVALIDO",null,null,null,null,null,{"$f":"INDEX(U:V,MATCH(DADOS!M847,V:V,0),1)","v":{"$error":"#N/A"}},null,null,null,null,0]
[null,null,null,null,"INVALIDO",null,null,"INVALIDO",null,null,null,null,null,{"$f":"INDEX(U:V,MATCH(DADOS!M848,V:V,0),1)","v":{"$error":"#N/A"}},null,null,null,null,0]
[null,null,null,null,"INVALIDO",null,null,"INVALIDO",null,null,null,null,null,{"$f":"INDEX(U:V,MATCH(DADOS!M849,V:V,0),1)","v":{"$error":"#N/A"}},null,null,null,null,0]
[null,null,null,null,"INVALIDO",null,null,"INVALIDO",null,null,null,null,null,{"$f":"INDEX(U:V,MATCH(DADOS!M850,V:V,0),1)","v":{"$error":"#N/A"}},null,null,null,null,0]
[null,null,null,null,"INVALIDO",null,null,"INVALIDO",null,null,null,null,null,{"$f":"INDEX(U:V,MATCH(DADOS!M851,V:V,0),1)","v":{"$error":"#N/A"}},null,null,null,null,0]
[null,null,null,null,"INVALIDO",null,null,"INVALIDO",null,null,null,null,null,{"$f":"INDEX(U:V,MATCH(DADOS!M852,V:V,0),1)","v":{"$error":"#N/A"}},null,null,null,null,0]
[null,null,null,null,"INVALIDO",null,null,"INVALIDO",null,null,null,null,null,{"$f":"INDEX(U:V,MATCH(DADOS!M853,V:V,0),1)","v":{"$error":"#N/A"}},null,null,null,null,0]
[null,null,null,null,{"$f":"CPF(D854)","v":"INVALIDO"},null,null,{"$f":"PISPASEP(G854)","v":"INVALIDO"},null,null,null,null,null,{"$f":"INDEX(U:V,MATCH(DADOS!M854,V:V,0),1)","v":{"$error":"#N/A"}},null,null,null,null,0]
[null,null,null,null,"INVALIDO",null,null,"INVALIDO",null,null,null,null,null,{"$f":"INDEX(U:V,MATCH(DADOS!M855,V:V,0),1)","v":{"$error":"#N/A"}},null,null,null,null,0]
[null,null,null,null,"INVALIDO",null,null,"INVALIDO",null,null,null,null,null,{"$f":"INDEX(U:V,MATCH(DADOS!M856,V:V,0),1)","v":{"$error":"#N/A"}},null,null,null,null,0]
[null,null,null,null,"INVALIDO",null,null,"INVALIDO",null,null,null,null,null,{"$f":"INDEX(U:V,MATCH(DADOS!M857,V:V,0),1)","v":{"$error":"#N/A"}},null,null,null,null,0]
[null,null,null,null,"INVALIDO",null,null,"INVALIDO",null,null,null,null,null,{"$f":"INDEX(U:V,MATCH(DADOS!M858,V:V,0),1)","v":{"$error":"#N/A"}},null,null,null,null,0]
[null,null,null,null,"INVALIDO",null,null,"INVALIDO",null,null,null,null,null,{"$f":"INDEX(U:V,MATCH(DADOS!M859,V:V,0),1)","v":{"$error":"#N/A"}},null,null,null,null,0]
[null,null,null,null,"INVALIDO",null,null,"INVALIDO",null,null,null,null,null,{"$f":"INDEX(U:V,MATCH(DADOS!M860,V:V,0),1)","v":{"$error":"#N/A"}},null,null,null,null,0]
[null,null,null,null,"INVALIDO",null,null,"INVALIDO",null,null,null,null,null,{"$f":"INDEX(U:V,MATCH(DADOS!M861,V:V,0),1)","v":{"$error":"#N/A"}},null,null,null,null,0]
[null,null,null,null,"INVALIDO",null,null,"INVALIDO",null,null,null,null,null,{"$f":"INDEX(U:V,MATCH(DADOS!M862,V:V,0),1)","v":{"$error":"#N/A"}},null,null,null,null,0]
[null,null,null,null,"INVALIDO",null,null,"INVALIDO",null,null,null,null,null,{"$f":"INDEX(U:V,MATCH(DADOS!M863,V:V,0),1)","v":{"$error":"#N/A"}},null,null,null,null,0]
[null,null,null,null,"INVALIDO",null,null,"INVALIDO",null,null,null,null,null,{"$f":"INDEX(U:V,MATCH(DADOS!M864,V:V,0),1)","v":{"$error":"#N/A"}},null,null,null,null,0]
[null,null,null,null,"INVALIDO",null,null,"INVALIDO",null,null,null,null,null,{"$f":"INDEX(U:V,MATCH(DADOS!M865,V:V,0),1)","v":{"$error":"#N/A"}},null,null,null,null,0]
[null,null,null,null,"INVALIDO",null,null,"INVALIDO",null,null,null,null,null,{"$f":"INDEX(U:V,MATCH(DADOS!M866,V:V,0),1)","v":{"$error":"#N/A"}},null,null,null,null,0]
[null,null,null,null,"INVALIDO",null,null,"INVALIDO",null,null,null,null,null,{"$f":"INDEX(U:V,MATCH(DADOS!M867,V:V,0),1)","v":{"$error":"#N/A"}},null,null,null,null,0]
[null,null,null,null,"INVALIDO",null,null,"INVALIDO",null,null,null,null,null,{"$f":"INDEX(U:V,MATCH(DADOS!M868,V:V,0),1)","v":{"$error":"#N/A"}},null,null,null,null,0]
[null,null,null,null,"INVALIDO",null,null,"INVALIDO",null,null,null,null,null,{"$f":"INDEX(U:V,MATCH(DADOS!M869,V:V,0),1)","v":{"$error":"#N/A"}},null,null,null,null,0]
[null,null,null,null,"INVALIDO",null,null,"INVALIDO",null,null,null,null,null,{"$f":"INDEX(U:V,MATCH(DADOS!M870,V:V,0),1)","v":{"$error":"#N/A"}},null,null,null,null,0]
[null,null,null,null,"INVALIDO",null,null,"INVALIDO",null,null,null,null,null,{"$f":"INDEX(U:V,MATCH(DADOS!M871,V:V,0),1)","v":{"$error":"#N/A"}},null,null,null,null,0]
[null,null,null,null,"INVALIDO",null,null,"INVALIDO",null,null,null,null,null,{"$f":"INDEX(U:V,MATCH(DADOS!M872,V:V,0),1)","v":{"$error":"#N/A"}},null,null,null,null,0]
[null,null,null,null,"INVALIDO",null,null,"INVALIDO",null,null,null,null,null,{"$f":"INDEX(U:V,MATCH(DADOS!M873,V:V,0),1)","v":{"$error":"#N/A"}},null,null,null,null,0]
[null,null,null,null,"INVALIDO",null,null,"INVALIDO",null,null,null,null,null,{"$f":"INDEX(U:V,MATCH(DADOS!M874,V:V,0),1)","v":{"$error":"#N/A"}},null,null,null,null,0]
[null,null,null,null,"INVALIDO",null,null,"INVALIDO",null,null,null,null,null,{"$f":"INDEX(U:V,MATCH(DADOS!M875,V:V,0),1)","v":{"$error":"#N/A"}},null,null,null,null,0]
[null,null,null,null,"INVALIDO",null,null,"INVALIDO",null,null,null,null,null,{"$f":"INDEX(U:V,MATCH(DADOS!M876,V:V,0),1)","v":{"$error":"#N/A"}},null,null,null,null,0]
[null,null,null,null,"INVALIDO",null,null,"INVALIDO",null,null,null,null,null,{"$f":"INDEX(U:V,MATCH(DADOS!M877,V:V,0),1)","v":{"$error":"#N/A"}},null,null,null,null,0]
[null,null,null,null,"INVALIDO",null,null,"INVALIDO",null,null,null,null,null,{"$f":"INDEX(U:V,MATCH(DADOS!M878,V:V,0),1)","v":{"$error":"#N/A"}},null,null,null,null,0]
[null,null,null,null,"INVALIDO",null,null,"INVALIDO",null,null,null,null,null,{"$f":"INDEX(U:V,MATCH(DADOS!M879,V:V,0),1)","v":{"$error":"#N/A"}},null,null,null,null,0]
[null,null,null,null,"INVALIDO",null,null,"INVALIDO",null,null,null,null,null,{"$f":"INDEX(U:V,MATCH(DADOS!M880,V:V,0),1)","v":{"$error":"#N/A"}},null,null,null,null,0]
[null,null,null,null,"INVALIDO",null,null,"INVALIDO",null,null,null,null,null,{"$f":"INDEX(U:V,MATCH(DADOS!M881,V:V,0),1)","v":{"$error":"#N/A"}},null,null,null,null,0]
[null,null,null,null,"INVALIDO",null,null,"INVALIDO",null,null,null,null,null,{"$f":"INDEX(U:V,MATCH(DADOS!M882,V:V,0),1)","v":{"$error":"#N/A"}},null,null,null,null,0]
[null,null,null,null,"INVALIDO",null,null,"INVALIDO",null,null,null,null,null,{"$f":"INDEX(U:V,MATCH(DADOS!M883,V:V,0),1)","v":{"$error":"#N/A"}},null,null,null,null,0]
[null,null,null,null,"INVALIDO",null,null,"INVALIDO",null,null,null,null,null,{"$f":"INDEX(U:V,MATCH(DADOS!M884,V:V,0),1)","v":{"$error":"#N/A"}},null,null,null,null,0]
[null,null,null,null,"INVALIDO",null,null,"INVALIDO",null,null,null,null,null,{"$f":"INDEX(U:V,MATCH(DADOS!M885,V:V,0),1)","v":{"$error":"#N/A"}},null,null,null,null,0]
[null,null,null,null,"INVALIDO",null,null,"INVALIDO",null,null,null,null,null,{"$f":"INDEX(U:V,MATCH(DADOS!M886,V:V,0),1)","v":{"$error":"#N/A"}},null,null,null,null,0]
[null,null,null,null,"INVALIDO",null,null,"INVALIDO",null,null,null,null,null,{"$f":"INDEX(U:V,MATCH(DADOS!M887,V:V,0),1)","v":{"$error":"#N/A"}},null,null,null,null,0]
[null,null,null,null,"INVALIDO",null,null,"INVALIDO",null,null,null,null,null,{"$f":"INDEX(U:V,MATCH(DADOS!M888,V:V,0),1)","v":{"$error":"#N/A"}},null,null,null,null,0]
[null,null,null,null,"INVALIDO",null,null,"INVALIDO",null,null,null,null,null,{"$f":"INDEX(U:V,MATCH(DADOS!M889,V:V,0),1)","v":{"$error":"#N/A"}},null,null,null,null,0]
[null,null,null,null,"INVALIDO",null,null,"INVALIDO",null,null,null,null,null,{"$f":"INDEX(U:V,MATCH(DADOS!M890,V:V,0),1)","v":{"$error":"#N/A"}},null,null,null,null,0]
[null,null,null,null,"INVALIDO",null,null,"INVALIDO",null,null,null,null,null,{"$f":"INDEX(U:V,MATCH(DADOS!M891,V:V,0),1)","v":{"$error":"#N/A"}},null,null,null,null,0]
[null,null,null,null,"INVALIDO",null,null,"INVALIDO",null,null,null,null,null,{"$f":"INDEX(U:V,MATCH(DADOS!M892,V:V,0),1)","v":{"$error":"#N/A"}},null,null,null,null,0]
[null,null,null,null,"INVALIDO",null,null,"INVALIDO",null,null,null,null,null,{"$f":"INDEX(U:V,MATCH(DADOS!M893,V:V,0),1)","v":{"$error":"#N/A"}},null,null,null,null,0]
[null,null,null,null,"INVALIDO",null,null,"INVALIDO",null,null,null,null,null,{"$f":"INDEX(U:V,MATCH(DADOS!M894,V:V,0),1)","v":{"$error":"#N/A"}},null,null,null,null,0]
[null,null,null,null,"INVALIDO",null,null,"INVALIDO",null,null,null,null,null,{"$f":"INDEX(U:V,MATCH(DADOS!M895,V:V,0),1)","v":{"$error":"#N/A"}},null,null,null,null,0]
[null,null,null,null,"INVALIDO",null,null,"INVALIDO",null,null,null,null,null,{"$f":"INDEX(U:V,MATCH(DADOS!M896,V:V,0),1)","v":{"$error":"#N/A"}},null,null,null,null,0]
[null,null,null,null,"INVALIDO",null,null,"INVALIDO",null,null,null,null,null,{"$f":"INDEX(U:V,MATCH(DADOS!M897,V:V,0),1)","v":{"$error":"#N/A"}},null,null,null,null,0]
[null,null,null,null,"INVALIDO",null,null,"INVALIDO",null,null,null,null,null,{"$f":"INDEX(U:V,MATCH(DADOS!M898,V:V,0),1)","v":{"$error":"#N/A"}},null,null,null,null,0]
[null,null,null,null,"INVALIDO",null,null,"INVALIDO",null,null,null,null,null,{"$f":"INDEX(U:V,MATCH(DADOS!M899,V:V,0),1)","v":{"$error":"#N/A"}},null,null,null,null,{"$f":"S899","v":0}]
[null,null,null,null,"INVALIDO",null,null,"INVALIDO",null,null,null,null,null,{"$f":"INDEX(U:V,MATCH(DADOS!M900,V:V,0),1)","v":{"$error":"#N/A"}},null,null,null,null,0]
[null,null,null,null,"INVALIDO",null,null,"INVALIDO",null,null,null,null,null,{"$f":"INDEX(U:V,MATCH(DADOS!M901,V:V,0),1)","v":{"$error":"#N/A"}},null,null,null,null,0]
[null,null,null,null,"INVALIDO",null,null,"INVALIDO",null,null,null,null,null,{"$f":"INDEX(U:V,MATCH(DADOS!M902,V:V,0),1)","v":{"$error":"#N/A"}},null,null,null,null,0]
[null,null,null,null,"INVALIDO",null,null,"INVALIDO",null,null,null,null,null,{"$f":"INDEX(U:V,MATCH(DADOS!M903,V:V,0),1)","v":{"$error":"#N/A"}},null,null,null,null,0]
[null,null,null,null,"INVALIDO",null,null,"INVALIDO",null,null,null,null,null,{"$f":"INDEX(U:V,MATCH(DADOS!M904,V:V,0),1)","v":{"$error":"#N/A"}},null,null,null,null,0]
[null,null,null,null,"INVALIDO",null,null,"INVALIDO",null,null,null,null,null,{"$f":"INDEX(U:V,MATCH(DADOS!M905,V:V,0),1)","v":{"$error":"#N/A"}},null,null,null,null,0]
[null,null,null,null,"INVALIDO",null,null,"INVALIDO",null,null,null,null,null,{"$f":"INDEX(U:V,MATCH(DADOS!M906,V:V,0),1)","v":{"$error":"#N/A"}},null,null,null,null,0]
[null,null,null,null,"INVALIDO",null,null,"INVALIDO",null,null,null,null,null,{"$f":"INDEX(U:V,MATCH(DADOS!M907,V:V,0),1)","v":{"$error":"#N/A"}},null,null,null,null,0]
[null,null,null,null,"INVALIDO",null,null,"INVALIDO",null,null,null,null,null,{"$f":"INDEX(U:V,MATCH(DADOS!M908,V:V,0),1)","v":{"$error":"#N/A"}},null,null,null,null,0]
[null,null,null,null,"INVALIDO",null,null,"INVALIDO",null,null,null,null,null,{"$f":"INDEX(U:V,MATCH(DADOS!M909,V:V,0),1)","v":{"$error":"#N/A"}},null,null,null,null,0]
[null,null,null,null,"INVALIDO",null,null,"INVALIDO",null,null,null,null,null,{"$f":"INDEX(U:V,MATCH(DADOS!M910,V:V,0),1)","v":{"$error":"#N/A"}},null,null,null,null,0]
[null,null,null,null,"INVALIDO",null,null,"INVALIDO",null,null,null,null,null,{"$f":"INDEX(U:V,MATCH(DADOS!M911,V:V,0),1)","v":{"$error":"#N/A"}},null,null,null,null,0]
[null,null,null,null,"INVALIDO",null,null,"INVALIDO",null,null,null,null,null,{"$f":"INDEX(U:V,MATCH(DADOS!M912,V:V,0),1)","v":{"$error":"#N/A"}},null,null,null,null,0]
[null,null,null,null,"INVALIDO",null,null,"INVALIDO",null,null,null,null,null,{"$f":"INDEX(U:V,MATCH(DADOS!M913,V:V,0),1)","v":{"$error":"#N/A"}},null,null,null,null,0]
[null,null,null,null,"INVALIDO",null,null,"INVALIDO",null,null,null,null,null,{"$f":"INDEX(U:V,MATCH(DADOS!M914,V:V,0),1)","v":{"$error":"#N/A"}},null,null,null,null,0]
[null,null,null,null,"INVALIDO",null,null,"INVALIDO",null,null,null,null,null,{"$f":"INDEX(U:V,MATCH(DADOS!M915,V:V,0),1)","v":{"$error":"#N/A"}},null,null,null,null,0]
[null,null,null,null,"INVALIDO",null,null,"INVALIDO",null,null,null,null,null,{"$f":"INDEX(U:V,MATCH(DADOS!M916,V:V,0),1)","v":{"$error":"#N/A"}},null,null,null,null,0]
[null,null,null,null,"INVALIDO",null,null,"INVALIDO",null,null,null,null,null,{"$f":"INDEX(U:V,MATCH(DADOS!M917,V:V,0),1)","v":{"$error":"#N/A"}},null,null,null,null,0]
[null,null,null,null,{"$f":"CPF(D918)","v":"INVALIDO"},null,null,{"$f":"PISPASEP(G918)","v":"INVALIDO"},null,null,null,null,null,{"$f":"INDEX(U:V,MATCH(DADOS!M918,V:V,0),1)","v":{"$error":"#N/A"}},null,null,null,null,0]
[null,null,null,null,"INVALIDO",null,null,"INVALIDO",null,null,null,null,null,{"$f":"INDEX(U:V,MATCH(DADOS!M919,V:V,0),1)","v":{"$error":"#N/A"}},null,null,null,null,0]
[null,null,null,null,"INVALIDO",null,null,"INVALIDO",null,null,null,null,null,{"$f":"INDEX(U:V,MATCH(DADOS!M920,V:V,0),1)","v":{"$error":"#N/A"}},null,null,null,null,0]
[null,null,null,null,"INVALIDO",null,null,"INVALIDO",null,null,null,null,null,{"$f":"INDEX(U:V,MATCH(DADOS!M921,V:V,0),1)","v":{"$error":"#N/A"}},null,null,null,null,0]
[null,null,null,null,"INVALIDO",null,null,"INVALIDO",null,null,null,null,null,{"$f":"INDEX(U:V,MATCH(DADOS!M922,V:V,0),1)","v":{"$error":"#N/A"}},null,null,null,null,0]
[null,null,null,null,"INVALIDO",null,null,"INVALIDO",null,null,null,null,null,{"$f":"INDEX(U:V,MATCH(DADOS!M923,V:V,0),1)","v":{"$error":"#N/A"}},null,null,null,null,0]
[null,null,null,null,"INVALIDO",null,null,"INVALIDO",null,null,null,null,null,{"$f":"INDEX(U:V,MATCH(DADOS!M924,V:V,0),1)","v":{"$error":"#N/A"}},null,null,null,null,0]
[null,null,null,null,"INVALIDO",null,null,"INVALIDO",null,null,null,null,null,{"$f":"INDEX(U:V,MATCH(DADOS!M925,V:V,0),1)","v":{"$error":"#N/A"}},null,null,null,null,0]
[null,null,null,null,"INVALIDO",null,null,"INVALIDO",null,null,null,null,null,{"$f":"INDEX(U:V,MATCH(DADOS!M926,V:V,0),1)","v":{"$error":"#N/A"}},null,null,null,null,0]
[null,null,null,null,"INVALIDO",null,null,"INVALIDO",null,null,null,null,null,{"$f":"INDEX(U:V,MATCH(DADOS!M927,V:V,0),1)","v":{"$error":"#N/A"}},null,null,null,null,0]
[null,null,null,null,"INVALIDO",null,null,"INVALIDO",null,null,null,null,null,{"$f":"INDEX(U:V,MATCH(DADOS!M928,V:V,0),1)","v":{"$error":"#N/A"}},null,null,null,null,0]
[null,null,null,null,"INVALIDO",null,null,"INVALIDO",null,null,null,null,null,{"$f":"INDEX(U:V,MATCH(DADOS!M929,V:V,0),1)","v":{"$error":"#N/A"}},null,null,null,null,0]
[null,null,null,null,"INVALIDO",null,null,"INVALIDO",null,null,null,null,null,{"$f":"INDEX(U:V,MATCH(DADOS!M930,V:V,0),1)","v":{"$error":"#N/A"}},null,null,null,null,0]
[null,null,null,null,"INVALIDO",null,null,"INVALIDO",null,null,null,null,null,{"$f":"INDEX(U:V,MATCH(DADOS!M931,V:V,0),1)","v":{"$error":"#N/A"}},null,null,null,null,0]
[null,null,null,null,"INVALIDO",null,null,"INVALIDO",null,null,null,null,null,{"$f":"INDEX(U:V,MATCH(DADOS!M932,V:V,0),1)","v":{"$error":"#N/A"}},null,null,null,null,0]
[null,null,null,null,"INVALIDO",null,null,"INVALIDO",null,null,null,null,null,{"$f":"INDEX(U:V,MATCH(DADOS!M933,V:V,0),1)","v":{"$error":"#N/A"}},null,null,null,null,0]
[null,null,null,null,"INVALIDO",null,null,"INVALIDO",null,null,null,null,null,{"$f":"INDEX(U:V,MATCH(DADOS!M934,V:V,0),1)","v":{"$error":"#N/A"}},null,null,null,null,0]
[null,null,null,null,"INVALIDO",null,null,"INVALIDO",null,null,null,null,null,{"$f":"INDEX(U:V,MATCH(DADOS!M935,V:V,0),1)","v":{"$error":"#N/A"}},null,null,null,null,0]
[null,null,null,null,"INVALIDO",null,null,"INVALIDO",null,null,null,null,null,{"$f":"INDEX(U:V,MATCH(DADOS!M936,V:V,0),1)","v":{"$error":"#N/A"}},null,null,null,null,0]
[null,null,null,null,"INVALIDO",null,null,"INVALIDO",null,null,null,null,null,{"$f":"INDEX(U:V,MATCH(DADOS!M937,V:V,0),1)","v":{"$error":"#N/A"}},null,null,null,null,0]
[null,null,null,null,"INVALIDO",null,null,"INVALIDO",null,null,null,null,null,{"$f":"INDEX(U:V,MATCH(DADOS!M938,V:V,0),1)","v":{"$error":"#N/A"}},null,null,null,null,0]
[null,null,null,null,"INVALIDO",null,null,"INVALIDO",null,null,null,null,null,{"$f":"INDEX(U:V,MATCH(DADOS!M939,V:V,0),1)","v":{"$error":"#N/A"}},null,null,null,null,0]
[null,null,null,null,"INVALIDO",null,null,"INVALIDO",null,null,null,null,null,{"$f":"INDEX(U:V,MATCH(DADOS!M940,V:V,0),1)","v":{"$error":"#N/A"}},null,null,null,null,0]
[null,null,null,null,"INVALIDO",null,null,"INVALIDO",null,null,null,null,null,{"$f":"INDEX(U:V,MATCH(DADOS!M941,V:V,0),1)","v":{"$error":"#N/A"}},null,null,null,null,0]
[null,null,null,null,"INVALIDO",null,null,"INVALIDO",null,null,null,null,null,{"$f":"INDEX(U:V,MATCH(DADOS!M942,V:V,0),1)","v":{"$error":"#N/A"}},null,null,null,null,0]
[null,null,null,null,"INVALIDO",null,null,"INVALIDO",null,null,null,null,null,{"$f":"INDEX(U:V,MATCH(DADOS!M943,V:V,0),1)","v":{"$error":"#N/A"}},null,null,null,null,0]
[null,null,null,null,"INVALIDO",null,null,"INVALIDO",null,null,null,null,null,{"$f":"INDEX(U:V,MATCH(DADOS!M944,V:V,0),1)","v":{"$error":"#N/A"}},null,null,null,null,0]
[null,null,null,null,"INVALIDO",null,null,"INVALIDO",null,null,null,null,null,{"$f":"INDEX(U:V,MATCH(DADOS!M945,V:V,0),1)","v":{"$error":"#N/A"}},null,null,null,null,0]
[null,null,null,null,"INVALIDO",null,null,"INVALIDO",null,null,null,null,null,{"$f":"INDEX(U:V,MATCH(DADOS!M946,V:V,0),1)","v":{"$error":"#N/A"}},null,null,null,null,0]
[null,null,null,null,"INVALIDO",null,null,"INVALIDO",null,null,null,null,null,{"$f":"INDEX(U:V,MATCH(DADOS!M947,V:V,0),1)","v":{"$error":"#N/A"}},null,null,null,null,0]
[null,null,null,null,"INVALIDO",null,null,"INVALIDO",null,null,null,null,null,{"$f":"INDEX(U:V,MATCH(DADOS!M948,V:V,0),1)","v":{"$error":"#N/A"}},null,null,null,null,0]
[null,null,null,null,"INVALIDO",null,null,"INVALIDO",null,null,null,null,null,{"$f":"INDEX(U:V,MATCH(DADOS!M949,V:V,0),1)","v":{"$error":"#N/A"}},null,null,null,null,0]
[null,null,null,null,"INVALIDO",null,null,"INVALIDO",null,null,null,null,null,{"$f":"INDEX(U:V,MATCH(DADOS!M950,V:V,0),1)","v":{"$error":"#N/A"}},null,null,null,null,0]
[null,null,null,null,"INVALIDO",null,null,"INVALIDO",null,null,null,null,null,{"$f":"INDEX(U:V,MATCH(DADOS!M951,V:V,0),1)","v":{"$error":"#N/A"}},null,null,null,null,0]
[null,null,null,null,"INVALIDO",null,null,"INVALIDO",null,null,null,null,null,{"$f":"INDEX(U:V,MATCH(DADOS!M952,V:V,0),1)","v":{"$error":"#N/A"}},null,null,null,null,0]
[null,null,null,null,"INVALIDO",null,null,"INVALIDO",null,null,null,null,null,{"$f":"INDEX(U:V,MATCH(DADOS!M953,V:V,0),1)","v":{"$error":"#N/A"}},null,null,null,null,0]
[null,null,null,null,"INVALIDO",null,null,"INVALIDO",null,null,null,null,null,{"$f":"INDEX(U:V,MATCH(DADOS!M954,V:V,0),1)","v":{"$error":"#N/A"}},null,null,null,null,0]
[null,null,null,null,"INVALIDO",null,null,"INVALIDO",null,null,null,null,null,{"$f":"INDEX(U:V,MATCH(DADOS!M955,V:V,0),1)","v":{"$error":"#N/A"}},null,null,null,null,0]
[null,null,null,null,"INVALIDO",null,null,"INVALIDO",null,null,null,null,null,{"$f":"INDEX(U:V,MATCH(DADOS!M956,V:V,0),1)","v":{"$error":"#N/A"}},null,null,null,null,0]
[null,null,null,null,"INVALIDO",null,null,"INVALIDO",null,null,null,null,null,{"$f":"INDEX(U:V,MATCH(DADOS!M957,V:V,0),1)","v":{"$error":"#N/A"}},null,null,null,null,0]
[null,null,null,null,"INVALIDO",null,null,"INVALIDO",null,null,null,null,null,{"$f":"INDEX(U:V,MATCH(DADOS!M958,V:V,0),1)","v":{"$error":"#N/A"}},null,null,null,null,0]
[null,null,null,null,"INVALIDO",null,null,"INVALIDO",null,null,null,null,null,{"$f":"INDEX(U:V,MATCH(DADOS!M959,V:V,0),1)","v":{"$error":"#N/A"}},null,null,null,null,0]
[null,null,null,null,"INVALIDO",null,null,"INVALIDO",null,null,null,null,null,{"$f":"INDEX(U:V,MATCH(DADOS!M960,V:V,0),1)","v":{"$error":"#N/A"}},null,null,null,null,0]
[null,null,null,null,"INVALIDO",null,null,"INVALIDO",null,null,null,null,null,{"$f":"INDEX(U:V,MATCH(DADOS!M961,V:V,0),1)","v":{"$error":"#N/A"}},null,null,null,null,0]
[null,null,null,null,"INVALIDO",null,null,"INVALIDO",null,null,null,null,null,{"$f":"INDEX(U:V,MATCH(DADOS!M962,V:V,0),1)","v":{"$error":"#N/A"}},null,null,null,null,0]
[null,null,null,null,"INVALIDO",null,null,"INVALIDO",null,null,null,null,null,{"$f":"INDEX(U:V,MATCH(DADOS!M963,V:V,0),1)","v":{"$error":"#N/A"}},null,null,null,null,{"$f":"S963","v":0}]
[null,null,null,null,"INVALIDO",null,null,"INVALIDO",null,null,null,null,null,{"$f":"INDEX(U:V,MATCH(DADOS!M964,V:V,0),1)","v":{"$error":"#N/A"}},null,null,null,null,0]
[null,null,null,null,"INVALIDO",null,null,"INVALIDO",null,null,null,null,null,{"$f":"INDEX(U:V,MATCH(DADOS!M965,V:V,0),1)","v":{"$error":"#N/A"}},null,null,null,null,0]
[null,null,null,null,"INVALIDO",null,null,"INVALIDO",null,null,null,null,null,{"$f":"INDEX(U:V,MATCH(DADOS!M966,V:V,0),1)","v":{"$error":"#N/A"}},null,null,null,null,0]
[null,null,null,null,"INVALIDO",null,null,"INVALIDO",null,null,null,null,null,{"$f":"INDEX(U:V,MATCH(DADOS!M967,V:V,0),1)","v":{"$error":"#N/A"}},null,null,null,null,0]
[null,null,null,null,"INVALIDO",null,null,"INVALIDO",null,null,null,null,null,{"$f":"INDEX(U:V,MATCH(DADOS!M968,V:V,0),1)","v":{"$error":"#N/A"}},null,null,null,null,0]
[null,null,null,null,"INVALIDO",null,null,"INVALIDO",null,null,null,null,null,{"$f":"INDEX(U:V,MATCH(DADOS!M969,V:V,0),1)","v":{"$error":"#N/A"}},null,null,null,null,0]
[null,null,null,null,"INVALIDO",null,null,"INVALIDO",null,null,null,null,null,{"$f":"INDEX(U:V,MATCH(DADOS!M970,V:V,0),1)","v":{"$error":"#N/A"}},null,null,null,null,0]
[null,null,null,null,"INVALIDO",null,null,"INVALIDO",null,null,null,null,null,{"$f":"INDEX(U:V,MATCH(DADOS!M971,V:V,0),1)","v":{"$error":"#N/A"}},null,null,null,null,0]
[null,null,null,null,"INVALIDO",null,null,"INVALIDO",null,null,null,null,null,{"$f":"INDEX(U:V,MATCH(DADOS!M972,V:V,0),1)","v":{"$error":"#N/A"}},null,null,null,null,0]
[null,null,null,null,"INVALIDO",null,null,"INVALIDO",null,null,null,null,null,{"$f":"INDEX(U:V,MATCH(DADOS!M973,V:V,0),1)","v":{"$error":"#N/A"}},null,null,null,null,0]
[null,null,null,null,"INVALIDO",null,null,"INVALIDO",null,null,null,null,null,{"$f":"INDEX(U:V,MATCH(DADOS!M974,V:V,0),1)","v":{"$error":"#N/A"}},null,null,null,null,0]
[null,null,null,null,"INVALIDO",null,null,"INVALIDO",null,null,null,null,null,{"$f":"INDEX(U:V,MATCH(DADOS!M975,V:V,0),1)","v":{"$error":"#N/A"}},null,null,null,null,0]
[null,null,null,null,"INVALIDO",null,null,"INVALIDO",null,null,null,null,null,{"$f":"INDEX(U:V,MATCH(DADOS!M976,V:V,0),1)","v":{"$error":"#N/A"}},null,null,null,null,0]
[null,null,null,null,"INVALIDO",null,null,"INVALIDO",null,null,null,null,null,{"$f":"INDEX(U:V,MATCH(DADOS!M977,V:V,0),1)","v":{"$error":"#N/A"}},null,null,null,null,0]
[null,null,null,null,"INVALIDO",null,null,"INVALIDO",null,null,null,null,null,{"$f":"INDEX(U:V,MATCH(DADOS!M978,V:V,0),1)","v":{"$error":"#N/A"}},null,null,null,null,0]
[null,null,null,null,"INVALIDO",null,null,"INVALIDO",null,null,null,null,null,{"$f":"INDEX(U:V,MATCH(DADOS!M979,V:V,0),1)","v":{"$error":"#N/A"}},null,null,null,null,0]
[null,null,null,null,"INVALIDO",null,null,"INVALIDO",null,null,null,null,null,{"$f":"INDEX(U:V,MATCH(DADOS!M980,V:V,0),1)","v":{"$error":"#N/A"}},null,null,null,null,0]
[null,null,null,null,"INVALIDO",null,null,"INVALIDO",null,null,null,null,null,{"$f":"INDEX(U:V,MATCH(DADOS!M981,V:V,0),1)","v":{"$error":"#N/A"}},null,null,null,null,0]
[null,null,null,null,{"$f":"CPF(D982)","v":"INVALIDO"},null,null,{"$f":"PISPASEP(G982)","v":"INVALIDO"},null,null,null,null,null,{"$f":"INDEX(U:V,MATCH(DADOS!M982,V:V,0),1)","v":{"$error":"#N/A"}},null,null,null,null,0]
[null,null,null,null,"INVALIDO",null,null,"INVALIDO",null,null,null,null,null,{"$f":"INDEX(U:V,MATCH(DADOS!M983,V:V,0),1)","v":{"$error":"#N/A"}},null,null,null,null,0]
[null,null,null,null,"INVALIDO",null,null,"INVALIDO",null,null,null,null,null,{"$f":"INDEX(U:V,MATCH(DADOS!M984,V:V,0),1)","v":{"$error":"#N/A"}},null,null,null,null,0]
[null,null,null,null,"INVALIDO",null,null,"INVALIDO",null,null,null,null,null,{"$f":"INDEX(U:V,MATCH(DADOS!M985,V:V,0),1)","v":{"$error":"#N/A"}},null,null,null,null,0]
[null,null,null,null,"INVALIDO",null,null,"INVALIDO",null,null,null,null,null,{"$f":"INDEX(U:V,MATCH(DADOS!M986,V:V,0),1)","v":{"$error":"#N/A"}},null,null,null,null,0]
[null,null,null,null,"INVALIDO",null,null,"INVALIDO",null,null,null,null,null,{"$f":"INDEX(U:V,MATCH(DADOS!M987,V:V,0),1)","v":{"$error":"#N/A"}},null,null,null,null,0]
[null,null,null,null,"INVALIDO",null,null,"INVALIDO",null,null,null,null,null,{"$f":"INDEX(U:V,MATCH(DADOS!M988,V:V,0),1)","v":{"$error":"#N/A"}},null,null,null,null,0]
[null,null,null,null,"INVALIDO",null,null,"INVALIDO",null,null,null,null,null,{"$f":"INDEX(U:V,MATCH(DADOS!M989,V:V,0),1)","v":{"$error":"#N/A"}},null,null,null,null,0]
[null,null,null,null,"INVALIDO",null,null,"INVALIDO",null,null,null,null,null,{"$f":"INDEX(U:V,MATCH(DADOS!M990,V:V,0),1)","v":{"$error":"#N/A"}},null,null,null,null,0]
[null,null,null,null,"INVALIDO",null,null,"INVALIDO",null,null,null,null,null,{"$f":"INDEX(U:V,MATCH(DADOS!M991,V:V,0),1)","v":{"$error":"#N/A"}},null,null,null,null,0]
[null,null,null,null,"INVALIDO",null,null,"INVALIDO",null,null,null,null,null,{"$f":"INDEX(U:V,MATCH(DADOS!M992,V:V,0),1)","v":{"$error":"#N/A"}},null,null,null,null,0]
[null,null,null,null,"INVALIDO",null,null,"INVALIDO",null,null,null,null,null,{"$f":"INDEX(U:V,MATCH(DADOS!M993,V:V,0),1)","v":{"$error":"#N/A"}},null,null,null,null,0]
[null,null,null,null,"INVALIDO",null,null,"INVALIDO",null,null,null,null,null,{"$f":"INDEX(U:V,MATCH(DADOS!M994,V:V,0),1)","v":{"$error":"#N/A"}},null,null,null,null,0]
[null,null,null,null,"INVALIDO",null,null,"INVALIDO",null,null,null,null,null,{"$f":"INDEX(U:V,MATCH(DADOS!M995,V:V,0),1)","v":{"$error":"#N/A"}},null,null,null,null,0]
[null,null,null,null,"INVALIDO",null,null,"INVALIDO",null,null,null,null,null,{"$f":"INDEX(U:V,MATCH(DADOS!M996,V:V,0),1)","v":{"$error":"#N/A"}},null,null,null,null,0]
[null,null,null,null,"INVALIDO",null,null,"INVALIDO",null,null,null,null,null,{"$f":"INDEX(U:V,MATCH(DADOS!M997,V:V,0),1)","v":{"$error":"#N/A"}},null,null,null,null,0]
[null,null,null,null,"INVALIDO",null,null,"INVALIDO",null,null,null,null,null,{"$f":"INDEX(U:V,MATCH(DADOS!M998,V:V,0),1)","v":{"$error":"#N/A"}},null,null,null,null,0]
[null,null,null,null,"INVALIDO",null,null,"INVALIDO",null,null,null,null,null,{"$f":"INDEX(U:V,MATCH(DADOS!M999,V:V,0),1)","v":{"$error":"#N/A"}},null,null,null,null,0]
[null,null,null,null,"INVALIDO",null,null,"INVALIDO",null,null,null,null,null,{"$f":"INDEX(U:V,MATCH(DADOS!M1000,V:V,0),1)","v":{"$error":"#N/A"}},null,null,null,null,0]